Workbook

Sheet settings
A1: EM8500 QUICK WIZARD
A2: Author | B2: EM-Microelectronic SA | E2: User settings
A3: Date: | B3: 2025-08-29 | E3: Calculation results
A4: Description: | B4: EM8500 simplified configuration | E4: =IF(COUNTIF('register map'!F3:F28,"")<>26,messages!A65,IF(COUNTIF(F10:F156,"ERROR*")>0,messages!A42,IF(COUNTIF(F10:F156,"WARNING*")>0,messages!A67,messages!A79))) -> OK
A5: Revision: | B5: 2.2
A6: Configuration description:
A7: Parameter | B7: Value | C7: Unit | D7: Related Register Name | E7: Value | F7: Check | G7: Note | H7: DEC | I7: WEIGHT | K7: User comments
A8: HARVESTER SETTINGS: refer to the chapter 2.2 of "App Note 85 Configuration"
A9: Harvester type: refer to the chapter 2.1 of e8500_app_note_hrv_param.pdf
A10: Harvester type | B10: TEG | C10: -- | F10: =messages!A79 -> OK
A11: MPPT ratio | B11: =IF(B10=constants!B1,constants!H2,constants!B2) -> 0.5 | C11: -- | D11: reg_mppt_ratio | E11: =HLOOKUP(B11,constants!B2:N4,3,FALSE) -> 0x00 | F11: =IF(B10="TEG",IF(B11=0.5,messages!A79,messages!A51),IF(B10="Other",messages!A79,IF(settings!B11<constants!G2,messages!A52,IF(settings!B11>constants!I2,messages!A52,messages!A79)))) -> OK
A13: Harvester check settings: refer to the chapter 2.2 of e8500_app_note_hrv_param.pdf
A14: HRV check method | B14: =IF(B10=constants!B1,constants!C8,constants!B8) -> Open voltage | C14: -- | D14: reg_v_hrv_cfg.hrv_check_vld | E14: =HLOOKUP(B14,constants!$B$8:$C$9,2,FALSE) -> '1' | F14: =IF(AND(B14=constants!B8,settings!B10=constants!B1),messages!A54,IF(AND(settings!B14=constants!C8,settings!B10=constants!C1),messages!A53,messages!A79)) -> OK | G14: Open voltage is preferable for TEG ; Short cut current preferable for Solar cell | H14: =HLOOKUP(B14,constants!$B$8:$C$10,3,FALSE) -> 1 | I14: 64
A15: Maximum battery and application voltage: | B15: 3.6 | C15: V | D15: reg_v_bat_max_hi | E15: =IF((TRUNC(B15/constants!D64-1)+1)>9,"0x"&DEC2HEX(TRUNC(B15/constants!D64-1)+1),"0x0"&DEC2HEX(TRUNC(B15/constants!D64-1)+1)) -> 0x30 | F15: =IF(B15>constants!D67,messages!A14,messages!A79) -> OK | H15: =(TRUNC(B15/constants!D64-1)+1) -> 48 | I15: 1
A16: Harvester check settings for a TEG: refer to the chapter 2.2.1 of e8500_app_note_hrv_param.pdf
A17: Minimum battery and application voltage: | B17: 2.7 | C17: V | D17: reg_v_bat_min_lo | E17: =IF(H17>9,"0x"&DEC2HEX(H17),"0x0"&DEC2HEX(H17)) -> 0x25 | F17: =IF(B17<constants!B68,messages!A17,IF(B15-B17<0.6,messages!A18,messages!A79)) -> OK | G17: Set the absolute minimum battery voltage | H17: =(TRUNC(B17/constants!B64-1)+1) -> 37 | I17: 1
A18: =IF(B14=constants!C8,"Unused","HRV resistivity (Rteg)") -> HRV resistivity (Rteg) | B18: 120 | C18: Ω | F18: =IF(AND(B14=constants!B8,B15<=2,B18>MAX(constants!B15:B18)),messages!A5,IF(AND(B14=constants!B8,settings!B15<=3,B15>2,settings!B18>MAX(constants!C15:C18)),messages!A4,IF(AND(B14=constants!B8,B15>3,settings!B18>MAX(constants!D15:D18)),messages!A3,IF(B14<>constants!B8,messages!A80,messages!A79)))) -> OK
A19: Minimum HRV open voltage | B19: =IF(B14<>constants!B8,messages!A80,IF(B10=constants!C1,IF(B15<=2,IF(B18<=constants!B15,constants!E15,IF(settings!B18<=constants!B16,constants!E16,IF(settings!B18<=constants!B17,constants!E17,IF(settings!B18<=constants!B18,constants!E18,constants!B19)))),IF(B15<=3,IF(B18<=constants!C15,constants!E15,IF(settings!B18<=constants!C16,constants!E16,IF(settings!B18<=constants!C17,constants!E17,IF(settings!B18<=constants!C18,constants!E18,constants!C19)))),IF(B18<=constants!D15,constants!E15,IF(settings!B18<=constants!D16,constants!E16,IF(settings!B18<=constants!D17,constants!E17,IF(settings!B18<=constants!D18,constants!E18,constants!D19)))))),messages!A80)) -> 288 | C19: mV | D19: reg_v_hrv_cfg.v_hrv_min | E19: =IF(B19<>messages!A80,VLOOKUP(B19,constants!E15:F18,2,FALSE),"0x01") -> 0x03 | G19: Below that level the EM8500 DCDC is deactivated | H19: =IF(B19<>messages!A80,VLOOKUP(B19,constants!E15:G18,3,FALSE),1) -> 3 | I19: 1
A20: Pin_min | B20: =IF(B19=messages!A80,messages!A80,IF(B19=constants!B19,constants!B19,1000000*(0.001*settings!B19)^2/(4*settings!B18))) -> 172.8 | C20: uW | G20: Minimum power the EM8500 can harvest in such condition
A21: Harvester check settings for a Solar cell: refer to the chapter 2.2.2 of e8500_app_note_hrv_param.pdf
A22: Voc_min | B22: 0.5 | C22: V | F22: =IF(B22>constants!D22,messages!A7,messages!A79) -> OK | G22: Solar cell open voltage at minimum light conditions
A23: Vmpp_min | B23: =IF(B22<0.2,0.2,VLOOKUP(ROUND(B22*B11,1),constants!A27:A40,1,TRUE)) -> 0.3 | C23: V | F23: =IF(B14<>constants!C8,messages!A80,IF(B15<=2,IF(VLOOKUP(B23,constants!A27:B40,2,FALSE)=constants!B19,messages!A8,messages!A79),IF(B15<=3,IF(VLOOKUP(B23,constants!A27:C40,3,FALSE)=constants!B19,messages!A8,messages!A79),IF(VLOOKUP(B23,constants!A27:D40,4,FALSE)=constants!B19,messages!A8,messages!A79)))) -> OK (Non applicable)
A24: Ihrv_lim absolute min | B24: =IF(B14<>constants!C8,messages!A80,IF(settings!F23<>messages!A79,constants!B19,IF(settings!B15<=2,VLOOKUP(settings!B23,constants!A27:B40,2,FALSE),IF(settings!B15<=3,VLOOKUP(settings!B23,constants!A27:C40,3,FALSE),VLOOKUP(settings!B23,constants!A27:D40,4,FALSE))))) -> OK (Non applicable) | C24: uA | G24: Below that level the EM8500 DCDC is deactivated
A25: Ihrv_lim effective | B25: 15 | C25: uA | D25: reg_hrv_check_lvl | E25: =IF(B14<>constants!C8,"0x00",IF(B25<B24,constants!B19,HLOOKUP(settings!B25,constants!B42:Q43,2,FALSE))) -> 0x00 | F25: =IF(settings!B14<>constants!C8,messages!A80,IF(settings!B25<settings!B24,messages!A10,messages!A79)) -> OK (Non applicable)
A26: Pin_min | B26: =IF(B14<>constants!C8,messages!A80,IF(settings!F23<>messages!A79,constants!B19,settings!B25*settings!B23)) -> OK (Non applicable) | C26: uW
A28: Harvester check timing settings: refer to the chapter 2.2.3 & 2.2.4 of e8500_app_note_hrv_param.pdf
A29: HRV capacitor (Chrv) | B29: 4.7 | C29: uF | F29: =IF(OR(B29<constants!B46,B29>constants!D46),messages!A9,messages!A79) -> OK
A30: Thrv_meas ideal | B30: =CEILING(IF(B10<>constants!B1,IF(B19=constants!B19,constants!B19,5*settings!B18*settings!B29/1000),IF(settings!B25=constants!B19,constants!B19,(2500*(settings!B23/settings!B11-settings!B23)*settings!B29)/settings!B25)),1) -> 3 | C30: ms
A31: Thrv_meas effective | B31: 128 | C31: ms | D31: reg_t_hrv_meas | E31: =VLOOKUP(B31,constants!B51:D58,3,FALSE) -> 0x03 | F31: =IF(B30>constants!B58,messages!A11,IF(B30>B31,messages!A12,messages!A79)) -> OK | G31: ="Shall be closer and just higher than Thrv_meas_ideal: "&IF(B30<=constants!B51,constants!B51,IF(B30<=constants!B52,constants!B52,IF(B30<=constants!B53,constants!B53,IF(B30<=constants!B54,constants!B54,IF(B30<=constants!B55,constants!B55,IF(B30<=constants!B56,constants!B56,IF(B30<=constants!B57,constants!B57,constants!B58)))))))&" ms" -> Shall be closer and just higher than Thrv_meas_ideal: 16 ms
A32: Thrv_period | B32: 4096 | C32: ms | D32: reg_t_hrv_period | E32: =VLOOKUP(B32,constants!C51:D58,2,FALSE) -> 0x04 | F32: =IF(B32<2*$B$31,messages!$A$13,IF(B32<16*$B$31,messages!$A$55,messages!$A$79)) -> OK
A33: Efficiency loss @ Pin_min due to HRV control | B33: =B31/B32 -> 0.03125 | C33: %
A34: Thrv_period in HRV LOW mode | B34: 256 | C34: ms | D34: reg_t_hrv_low_cfg.t_hrv_low_period | E34: =VLOOKUP(B34,constants!C51:E58,3,FALSE) -> "000" | F34: =messages!A69&TRUNC(30000/(8*B34))/10&" nW" -> Note: the power consumption of the HRV supervisory & sampling in HRV LOW mode is: 1.4 nW | H34: =VLOOKUP(B34,constants!C51:F58,4,FALSE) -> 0 | I34: 16
A35: STORAGE SUPERVISORY SETTINGS: refer to the chapter 5 of "App Note 85 Storage"
A36: Operating mode selection: refer to the chapter 4 of e8500_app_note_store_supervise.pdf
A37: Rechargeable battery | B37: Yes | C37: -- | D37: reg_lts_cfg.prim_cell | E37: =IF(B37=constants!$B$60,"'0'","'1'") -> '0' | G37: Yes = rechargeable ; No = Non-rechargeable | H37: =IF(B37=constants!$B$60,0,1) -> 0 | I37: 2
A38: Under voltage protection | B38: Yes | C38: -- | D38: reg_lts_cfg.no_bat_protect | E38: =IF(B38=constants!$B$60,"'0'","'1'") -> '0' | F38: =IF(B38=constants!C60,messages!A57,messages!A79) -> OK | G38: Set Yes if LTS shall be disconnected in under voltage condition to protect the battery | H38: =IF(B38=constants!$B$60,0,1) -> 0 | I38: 1
A39: LTS connected to STS at start-up (in prim_cell mode only) | B39: No | C39: -- | D39: reg_lts_cfg.prim_cell_connect | E39: =IF(B39=constants!$B$60,"'1'","'0'") -> '0' | G39: Set Yes if LTS shall be connected to STS at start-up or after a soft-reset | H39: =IF(B39=constants!$B$60,1,0) -> 0 | I39: 4
A41: Absolute min/max selection: refer to the chapter 5 of e8500_app_note_store_supervise.pdf
A42: Maximum battery voltage v_bat_max_hi | B42: =B15 -> 3.6 | C42: V | D42: reg_v_bat_max_hi | E42: =IF(H42>9,"0x"&DEC2HEX(H42),"0x0"&DEC2HEX(H42)) -> 0x30 | F42: =IF(B42<=B17+3*constants!C64,messages!A19,messages!A79) -> OK | G42: Set the absolute maximum voltage the battery can afford | H42: =H15 -> 48 | I42: 1
A43: Maximum application voltage: | B43: 4.2 | C43: V | D43: reg_v_apl_max_hi | E43: =IF(H43>9,"0x"&DEC2HEX(H43),"0x0"&DEC2HEX(H43)) -> 0x3F | F43: =IF(AND(H43<>63,H43>=(H42-1)),messages!A35,IF(B43<=B17+3*constants!C64,messages!A15,IF(B43>constants!D67,messages!A16,messages!A79))) -> OK | G43: Set the absolute maximum voltage the application can afford | H43: =IF(B43<B42,(TRUNC(B43/constants!D64-1)+1),63) -> 63 | I43: 1
A45: Csts capacitor selection: refer to the chapter 6 of e8500_app_note_store_supervise.pdf
A46: STS always connected to LTS | B46: No | C46: -- | F46: =IF(AND(B37=constants!C60,B46=constants!B60),messages!A56,messages!A79) -> OK | G46: Set No in primary cell mode or if STS shall supply the application without any help from LTS in some condition
A47: Capacitor on VSUP (Csup) | B47: 1 | C47: uF | F47: =IF(OR(B92=constants!B60,settings!H43<63),IF(B47<constants!B71,messages!A20,messages!$A$79),messages!A79) -> OK | G47: Minimum capacity allowed is 1uF
A48: Capacitor on VAUX[0] (Caux0) | B48: 1 | C48: uF | F48: =IF(OR(B101=constants!$B$124,AND(settings!B101=constants!$D$124,settings!$H$43=63),AND(B101=constants!$E$124,$H$43=63)),messages!$A$79,IF(B48<constants!B72,messages!A21,messages!$A$79)) -> OK | G48: Minimum capacity allowed is 1uF if VAUX[0] used
A49: Capacitor on VAUX[1] (Caux1) | B49: 1 | C49: uF | F49: =IF(OR(B102=constants!$B$124,AND(settings!B102=constants!$D$124,settings!$H$43=63),AND(B102=constants!$E$124,$H$43=63)),messages!$A$79,IF(B49<constants!B73,messages!A22,messages!$A$79)) -> OK | G49: Minimum capacity allowed is 1uF if VAUX[1] used
A50: Capacitor on VAUX[2] (Caux2) | B50: 1 | C50: uF | F50: =IF(OR(B103=constants!$B$124,AND(settings!B103=constants!$D$124,settings!$H$43=63),AND(B103=constants!$E$124,$H$43=63)),messages!$A$79,IF(B50<constants!B74,messages!A23,messages!$A$79)) -> OK | G50: Minimum capacity allowed is 1uF if VAUX[2] used
A51: Csup switched on with other cap | B51: Yes | C51: -- | G51: Set "Yes" if Csup can be enabled together with others VAUX
A52: Caux0 switched on with other cap | B52: No | C52: -- | G52: Set "Yes" if Caux0 can be enabled together with VSUP or others VAUX
A53: Caux1 switched on with other cap | B53: No | C53: -- | G53: Set "Yes" if Caux1 can be enabled together with VSUP or others VAUX
A54: Caux2 switched on with other cap | B54: No | C54: -- | G54: Set "Yes" if Caux2 can be enabled together with VSUP or others VAUX
A55: Minimum Csts allowed | B55: 10 | C55: uF
A56: Capacitor on STS (Csts) | B56: 10 | C56: uF | F56: =IF(B56<B55,messages!A24,messages!A79) -> OK
A58: STS survey period: refer to the chapter 7 of e8500_app_note_store_supervise.pdf
A59: Minimum input power: Pin_min | B59: =IF(B14=constants!B8,settings!B20,settings!B26) -> 172.8 | C59: uW
A60: Maximum power loss @Pin_min in VLD allowed: VLDloss | B60: 0.2 | C60: %
A61: Minimum Tsts_period | B61: =IF((0.000003/(4*(B59/1000000)*B60))<1,1,0.000003/(4*(B59/1000000)*B60)) -> 1 | C61: ms | F61: =IF(B61>constants!B85,messages!A26,messages!A79) -> OK
A62: Effective Tsts_period | B62: 2 | C62: ms | D62: reg_t_sts_period | E62: ="0x0"&VLOOKUP(B62,constants!B78:D85,3,FALSE) -> 0x01 | F62: =IF(B62<B61,messages!A27,messages!A79) -> OK | G62: ="Shall be closer and just higher than Thrv_meas_ideal: "&IF(B61<=constants!B78,constants!B78,IF(B61<=constants!B79,constants!B79,IF(B61<=constants!B80,constants!B80,IF(B61<=constants!B81,constants!B81,IF(B61<=constants!B82,constants!B82,IF(B61<=constants!B83,constants!B83,IF(B61<=constants!B84,constants!B84,constants!B85)))))))&" ms" -> Shall be closer and just higher than Thrv_meas_ideal: 1 ms
A64: Hysteresis v_bat_min: refer to the chapter 8 of e8500_app_note_store_supervise.pdf
A65: Max avrg. consumption of apply when STS/LTS disconnected: Imax | B65: 0.1 | C65: mA | G65: Maximum consumption of application when STS & LTS disconnected
A66: High level of v_bat_min: LTS/STS disconnected | B66: =IF(B46=constants!B60,(settings!H66+1)*constants!D64,2*(B62/1000)*(B65/1000)/(B56/1000000)+((TRUNC(B17/constants!B64-1)+1)+1)*constants!D64) -> 2.86948 | C66: V | D66: reg_v_bat_min_hi_dis | E66: =IF(H66>9,"0x"&DEC2HEX(H66),"0x0"&DEC2HEX(H66)) -> 0x26 | F66: =IF(AND(H66<H43,H66<H42),messages!A79,IF(B46="No",messages!A28,messages!A79)) -> OK | H66: =IF(B46=constants!B60,settings!H67,(TRUNC(B66/constants!D64-1)+1)) -> 38 | I66: 1
A67: High level of v_bat_min: LTS/STS connected | B67: =(H67+1)*constants!D64 -> 2.90394 | C67: V | D67: reg_v_bat_min_hi_con | E67: =IF(H67>9,"0x"&DEC2HEX(H67),"0x0"&DEC2HEX(H67)) -> 0x26 | F67: =IF(H67<H43,messages!A79,messages!A30) -> OK | H67: =H17+1 -> 38 | I67: 1
A69: Level v_apl_max_lo: refer to the chapter 9 of e8500_app_note_store_supervise.pdf
A70: Maximum Vmpp | B70: 0.5 | C70: V | G70: Vmpp in best case condition (higher luminescence in case of solar cell for instance)
A71: Min LTS charge time | B71: 1 | C71: ms | G71: Minimum delay to charge LTS at maximum application consumption | H71: =TRUNC(39*constants!D64/constants!D64-1) -> 38
A72: Maximum input power for charging STS | B72: =IF((6.65*B70^2)>10,10,6.65*B70^2) -> 1.6625 | C72: mW | G72: Maximum input power when charging STS (cannot be higher than 10mW)
A73: Low level of v_apl_max_h | B73: =IF(H43=63,B43,IF(B46=constants!C60,IF(4*(B62/1000)*(B72/1000)/(B56/1000000)>B43^2,constants!B19,IF((B43-SQRT(B43^2-4*(B62/1000)*(B72/1000)/(B56/1000000)))>constants!D64,SQRT(B43^2-4*(B62/1000)*(B72/1000)/(B56/1000000)),H43*constants!D64)),(H73+1)*constants!B64)) -> 4.2 | C73: V | D73: reg_v_apl_max_lo | E73: =IF(H73>15,"0x"&DEC2HEX(H73),"0x0"&DEC2HEX(H73)) -> 0x3E | F73: =IF(OR(AND(H43<>63,H73<=H66),AND(H43<>63,H73<=H67)),messages!A29,IF(B73=constants!B19,messages!A31,IF(H43=63,messages!A79,IF(B46=constants!C60,IF(OR((H73+1)*constants!D64<((B71/1000)*(B65/1000)/(B56/1000000)+B66),H73>=H43),messages!A32,messages!A79),IF(H73<=H67,messages!A33,messages!A79))))) -> OK | H73: =IF(H43=63,62,IF(B46=constants!C60,IF(B73=constants!B19,H43-1,IF((B43-SQRT(B43^2-4*(B62/1000)*(B72/1000)/(B56/1000000)))>constants!D64,(TRUNC(B73/constants!D64-1)+1),H43-1)),H43-1)) -> 62 | I73: 1
A75: Level v_bat_max_lo: refer to the chapter 10 of e8500_app_note_store_supervise.pdf
A76: Low level of v_bat_min | B76: =IF(H43=63,IF(B46=constants!C60,IF(4*(B62/1000)*(B72/1000)/(B56/1000000)>B42^2,constants!B19,IF((B42-SQRT(B42^2-4*(B62/1000)*(B72/1000)/(B56/1000000)))>constants!D64,SQRT(B42^2-4*(B62/1000)*(B72/1000)/(B56/1000000)),H42*constants!D64)),H42*constants!D64),H42*constants!D64) -> 3.410278581 | C76: V | D76: reg_v_bat_max_lo | E76: =IF(B76=constants!B19,constants!B19,IF(H76>15,"0x"&DEC2HEX(H76),"0x0"&DEC2HEX(H76))) -> 0x2D | F76: =IF(AND(H76<=H43,H43<>63),messages!A36,IF(B76=constants!B19,messages!A34,IF(H43=63,IF(B46=constants!C60,IF(OR((H76+1)*constants!D64<((B71/1000)*(B65/1000)/(B56/1000000)+B66),H76>=H42),messages!A34,messages!A79),IF(H76<=H67,messages!A37,messages!A79)),IF(H76<=H67,messages!A37,messages!A79)))) -> OK | H76: =IF(B76=constants!B19,constants!B19,IF(H43=63,IF(B46=constants!C60,IF((B43-SQRT(B43^2-4*(B62/1000)*(B72/1000)/(B56/1000000)))>constants!D64,(TRUNC(B76/constants!D64-1)+1),H42-1),H42-1),H42-1)) -> 45 | I76: 1
A78: LTS survey period: refer to the chapter 11 of e8500_app_note_store_supervise.pdf
A79: Tlts_period | B79: 16 | C79: ms | D79: reg_t_lts_period | E79: ="0x0"&VLOOKUP(B79,constants!B88:D95,3,FALSE) -> 0x02 | F79: =messages!A70&(TRUNC(100*3000/(4*B79),0))/100&" nW" -> Note: the power consumption of the VLD use to measure LTS is: 46.87 nW
A80: Tlts_period in HRV LOW mode | B80: 32 | C80: ms | D80: reg_t_hrv_low_cfg.t_lts_hrv_low_period | E80: =VLOOKUP(B80,constants!B98:D105,3,FALSE) -> "010" | F80: =messages!A71&(TRUNC(100*3000/(4*B80),0))/100&" nW" -> Note: the power consumption of the VLD use to measure LTS in HRV LOW mode is: 23.43 nW | H80: =VLOOKUP(B80,constants!B98:E105,4,FALSE) -> 2 | I80: 1
A81: SUPPLY OUTPUTS VSUP, VAUX, VAUX_GND CONTROL: refer to "App Note 85 Supply Outputs"
A82: VSUP settings: refer to the chapter 2 of e8500_app_note_supply_control.pdf
A83: VSUP grounded when disabled | B83: Yes | C83: -- | D83: reg_ldo_cfg.vsup_tied_low | E83: =IF(B83=constants!$B$60,"'1'","'0'") -> '1' | H83: =IF(B83=constants!$B$60,1,0) -> 1 | I83: 128
A84: VSUP in sleep mode at start-up | B84: Yes | C84: -- | D84: reg_pwr_mgt.sleep_vsup | E84: =IF(B84=constants!$B$60,"'1'","'0'") -> '1' | F84: =IF(AND($B$84=constants!$B$60,settings!$B$90=constants!$B$109),messages!$A$66,messages!$A$79) -> OK | H84: =IF(B84=constants!$B$60,1,0) -> 1 | I84: 1
A85: VSUP disabled in HRV LOW mode | B85: No | C85: -- | D85: reg_pwr_cfg.dis_vsup_hrv_low | E85: =IF(B85=constants!$B$60,"'1'","'0'") -> '0' | F85: =IF(B85=constants!B60,messages!A59,messages!A79) -> OK | H85: =IF(B85=constants!$B$60,1,0) -> 0 | I85: 1
A86: Sleep counter delay | B86: 0 | C86: h | F86: =IF(H86>HEX2DEC("FFFFFF"),messages!A38,IF(H86=0,messages!A39,messages!A79)) -> OK | H86: =B89+1000*B88+1000*60*B87+1000*60*60*B86 -> 1000
B87: 0 | C87: min | D87: reg_t_sleep_vsup_hi | E87: =IF($F$86=messages!$A$79,IF(H87>15,"0x"&DEC2HEX(H87),"0x0"&DEC2HEX(H87)),constants!$B$19) -> 0x00 | H87: =TRUNC(H86/2^16) -> 0 | I87: 1
B88: 1 | C88: s | D88: reg_t_sleep_vsup_mid | E88: =IF($F$86=messages!$A$79,IF(H88>15,"0x"&DEC2HEX(H88),"0x0"&DEC2HEX(H88)),constants!$B$19) -> 0x03 | H88: =TRUNC((H86-H87*2^16)/(2^8)) -> 3 | I88: 1
B89: 0 | C89: ms | D89: reg_t_sleep_vsup_lo | E89: =IF($F$86=messages!$A$79,IF(H89>15,"0x"&DEC2HEX(H89),"0x0"&DEC2HEX(H89)),constants!$B$19) -> 0xE8 | H89: =H86-H87*2^16-H88*2^8 -> 232 | I89: 1
A90: Wake-up active edge selection | B90: falling edge | C90: -- | D90: reg_ext_cfg.wake_up_edge_cfg | E90: =HLOOKUP(B90,constants!B109:E110,2,FALSE) -> "01" | F90: =IF(AND($B$84=constants!$B$60,settings!$B$90=constants!$B$109),messages!$A$66,messages!$A$79) -> OK | H90: =HLOOKUP(B90,constants!B109:E111,3,FALSE) -> 1 | I90: 16
A91: Wake-up debouncer enabled | B91: Yes | C91: -- | D91: reg_ext_cfg.wake_up_deb_en | E91: =IF(B91=constants!B60,"'1'","'0'") -> '1' | H91: =IF(B91=constants!B60,1,0) -> 1 | I91: 64
A92: VSUP always connected to ULP LDO | B92: Yes | C92: -- | D92: reg_ldo_cfg.frc_ulp_ldo | E92: =IF(B92=constants!B60,"'1'","'0'") -> '1' | H92: =IF(B92=constants!B60,1,0) -> 1 | I92: 8
A93: VSUP & VAUX LDO level | B93: 2.6 | C93: V | D93: reg_ldo_cfg.v_ulp_ldo reg_ldo_cfg.v_vaux_ldo | E93: =VLOOKUP(B93,constants!B114:C121,2,FALSE) -> "111" | F93: =IF(B93>=B15,messages!A60,messages!A79) -> OK | H93: =VLOOKUP(B93,constants!B114:D121,3,FALSE) -> 7 | I93: 1
A94: VAUX settings: refer to the chapter 3 of e8500_app_note_supply_control.pdf
A95: VAUX[0] used | B95: Yes | C95: --
A96: VAUX[1] used | B96: Yes | C96: --
A97: VAUX[2] used | B97: Yes | C97: --
A98: VAUX[0] enabled at start-up | B98: No | C98: -- | D98: reg_pwr_mgt.vaux0_en | E98: =IF(B98=constants!$B$60,"'1'","'0'") -> '0' | F98: =IF(AND(B95=constants!$C$60,settings!B98=constants!$B$60),messages!$A$41,messages!$A$79) -> OK | H98: =IF(B98=constants!$B$60,1,0) -> 0 | I98: 2
A99: VAUX[1] enabled at start-up | B99: No | C99: -- | D99: reg_pwr_mgt.vaux1_en | E99: =IF(B99=constants!$B$60,"'1'","'0'") -> '0' | F99: =IF(AND(B96=constants!$C$60,settings!B99=constants!$B$60),messages!$A$41,messages!$A$79) -> OK | H99: =IF(B99=constants!$B$60,1,0) -> 0 | I99: 4
A100: VAUX[2] enabled at start-up | B100: No | C100: -- | D100: reg_pwr_mgt.vaux2_en | E100: =IF(B100=constants!$B$60,"'1'","'0'") -> '0' | F100: =IF(AND(B97=constants!$C$60,settings!B100=constants!$B$60),messages!$A$41,messages!$A$79) -> OK | H100: =IF(B100=constants!$B$60,1,0) -> 0 | I100: 8
A101: VAUX[0] connection configuration | B101: to VAUX LDO | C101: -- | D101: reg_vaux_cfg.vaux0_cfg | E101: =HLOOKUP(B101,constants!$B$124:$E$125,2,FALSE) -> "01" | F101: =IF(B95=constants!C60,messages!A79,IF(AND(B101=constants!B124,settings!B92=constants!C60,settings!H43=63),messages!A79,IF(AND(B101=constants!$C$124,$B$92=constants!$B$60,$B$93=$B$104),messages!$A$79,IF(AND($B$92=constants!$C$60,OR(B101=constants!$D$124,B101=constants!$E$124)),messages!$A$79,messages!A61)))) -> OK | H101: =HLOOKUP(B101,constants!$B$124:$E$126,3,FALSE) -> 1 | I101: 1
A102: VAUX[1] connection configuration | B102: to VAUX LDO | C102: -- | D102: reg_vaux_cfg.vaux1_cfg | E102: =HLOOKUP(B102,constants!$B$124:$E$125,2,FALSE) -> "01" | F102: =IF(B96=constants!C60,messages!A79,IF(AND(B102=constants!B124,settings!B92=constants!C60,settings!H43=63),messages!A79,IF(AND(B102=constants!$C$124,$B$92=constants!$B$60,$B$93=$B$104),messages!$A$79,IF(AND($B$92=constants!$C$60,OR(B102=constants!$D$124,B102=constants!$E$124)),messages!$A$79,messages!A62)))) -> OK | H102: =HLOOKUP(B102,constants!$B$124:$E$126,3,FALSE) -> 1 | I102: 4
A103: VAUX[2] connection configuration | B103: to VAUX LDO | C103: -- | D103: reg_vaux_cfg.vaux2_cfg | E103: =HLOOKUP(B103,constants!$B$124:$E$125,2,FALSE) -> "01" | F103: =IF(B97=constants!C60,messages!A79,IF(AND(B103=constants!B124,settings!B92=constants!C60,settings!H43=63),messages!A79,IF(AND(B103=constants!$C$124,$B$92=constants!$B$60,$B$93=$B$104),messages!$A$79,IF(AND($B$92=constants!$C$60,OR(B103=constants!$D$124,B103=constants!$E$124)),messages!$A$79,messages!A63)))) -> OK | H103: =HLOOKUP(B103,constants!$B$124:$E$126,3,FALSE) -> 1 | I103: 16
A104: VAUX ldo level v_aux_ldo | B104: =B93 -> 2.6 | C104: V | D104: reg_ldo_cfg.v_vaux_ldo | E104: =VLOOKUP(B104,constants!B129:C136,2,FALSE) -> "111" | F104: =IF(B104>=B15,messages!A60,messages!A79) -> OK | H104: =VLOOKUP(B104,constants!B129:D136,3,FALSE) -> 7 | I104: 16
A105: Disable VAUX[0] in HRV LOW mode | B105: No | C105: -- | D105: reg_pwr_cfg.dis_vaux0_hrv_low | E105: =IF(B105=constants!$B$60,"'1'","'0'") -> '0' | H105: =IF(B105=constants!$B$60,1,0) -> 0 | I105: 2
A106: Disable VAUX[1] in HRV LOW mode | B106: No | C106: -- | D106: reg_pwr_cfg.dis_vaux1_hrv_low | E106: =IF(B106=constants!$B$60,"'1'","'0'") -> '0' | H106: =IF(B106=constants!$B$60,1,0) -> 0 | I106: 4
A107: Disable VAUX[2] in HRV LOW mode | B107: No | C107: -- | D107: reg_pwr_cfg.dis_vaux2_hrv_low | E107: =IF(B107=constants!$B$60,"'1'","'0'") -> '0' | H107: =IF(B107=constants!$B$60,1,0) -> 0 | I107: 8
A108: VAUX_GND settings: refer to the chapter 4 of e8500_app_note_supply_control.pdf
A109: VAUX_GND[0] enabled at start-up | B109: No | C109: -- | D109: reg_pwr_mgt.vaux_gnd0_en | E109: =IF(B109=constants!$B$60,"'1'","'0'") -> '0' | H109: =IF(B109=constants!$B$60,1,0) -> 0 | I109: 16
A110: VAUX_GND[1] enabled at start-up | B110: No | C110: -- | D110: reg_pwr_mgt.vaux_gnd1_en | E110: =IF(B110=constants!$B$60,"'1'","'0'") -> '0' | H110: =IF(B110=constants!$B$60,1,0) -> 0 | I110: 32
A111: VAUX_GND[2] enabled at start-up | B111: No | C111: -- | D111: reg_pwr_mgt.vaux_gnd2_en | E111: =IF(B111=constants!$B$60,"'1'","'0'") -> '0' | H111: =IF(B111=constants!$B$60,1,0) -> 0 | I111: 64
A112: VAUX_GND[0] connection configuration | B112: whatever STS | C112: -- | D112: reg_vaux_gnd_cfg.vaux0_cfg | E112: =HLOOKUP($B112,constants!$B$138:$C$139,2,FALSE) -> '0' | G112: VAUX_GND[0] is disabled automatically when VDD_STS > v_apl_max_hi if option "Auto connect" is selected | H112: =HLOOKUP($B112,constants!$B$138:$C$140,3,FALSE) -> 0 | I112: 1
A113: VAUX_GND[1] connection configuration | B113: whatever STS | C113: -- | D113: reg_vaux_gnd_cfg.vaux1_cfg | E113: =HLOOKUP($B113,constants!$B$138:$C$139,2,FALSE) -> '0' | G113: VAUX_GND[1] is disabled automatically when VDD_STS > v_apl_max_hi if option "Auto connect" is selected | H113: =HLOOKUP($B113,constants!$B$138:$C$140,3,FALSE) -> 0 | I113: 2
A114: VAUX_GND[2] connection configuration | B114: whatever STS | C114: -- | D114: reg_vaux_gnd_cfg.vaux2_cfg | E114: =HLOOKUP($B114,constants!$B$138:$C$139,2,FALSE) -> '0' | G114: VAUX_GND[2] is disabled automatically when VDD_STS > v_apl_max_hi if option "Auto connect" is selected | H114: =HLOOKUP($B114,constants!$B$138:$C$140,3,FALSE) -> 0 | I114: 4
A115: Disable VAUX_GND[0] in HRV LOW mode | B115: No | C115: -- | D115: reg_pwr_cfg.dis_vaux_gnd0_hrv_low | E115: =IF(B115=constants!$B$60,"'1'","'0'") -> '0' | H115: =IF(B115=constants!$B$60,1,0) -> 0 | I115: 16
A116: Disable VAUX_GND[1] in HRV LOW mode | B116: No | C116: -- | D116: reg_pwr_cfg.dis_vaux_gnd1_hrv_low | E116: =IF(B116=constants!$B$60,"'1'","'0'") -> '0' | H116: =IF(B116=constants!$B$60,1,0) -> 0 | I116: 32
A117: Disable VAUX_GND[2] in HRV LOW mode | B117: No | C117: -- | D117: reg_pwr_cfg.dis_vaux_gnd2_hrv_low | E117: =IF(B117=constants!$B$60,"'1'","'0'") -> '0' | H117: =IF(B117=constants!$B$60,1,0) -> 0 | I117: 64
A118: USB AND SERIAL INTERFACE SETTINGS
A119: USB configuration:
A120: USB LDO always disabled | B120: No | C120: -- | D120: reg_pwr_cfg.usb_ldo_frc_dis | E120: =IF(B120=constants!$B$60,"'1'","'0'") -> '0' | G120: Disable USB LDO in debug mode; VDD_USB does not support VDD_STS even if USB cable is connected | H120: =IF(B120=constants!$B$60,1,0) -> 0 | I120: 128
A121: USB forces HRV_LOW Hi-Z | B121: No | C121: -- | D121: reg_ext_cfg.usb_frc_hrv_low_hiz | E121: =IF(B121=constants!$B$60,"'1'","'0'") -> '0' | G121: HRV_LOW pin is Hi-Z when USB detected if Yes | H121: =IF(B121=constants!$B$60,1,0) -> 0 | I121: 8
A122: USB forces BAT_LOW Hi-Z | B122: No | C122: -- | D122: reg_ext_cfg.usb_frc_bat_low_hiz | E122: =IF(B122=constants!$B$60,"'1'","'0'") -> '0' | G122: BAT_LOW pin is Hi-Z when USB detected if Yes | H122: =IF(B122=constants!$B$60,1,0) -> 0 | I122: 4
A123: USB battery charger current source level | B123: 0 | C123: mA | D123: reg_ext_cfg.usb_crt_src_sel | E123: =HLOOKUP(B123,constants!B142:E143,2,FALSE) -> "00" | G123: USB current source disabled if 0mA selected | H123: =HLOOKUP(B123,constants!B142:E144,3,FALSE) -> 0 | I123: 1
A124: Serial interface settings:
A125: SDA slope control | B125: Standard | C125: -- | D125: reg_ext_cfg.sdi_slopectrl | E125: =IF($B125=constants!$B$147,"'0'","'1'") -> '0' | G125: Set Hi-speed only if I2C is used in Hi-speed mode and if VSUP is higher than 1.8V | H125: =IF($B125=constants!$B$147,0,1) -> 0 | I125: 128
A126: SPI configuration | B126: 4 wires | C126: -- | D126: reg_spi_i2c_cfg.spi_3w_en | E126: =HLOOKUP(B126,constants!B148:C149,2,FALSE) -> '0' | G126: If 3 wires is selected, input & output data share the same IO MOSI_SDA | H126: =HLOOKUP(B126,constants!B148:C150,3,FALSE) -> 0 | I126: 128
A127: I2C address | B127: 77 | C127: hex | D127: reg_spi_i2c_cfg.i2c_addr | E127: =IF(J127>127,constants!B19,IF(J127>15,"0x"&DEC2HEX(J127),"0x0"&DEC2HEX(J127))) -> 0x77 | F127: =IF(HEX2DEC(B127)>127,messages!A40,messages!A79) -> OK | H127: =IF(E127=constants!B19,0,HEX2DEC(settings!B127)) -> 119 | I127: 1 | J127: =IF(C127=constants!$B$152,HEX2DEC(B127),IF(C127=constants!$C$152,HEX2DEC(DEC2HEX(B127)),BIN2DEC(B127))) -> 119
A128: FREE EEPROM AREA
A129: Free EEPROM area settings:
A130: 126 | B130: FF | C130: hex | D130: -- | E130: =IF(J130>15,"0x"&DEC2HEX(J130),"0x0"&DEC2HEX(J130)) -> 0xFF | G130: EEPROM area free for user | J130: =IF(C130=constants!$B$152,HEX2DEC(B130),IF(C130=constants!$C$152,HEX2DEC(DEC2HEX(B130)),BIN2DEC(B130))) -> 255
A131: =A130+101 -> 227 | B131: FF | C131: hex | D131: -- | E131: =IF(J131>15,"0x"&DEC2HEX(J131),"0x0"&DEC2HEX(J131)) -> 0xFF | G131: EEPROM area free for user | J131: =IF(C131=constants!$B$152,HEX2DEC(B131),IF(C131=constants!$C$152,HEX2DEC(DEC2HEX(B131)),BIN2DEC(B131))) -> 255
A132: =A131+101 -> 328 | B132: FF | C132: hex | D132: -- | E132: 0xFF | G132: EEPROM area free for user | J132: =IF(C132=constants!$B$152,HEX2DEC(B132),IF(C132=constants!$C$152,HEX2DEC(DEC2HEX(B132)),BIN2DEC(B132))) -> 255
A133: 429 | B133: FF | C133: hex | D133: -- | E133: 0xFF | G133: EEPROM area free for user | J133: =IF(C133=constants!$B$152,HEX2DEC(B133),IF(C133=constants!$C$152,HEX2DEC(DEC2HEX(B133)),BIN2DEC(B133))) -> 255
A134: 530 | B134: FF | C134: hex | D134: -- | E134: 0xFF | G134: EEPROM area free for user | J134: =IF(C134=constants!$B$152,HEX2DEC(B134),IF(C134=constants!$C$152,HEX2DEC(DEC2HEX(B134)),BIN2DEC(B134))) -> 255
A135: 631 | B135: FF | C135: hex | D135: -- | E135: 0xFF | G135: EEPROM area free for user | J135: =IF(C135=constants!$B$152,HEX2DEC(B135),IF(C135=constants!$C$152,HEX2DEC(DEC2HEX(B135)),BIN2DEC(B135))) -> 255
A136: 732 | B136: FF | C136: hex | D136: -- | E136: 0xFF | G136: EEPROM area free for user | J136: =IF(C136=constants!$B$152,HEX2DEC(B136),IF(C136=constants!$C$152,HEX2DEC(DEC2HEX(B136)),BIN2DEC(B136))) -> 255
A137: 833 | B137: FF | C137: hex | D137: -- | E137: 0xFF | G137: EEPROM area free for user | J137: =IF(C137=constants!$B$152,HEX2DEC(B137),IF(C137=constants!$C$152,HEX2DEC(DEC2HEX(B137)),BIN2DEC(B137))) -> 255
A138: 934 | B138: FF | C138: hex | D138: -- | E138: 0xFF | G138: EEPROM area free for user | J138: =IF(C138=constants!$B$152,HEX2DEC(B138),IF(C138=constants!$C$152,HEX2DEC(DEC2HEX(B138)),BIN2DEC(B138))) -> 255
A139: 1035 | B139: FF | C139: hex | D139: -- | E139: 0xFF | G139: EEPROM area free for user | J139: =IF(C139=constants!$B$152,HEX2DEC(B139),IF(C139=constants!$C$152,HEX2DEC(DEC2HEX(B139)),BIN2DEC(B139))) -> 255
A140: 1136 | B140: FF | C140: hex | D140: -- | E140: 0xFF | G140: EEPROM area free for user | J140: =IF(C140=constants!$B$152,HEX2DEC(B140),IF(C140=constants!$C$152,HEX2DEC(DEC2HEX(B140)),BIN2DEC(B140))) -> 255
A141: 1237 | B141: FF | C141: hex | D141: -- | E141: 0xFF | G141: EEPROM area free for user | J141: =IF(C141=constants!$B$152,HEX2DEC(B141),IF(C141=constants!$C$152,HEX2DEC(DEC2HEX(B141)),BIN2DEC(B141))) -> 255
A142: 1338 | B142: FF | C142: hex | D142: -- | E142: 0xFF | G142: EEPROM area free for user | J142: =IF(C142=constants!$B$152,HEX2DEC(B142),IF(C142=constants!$C$152,HEX2DEC(DEC2HEX(B142)),BIN2DEC(B142))) -> 255
A143: 1439 | B143: FF | C143: hex | D143: -- | E143: 0xFF | G143: EEPROM area free for user | J143: =IF(C143=constants!$B$152,HEX2DEC(B143),IF(C143=constants!$C$152,HEX2DEC(DEC2HEX(B143)),BIN2DEC(B143))) -> 255
A144: 1540 | B144: FF | C144: hex | D144: -- | E144: 0xFF | G144: EEPROM area free for user | J144: =IF(C144=constants!$B$152,HEX2DEC(B144),IF(C144=constants!$C$152,HEX2DEC(DEC2HEX(B144)),BIN2DEC(B144))) -> 255
A145: 1641 | B145: FF | C145: hex | D145: -- | E145: 0xFF | G145: EEPROM area free for user | J145: =IF(C145=constants!$B$152,HEX2DEC(B145),IF(C145=constants!$C$152,HEX2DEC(DEC2HEX(B145)),BIN2DEC(B145))) -> 255
A146: 1742 | B146: FF | C146: hex | D146: -- | E146: 0xFF | G146: EEPROM area free for user | J146: =IF(C146=constants!$B$152,HEX2DEC(B146),IF(C146=constants!$C$152,HEX2DEC(DEC2HEX(B146)),BIN2DEC(B146))) -> 255
A147: 1843 | B147: FF | C147: hex | D147: -- | E147: 0xFF | G147: EEPROM area free for user | J147: =IF(C147=constants!$B$152,HEX2DEC(B147),IF(C147=constants!$C$152,HEX2DEC(DEC2HEX(B147)),BIN2DEC(B147))) -> 255
A148: 1944 | B148: FF | C148: hex | D148: -- | E148: 0xFF | G148: EEPROM area free for user | J148: =IF(C148=constants!$B$152,HEX2DEC(B148),IF(C148=constants!$C$152,HEX2DEC(DEC2HEX(B148)),BIN2DEC(B148))) -> 255
A149: 2045 | B149: FF | C149: hex | D149: -- | E149: 0xFF | G149: EEPROM area free for user | J149: =IF(C149=constants!$B$152,HEX2DEC(B149),IF(C149=constants!$C$152,HEX2DEC(DEC2HEX(B149)),BIN2DEC(B149))) -> 255
A150: 2146 | B150: FF | C150: hex | D150: -- | E150: 0xFF | G150: EEPROM area free for user | J150: =IF(C150=constants!$B$152,HEX2DEC(B150),IF(C150=constants!$C$152,HEX2DEC(DEC2HEX(B150)),BIN2DEC(B150))) -> 255
A151: 2247 | B151: FF | C151: hex | D151: -- | E151: 0xFF | G151: EEPROM area free for user | J151: =IF(C151=constants!$B$152,HEX2DEC(B151),IF(C151=constants!$C$152,HEX2DEC(DEC2HEX(B151)),BIN2DEC(B151))) -> 255
A152: 2348 | B152: FF | C152: hex | D152: -- | E152: 0xFF | G152: EEPROM area free for user | J152: =IF(C152=constants!$B$152,HEX2DEC(B152),IF(C152=constants!$C$152,HEX2DEC(DEC2HEX(B152)),BIN2DEC(B152))) -> 255
A153: 2449 | B153: FF | C153: hex | D153: -- | E153: 0xFF | G153: EEPROM area free for user | J153: =IF(C153=constants!$B$152,HEX2DEC(B153),IF(C153=constants!$C$152,HEX2DEC(DEC2HEX(B153)),BIN2DEC(B153))) -> 255
A154: 2550 | B154: FF | C154: hex | D154: -- | E154: 0xFF | G154: EEPROM area free for user | J154: =IF(C154=constants!$B$152,HEX2DEC(B154),IF(C154=constants!$C$152,HEX2DEC(DEC2HEX(B154)),BIN2DEC(B154))) -> 255
A155: 2651 | B155: FF | C155: hex | D155: -- | E155: 0xFF | G155: EEPROM area free for user | J155: =IF(C155=constants!$B$152,HEX2DEC(B155),IF(C155=constants!$C$152,HEX2DEC(DEC2HEX(B155)),BIN2DEC(B155))) -> 255
A156: 2752 | B156: FF | C156: hex | D156: -- | E156: 0xFF | G156: EEPROM area free for user | J156: =IF(C156=constants!$B$152,HEX2DEC(B156),IF(C156=constants!$C$152,HEX2DEC(DEC2HEX(B156)),BIN2DEC(B156))) -> 255

Sheet register map
A1: EM8500 register map | I1: =IF(L10<=L11,messages!A44,IF(L15<=L16,messages!A45,IF(OR(L12<=L14,L13<=L14),messages!A46,IF(OR(L12>=L16,L13>=L16),messages!A47,IF(OR(L12>=L11,L13>=L11),messages!A48,IF(MID(H22,3,2)="00",messages!A49,IF(COUNTIF(F3:F28,"")<>26,messages!A65,settings!E4))))))) -> OK
A2: Register name in EEPROM area | B2: Address | C2: Related register | D2: Calc Value [hex] | E2: DEC | F2: Overwrite [hex] | G2: Effective [hex] | I2: Physical representation
A3: eeprom0 | B3: 0x40 | C3: reg_t_hrv_period | D3: =settings!E32 -> 0x04 | G3: =IF(F3="",D3,IF(HEX2DEC(F3)<16,"0x0"&F3,"0x"&F3)) -> 0x04 | H3: =TEXT(HEX2BIN(MID(G3,3,2)),"00000000") -> 00000100 | I3: =VLOOKUP(VALUE(MID(H3,6,3)),constants!A51:C58,3,FALSE)&" ms" -> 4096 ms
A4: eeprom1 | B4: 0x41 | C4: reg_t_hrv_meas | D4: =settings!E31 -> 0x03 | G4: 0x03 | H4: =TEXT(HEX2BIN(MID(G4,3,2)),"00000000") -> 00000011 | I4: =VLOOKUP(VALUE(MID(H4,6,3)),constants!A51:B58,2,FALSE)&" ms" -> 128 ms
A5: eeprom2 | B5: 0x42 | C5: reg_t_sts_period | D5: =settings!E62 -> 0x01 | G5: 0x01 | H5: 00000001 | I5: =VLOOKUP(BIN2DEC(MID(H5,6,3)),constants!A78:B85,2,FALSE)&" ms" -> 2 ms
A6: eeprom3 | B6: 0x43 | C6: reg_t_lts_period | D6: =settings!E79 -> 0x02 | G6: 0x02 | H6: 00000010 | I6: =VLOOKUP(BIN2DEC(MID(H6,6,3)),constants!A88:B95,2,FALSE)&" ms" -> 16 ms
A7: eeprom4 | B7: 0x44 | C7: reg_v_hrv_cfg | D7: =IF(E7>15,"0x"&DEC2HEX(E7),"0x0"&DEC2HEX(E7)) -> 0x43 | E7: =(PRODUCT(settings!H14:I14)+PRODUCT(settings!H19:I19)) -> 67 | G7: 0x43 | H7: 01000011 | I7: =IF(MID(H7,2,1)="1",constants!B186,constants!B185) -> HRV check by Vopen-voltage | J7: ="v_hrv_min: "&TEXT((BIN2DEC(MID(H7,3,6))+1)*constants!C64,"0.000")&" V (TYP)" -> v_hrv_min: 0.292 V (TYP)
A8: eeprom5 | B8: 0x45 | C8: reg_hrv_check_lvl | D8: =settings!E25 -> 0x00 | G8: 0x00 | H8: 00000000 | I8: =(BIN2DEC(MID(H8,5,4))+1)&" µA" -> 1 µA
A9: eeprom6 | B9: 0x46 | C9: reg_lts_cfg | D9: =IF(E9>15,"0x"&DEC2HEX(E9),"0x0"&DEC2HEX(E9)) -> 0x00 | E9: =PRODUCT(settings!H37:I37)+PRODUCT(settings!H38:I38)+PRODUCT(settings!H39:I39) -> 0 | G9: 0x00 | H9: 00000000 | I9: =IF(MID(H9,7,1)="0",constants!C190,IF(MID(H9,6,1)="0",constants!C191&" & "&constants!B190,constants!C191&" & "&constants!B191)) -> rechargeable battery | K9: =IF(MID(H9,8,1)="0",constants!D190,constants!D191) -> battery protection on
A10: eeprom7 | B10: 0x47 | C10: reg_v_bat_max_hi | D10: =settings!E42 -> 0x30 | G10: 0x30 | H10: 00110000 | I10: =TEXT((BIN2DEC(MID(H10,3,6))+1)*constants!$C$64,"0.000")&" V (TYP)" -> 3.577 V (TYP) | L10: =BIN2DEC(H10) -> 48
A11: eeprom8 | B11: 0x48 | C11: reg_v_bat_max_lo | D11: =settings!E76 -> 0x2D | G11: 0x2D | H11: 00101101 | I11: =TEXT((BIN2DEC(MID(H11,3,6))+1)*constants!$C$64,"0.000")&" V (TYP)" -> 3.358 V (TYP) | L11: 45
A12: eeprom9 | B12: 0x49 | C12: reg_v_bat_min_hi_dis | D12: =settings!E66 -> 0x26 | G12: 0x26 | H12: 00100110 | I12: =TEXT((BIN2DEC(MID(H12,3,6))+1)*constants!$C$64,"0.000")&" V (TYP)" -> 2.847 V (TYP) | L12: 38
A13: eeprom10 | B13: 0x4A | C13: reg_v_bat_min_hi_con | D13: =settings!E67 -> 0x26 | G13: 0x26 | H13: 00100110 | I13: =TEXT((BIN2DEC(MID(H13,3,6))+1)*constants!$C$64,"0.000")&" V (TYP)" -> 2.847 V (TYP) | L13: 38
A14: eeprom11 | B14: 0x4B | C14: reg_v_bat_min_lo | D14: =settings!E17 -> 0x25 | G14: 0x25 | H14: 00100101 | I14: =TEXT((BIN2DEC(MID(H14,3,6))+1)*constants!$C$64,"0.000")&" V (TYP)" -> 2.774 V (TYP) | L14: 37
A15: eeprom12 | B15: 0x4C | C15: reg_v_apl_max_hi | D15: =settings!E43 -> 0x3F | G15: 0x3F | H15: 00111111 | I15: =TEXT((BIN2DEC(MID(H15,3,6))+1)*constants!$C$64,"0.000")&" V (TYP)" -> 4.672 V (TYP) | L15: 63
A16: eeprom13 | B16: 0x4D | C16: reg_v_apl_max_lo | D16: =settings!E73 -> 0x3E | G16: 0x3E | H16: 00111110 | I16: =TEXT((BIN2DEC(MID(H16,3,6))+1)*constants!$C$64,"0.000")&" V (TYP)" -> 4.599 V (TYP) | L16: 62
A17: eeprom14 | B17: 0x4E | C17: reg_ldo_cfg | D17: =IF(E17>15,"0x"&DEC2HEX(E17),"0x0"&DEC2HEX(E17)) -> 0xFF | E17: =PRODUCT(settings!H83:I83)+PRODUCT(settings!H92:I92)+PRODUCT(settings!H93:I93)+PRODUCT(settings!H104:I104) -> 255 | G17: 0xFF | H17: 11111111 | I17: ="VAUX LDO: "&VLOOKUP(VALUE(MID($H$17,2,3)),constants!$A$129:$B$136,2,FALSE)&" V" -> VAUX LDO: 2.6 V | J17: ="ULP LDO: "&VLOOKUP(VALUE(MID($H$17,6,3)),constants!$A$114:$B$121,2,FALSE)&" V" -> ULP LDO: 2.6 V
A18: eeprom15 | B18: 0x4F | C18: reg_pwr_cfg | D18: =IF(E18>15,"0x"&DEC2HEX(E18),"0x0"&DEC2HEX(E18)) -> 0x00 | E18: =PRODUCT(settings!H85:I85)+PRODUCT(settings!H105:I105)+PRODUCT(settings!H106:I106)+PRODUCT(settings!H107:I107)+PRODUCT(settings!H115:I115)+PRODUCT(settings!H116:I116)+PRODUCT(settings!H117:I117)+PRODUCT(settings!H120:I120) -> 0 | G18: 0x00 | H18: 00000000
A19: eeprom16 | B19: 0x50 | C19: reg_vaux_cfg | D19: =IF(E19>15,"0x"&DEC2HEX(E19),"0x0"&DEC2HEX(E19)) -> 0x15 | E19: =PRODUCT(settings!H101:I101)+PRODUCT(settings!H102:I102)+PRODUCT(settings!H103:I103) -> 21 | G19: 0x15 | H19: 00010101
A20: eeprom17 | B20: 0x51 | C20: reg_vaux_gnd_cfg | D20: =IF(E20>15,"0x"&DEC2HEX(E20),"0x0"&DEC2HEX(E20)) -> 0x00 | E20: =PRODUCT(settings!H112:I112)+PRODUCT(settings!H113:I113)+PRODUCT(settings!H114:I114) -> 0 | G20: 0x00 | H20: 00000000
A21: eeprom18 | B21: 0x52 | C21: reg_mppt_ratio | D21: =settings!E11 -> 0x00 | G21: 0x00 | H21: 00000000 | I21: =TEXT(HLOOKUP(VALUE(MID(H21,5,4)),constants!B5:Q6,2,FALSE),"0%") -> 50%
A22: eeprom19 | B22: 0x53 | C22: reg_ext_cfg | D22: =IF(E22>15,"0x"&DEC2HEX(E22),"0x0"&DEC2HEX(E22)) -> 0x50 | E22: =PRODUCT(settings!H90:I90)+PRODUCT(settings!H91:I91)+PRODUCT(settings!H121:I121)+PRODUCT(settings!H122:I122)+PRODUCT(settings!H123:I123)+PRODUCT(settings!H125:I125) -> 80 | G22: 0x50 | H22: 01010000 | I22: =VLOOKUP(MID($H22,N$67+2,2),constants!A172:B175,2,FALSE) -> USB crt source 0 mA
A23: eeprom20 | B23: 0x54 | C23: reg_t_sleep_vsup_lo | D23: =settings!E89 -> 0xE8 | G23: 0xE8 | I23: Sleep delay
A24: eeprom21 | B24: 0x55 | C24: reg_t_sleep_vsup_mid | D24: =settings!E88 -> 0x03 | G24: 0x03 | I24: h:min:sec:ms
A25: eeprom22 | B25: 0x56 | C25: reg_t_sleep_vsup_hi | D25: =settings!E87 -> 0x00 | G25: 0x00 | I25: =L25&":"&M25&":"&N25&":"&O25 -> 0:0:1:0 | L25: =TRUNC((HEX2DEC(MID(G25,3,2))*256*256+HEX2DEC(MID(G24,3,2))*256+HEX2DEC(MID(G23,3,2)))/(1000*60*60),0) -> 0 | M25: =TRUNC((HEX2DEC(MID(G25,3,2))*256*256+HEX2DEC(MID(G24,3,2))*256+HEX2DEC(MID(G23,3,2)))/(1000*60)-L25*60,0) -> 0 | N25: =TRUNC((HEX2DEC(MID(G25,3,2))*256*256+HEX2DEC(MID(G24,3,2))*256+HEX2DEC(MID(G23,3,2)))/(1000)-L25*3600-M25*60,0) -> 1 | O25: =(HEX2DEC(MID(G25,3,2))*256*256+HEX2DEC(MID(G24,3,2))*256+HEX2DEC(MID(G23,3,2)))-N25*1000-M25*1000*60-L25*1000*60*60 -> 0
A26: eeprom23 | B26: 0x57 | C26: reg_t_hrv_low_cfg | D26: =IF(E26>15,"0x"&DEC2HEX(E26),"0x0"&DEC2HEX(E26)) -> 0x02 | E26: =PRODUCT(settings!H80:I80)+PRODUCT(settings!H34:I34) -> 2 | G26: 0x02 | H26: 00000010 | I26: ="t_hrv_low_period: "&VLOOKUP(VALUE(MID(H26,2,3)),constants!A51:C58,3,FALSE)&" ms" -> t_hrv_low_period: 256 ms | J26: ="t_lts_hrv_low_period: "&VLOOKUP(BIN2DEC(MID(H26,6,3)),constants!A98:B105,2,FALSE)&" ms" -> t_lts_hrv_low_period: 32 ms
A27: eeprom24 | B27: 0x58 | C27: reg_spi_i2c_cfg | D27: =IF(E27>15,"0x"&DEC2HEX(E27),"0x0"&DEC2HEX(E27)) -> 0x77 | E27: =PRODUCT(settings!H126:I126)+PRODUCT(settings!H127:I127) -> 119 | G27: 0x77 | H27: 01110111 | I27: ="I2C address: "&BIN2HEX(MID(H27,2,7)) -> I2C address: 77
A28: eeprom25 | B28: 0x59 | C28: reg_pwr_mgt | D28: =IF(E28>15,"0x"&DEC2HEX(E28),"0x0"&DEC2HEX(E28)) -> 0x01 | E28: =PRODUCT(settings!H84:I84)+PRODUCT(settings!H98:I98)+PRODUCT(settings!H99:I99)+PRODUCT(settings!H100:I100)+PRODUCT(settings!H109:I109)+PRODUCT(settings!H110:I110)+PRODUCT(settings!H111:I111) -> 1 | G28: 0x01 | H28: 00000001
A29: eeprom26 | B29: 0x5A | C29: 1 | D29: =settings!E130 -> 0xFF | G29: =IF(F29="",D29,"0x"&F29) -> 0xFF
A30: eeprom27 | B30: 0x5B | C30: =C29+1 -> 2 | D30: =settings!E131 -> 0xFF | G30: =D30 -> 0xFF
A31: eeprom28 | B31: 0x5C | C31: =C30+1 -> 3 | D31: =settings!E132 -> 0xFF | G31: 0xFF
A32: eeprom29 | B32: 0x5D | C32: 4 | D32: =settings!E133 -> 0xFF | G32: 0xFF
A33: eeprom30 | B33: 0x5E | C33: 5 | D33: =settings!E134 -> 0xFF | G33: 0xFF
A34: eeprom31 | B34: 0x5F | C34: 6 | D34: =settings!E135 -> 0xFF | G34: 0xFF
A35: eeprom32 | B35: 0x60 | C35: 7 | D35: =settings!E136 -> 0xFF | G35: 0xFF
A36: eeprom33 | B36: 0x61 | C36: 8 | D36: =settings!E137 -> 0xFF | G36: 0xFF
A37: eeprom34 | B37: 0x62 | C37: 9 | D37: =settings!E138 -> 0xFF | G37: 0xFF
A38: eeprom35 | B38: 0x63 | C38: 10 | D38: =settings!E139 -> 0xFF | G38: 0xFF
A39: eeprom36 | B39: 0x64 | C39: 11 | D39: =settings!E140 -> 0xFF | G39: 0xFF
A40: eeprom37 | B40: 0x65 | C40: 12 | D40: =settings!E141 -> 0xFF | G40: 0xFF
A41: eeprom38 | B41: 0x66 | C41: 13 | D41: =settings!E142 -> 0xFF | G41: 0xFF
A42: eeprom39 | B42: 0x67 | C42: 14 | D42: =settings!E143 -> 0xFF | G42: 0xFF
A43: eeprom40 | B43: 0x68 | C43: 15 | D43: =settings!E144 -> 0xFF | G43: 0xFF
A44: eeprom41 | B44: 0x69 | C44: 16 | D44: =settings!E145 -> 0xFF | G44: 0xFF
A45: eeprom42 | B45: 0x6A | C45: 17 | D45: =settings!E146 -> 0xFF | G45: 0xFF
A46: eeprom43 | B46: 0x6B | C46: 18 | D46: =settings!E147 -> 0xFF | G46: 0xFF
A47: eeprom44 | B47: 0x6C | C47: 19 | D47: =settings!E148 -> 0xFF | G47: 0xFF
A48: eeprom45 | B48: 0x6D | C48: 20 | D48: =settings!E149 -> 0xFF | G48: 0xFF
A49: eeprom46 | B49: 0x6E | C49: 21 | D49: =settings!E150 -> 0xFF | G49: 0xFF
A50: eeprom47 | B50: 0x6F | C50: 22 | D50: =settings!E151 -> 0xFF | G50: 0xFF
A51: eeprom48 | B51: 0x70 | C51: 23 | D51: =settings!E152 -> 0xFF | G51: 0xFF
A52: eeprom49 | B52: 0x71 | C52: 24 | D52: =settings!E153 -> 0xFF | G52: 0xFF
A53: eeprom50 | B53: 0x72 | C53: 25 | D53: =settings!E154 -> 0xFF | G53: 0xFF
A54: eeprom51 | B54: 0x73 | C54: 26 | D54: =settings!E155 -> 0xFF | G54: 0xFF
A55: eeprom52 | B55: 0x74 | C55: 27 | D55: =settings!E156 -> 0xFF | G55: 0xFF
A56: eeprom53 | B56: 0x75 | C56: reserved | D56: X | G56: X
A57: eeprom54 | B57: 0x76 | C57: reserved | D57: X | G57: X
A58: eeprom55 | B58: 0x77 | C58: reserved | D58: X | G58: X
A59: eeprom56 | B59: 0x78 | C59: reserved | D59: X | G59: X
A60: eeprom57 | B60: 0x79 | C60: reserved | D60: X | G60: X
A61: eeprom58 | B61: 0x7A | C61: reserved | D61: X | G61: X
A62: eeprom59 | B62: 0x7B | C62: reserved | D62: X | G62: X
A63: eeprom60 | B63: 0x7C | C63: reserved | D63: X | G63: X
A64: eeprom61 | B64: 0x7D | C64: reserved | D64: X | G64: X
A65: eeprom62 | B65: 0x7E | C65: reserved | D65: X | G65: X
A66: eeprom63 | B66: 0x7F | C66: reserved | D66: X | G66: X
I67: 0 | J67: 1 | K67: 2 | L67: 3 | M67: 4 | N67: 5 | O67: 6 | P67: 7

Sheet constants (hidden)
A1: Harvester type | B1: Solar cell | C1: TEG
A2: MPPT ratio | B2: =2/4 -> 0.5 | C2: =3/5 -> 0.6 | D2: =4/6 -> 0.6666666667 | E2: =5/7 -> 0.7142857143 | F2: =6/8 -> 0.75 | G2: =7/9 -> 0.7777777778 | H2: =8/10 -> 0.8 | I2: =9/11 -> 0.8181818182 | J2: =10/12 -> 0.8333333333 | K2: =11/13 -> 0.8461538462 | L2: =12/14 -> 0.8571428571 | M2: =13/15 -> 0.8666666667 | N2: =14/16 -> 0.875 | O2: =14/16 -> 0.875 | P2: =14/16 -> 0.875 | Q2: =14/16 -> 0.875
A3: reg_mppt_ratio [dec] | B3: 0 | C3: =B3+1 -> 1 | D3: =C3+1 -> 2 | E3: 3 | F3: 4 | G3: 5 | H3: 6 | I3: 7 | J3: 8 | K3: 9 | L3: 10 | M3: 11 | N3: 12 | O3: 13 | P3: 14 | Q3: 15
A4: reg_mppt_ratio [hex] | B4: ="0x0"&DEC2HEX(B3) -> 0x00 | C4: ="0x0"&DEC2HEX(C3) -> 0x01 | D4: 0x02 | E4: 0x03 | F4: 0x04 | G4: 0x05 | H4: 0x06 | I4: 0x07 | J4: 0x08 | K4: 0x09 | L4: 0x0A | M4: 0x0B | N4: 0x0C | O4: ="0x0"&DEC2HEX(O3) -> 0x0D | P4: 0x0E | Q4: 0x0F
B5: 0 | C5: 1 | D5: 10 | E5: 11 | F5: 100 | G5: 101 | H5: 110 | I5: 111 | J5: 1000 | K5: 1001 | L5: 1010 | M5: 1011 | N5: 1100 | O5: 1101 | P5: 1110 | Q5: 1111
B6: 0.5 | C6: 0.6 | D6: 0.6666666667 | E6: 0.7142857143 | F6: 0.75 | G6: 0.7777777778 | H6: 0.8 | I6: 0.8181818182 | J6: 0.8333333333 | K6: 0.8461538462 | L6: 0.8571428571 | M6: 0.8666666667 | N6: 0.875 | O6: 0.875 | P6: 0.875 | Q6: 0.875
A8: HRV check method | B8: Open voltage | C8: Short-cut current
A9: reg_v_hrv_cfg.hrv_check_vld | B9: '1' | C9: '0'
B10: 1 | C10: 0
B12: Maximum TEG internal resistivity
B13: Vout range | C13: Vout range | D13: Vout range
A14: Vov min | B14: 1.5V to 2V | C14: 2V to 3V | D14: 3V to 3.6V | E14: Vov min | F14: v_hrv_min | G14: v_hrv_min
A15: 216 | B15: 830 | C15: 410 | D15: 80 | E15: =A15 -> 216 | F15: 0x02 | G15: 2
A16: 288 | B16: 2980 | C16: 1490 | D16: 290 | E16: =A16 -> 288 | F16: 0x03 | G16: 3
A17: 359 | B17: 5000 | C17: 5000 | D17: 1160 | E17: =A17 -> 359 | F17: 0x04 | G17: 4
A18: 431 | B18: 5000 | C18: 5000 | D18: 3350 | E18: =A18 -> 431 | F18: 0x05 | G18: 5
B19: Out of range | C19: Out of range | D19: Out of range
B21: MIN | C21: TYP | D21: MAX
A22: VDD_HRV open | B22: 0.2 | C22: 0.5 | D22: 1.8
B24: Ihrv_lim | E24: reg_hrv_check_lvl
B25: Vout range | C25: Vout range | D25: Vout range | E25: Vout range | F25: Vout range | G25: Vout range
B26: 1.5V to 2V | C26: 2V to 3V | D26: 3V to 3.6V | E26: 1.5V to 2V | F26: 2V to 3V | G26: 3V to 3.6V
A27: 0.2 | B27: 11 | C27: Out of range | D27: Out of range | E27: 0x0A | F27: Out of range | G27: Out of range
A28: 0.3 | B28: 4 | C28: 8 | D28: 15 | E28: 0x03 | F28: 0x07 | G28: 0x0E
A29: 0.4 | B29: 3 | C29: 6 | D29: 9 | E29: 0x02 | F29: 0x05 | G29: 0x08
A30: 0.5 | B30: 3 | C30: 3 | D30: 5 | E30: 0x02 | F30: 0x02 | G30: 0x04
A31: 0.6 | B31: 2 | C31: 2 | D31: 4 | E31: 0x01 | F31: 0x01 | G31: 0x03
A32: 0.7 | B32: 2 | C32: 2 | D32: 4 | E32: 0x01 | F32: 0x01 | G32: 0x03
A33: 0.8 | B33: 2 | C33: 2 | D33: 3 | E33: 0x01 | F33: 0x01 | G33: 0x02
A34: 0.9 | B34: 2 | C34: 2 | D34: 3 | E34: 0x01 | F34: 0x01 | G34: 0x02
A35: 1 | B35: 2 | C35: 2 | D35: 3 | E35: 0x01 | F35: 0x01 | G35: 0x02
A36: 1.1 | B36: 1 | C36: 1 | D36: 2 | E36: 0x00 | F36: 0x00 | G36: 0x01
A37: 1.2 | B37: 1 | C37: 1 | D37: 2 | E37: 0x00 | F37: 0x00 | G37: 0x01
A38: 1.3 | B38: 1 | C38: 1 | D38: 2 | E38: 0x00 | F38: 0x00 | G38: 0x01
A39: 1.4 | B39: 1 | C39: 1 | D39: 2 | E39: 0x00 | F39: 0x00 | G39: 0x01
A40: 1.45 | B40: 1 | C40: 1 | D40: 2 | E40: 0x00 | F40: 0x00 | G40: 0x01
A42: Ihrv_lim [uA] | B42: 1 | C42: =B42+1 -> 2 | D42: =C42+1 -> 3 | E42: 4 | F42: 5 | G42: 6 | H42: 7 | I42: 8 | J42: 9 | K42: 10 | L42: 11 | M42: 12 | N42: 13 | O42: 14 | P42: 15 | Q42: 16
A43: reg_hrv_check_lvl | B43: ="0x0"&DEC2HEX(B42-1) -> 0x00 | C43: ="0x0"&DEC2HEX(C42-1) -> 0x01 | D43: 0x02 | E43: 0x03 | F43: 0x04 | G43: 0x05 | H43: 0x06 | I43: 0x07 | J43: 0x08 | K43: 0x09 | L43: 0x0A | M43: 0x0B | N43: 0x0C | O43: 0x0D | P43: 0x0E | Q43: 0x0F
B45: MIN | C45: TYP | D45: MAX
A46: Chrv | B46: 4.7 | C46: 10 | D46: 10 | E46: uF
A48: Register value | B48: Thrv_meas | C48: Thrv_period | D48: Register value | E48: Register value | F48: Register value
B49: (register : t_hrv_meas) | C49: (register : t_hrv_period ; HRV_LOW = 0)
C50: (register : t_hrv_low_period ; HRV_LOW = 1)
A51: 0 | B51: 16 | C51: 256 | D51: 0x00 | E51: "000" | F51: 0
A52: 1 | B52: =B51*2 -> 32 | C52: 512 | D52: 0x01 | E52: "001" | F52: =F51+1 -> 1
A53: 10 | B53: 64 | C53: 1024 | D53: 0x02 | E53: "010" | F53: =F52+1 -> 2
A54: 11 | B54: 128 | C54: 2048 | D54: 0x03 | E54: "011" | F54: 3
A55: 100 | B55: 256 | C55: 4096 | D55: 0x04 | E55: "100" | F55: 4
A56: 101 | B56: 512 | C56: 8192 | D56: 0x05 | E56: "101" | F56: 5
A57: 110 | B57: 1024 | C57: 16384 | D57: 0x06 | E57: "110" | F57: 6
A58: 111 | B58: 2048 | C58: 32768 | D58: 0x07 | E58: "111" | F58: 7
A60: Binary selection | B60: Yes | C60: No
A62: VLD constants
B63: MIN | C63: TYP | D63: MAX
A64: Vlvl | B64: =C64*0.98 -> 0.07154 | C64: 0.073 | D64: =C64*1.02 -> 0.07446 | E64: V
A66: Supervisory constants
A67: v_bat_max_hi | D67: 4.2 | E67: V
A68: v_bat_min_lo | B68: 1.47 | E68: V
B70: MIN | C70: TYP | D70: MAX
A71: Csup | B71: 1 | E71: uF
A72: Caux0 | B72: 1 | E72: uF
A73: Caux1 | B73: 1 | E73: uF
A74: Caux2 | B74: 1 | E74: uF
A75: Csts | B75: 10 | E75: uF
A77: STS Supervisory timings
A78: 0 | B78: 1 | C78: ms | D78: 0 | E78: 0
A79: 1 | B79: 2 | C79: ms | D79: =D78+1 -> 1 | E79: =E78+1 -> 1
A80: 2 | B80: 8 | C80: ms | D80: =D79+1 -> 2 | E80: 2
A81: 3 | B81: 16 | C81: ms | D81: 3 | E81: 3
A82: 4 | B82: 32 | C82: ms | D82: 4 | E82: 4
A83: 5 | B83: 64 | C83: ms | D83: 5 | E83: 5
A84: 6 | B84: 128 | C84: ms | D84: 6 | E84: 6
A85: 7 | B85: 256 | C85: ms | D85: 7 | E85: 7
A87: LTS Supervisory timings
A88: 0 | B88: 1 | C88: ms | D88: 0 | E88: 0
A89: 1 | B89: 4 | C89: ms | D89: =D88+1 -> 1 | E89: =E88+1 -> 1
A90: 2 | B90: 16 | C90: ms | D90: =D89+1 -> 2 | E90: 2
A91: 3 | B91: 64 | C91: ms | D91: 3 | E91: 3
A92: 4 | B92: 256 | C92: ms | D92: 4 | E92: 4
A93: 5 | B93: 1024 | C93: ms | D93: 5 | E93: 5
A94: 6 | B94: 4096 | C94: ms | D94: 6 | E94: 6
A95: 7 | B95: 16384 | C95: ms | D95: 7 | E95: 7
A97: LTS Supervisory timings
A98: 0 | B98: 2 | C98: ms | D98: "000" | E98: 0
A99: 1 | B99: 8 | C99: ms | D99: "001" | E99: =E98+1 -> 1
A100: 2 | B100: 32 | C100: ms | D100: "010" | E100: =E99+1 -> 2
A101: 3 | B101: 128 | C101: ms | D101: "011" | E101: 3
A102: 4 | B102: 512 | C102: ms | D102: "100" | E102: 4
A103: 5 | B103: 2048 | C103: ms | D103: "101" | E103: 5
A104: 6 | B104: 8192 | C104: ms | D104: "110" | E104: 6
A105: 7 | B105: 32768 | C105: ms | D105: "111" | E105: 7
A107: Tsleep unit | B107: ms | C107: s | D107: min | E107: h
A109: Wake-up edge selection | B109: no edge | C109: falling edge | D109: rising edge | E109: both edges
B110: "00" | C110: "01" | D110: "10" | E110: "11"
B111: 0 | C111: 1 | D111: 2 | E111: 3
A113: reg_ldo_cfg.v_ulp_ldo[2:0] | B113: v_ulp_ldo [V] | C113: reg_ldo_cfg.v_ulp_ldo[2:0] | D113: reg_ldo_cfg.v_ulp_ldo[2:0]
A114: 0 | B114: 1.2 | C114: "000" | D114: 0
A115: 1 | B115: 1.55 | C115: "001" | D115: =D114+1 -> 1
A116: 10 | B116: 1.65 | C116: "010" | D116: =D115+1 -> 2
A117: 11 | B117: 1.8 | C117: "011" | D117: 3
A118: 100 | B118: 2 | C118: "100" | D118: 4
A119: 101 | B119: 2.2 | C119: "101" | D119: 5
A120: 110 | B120: 2.4 | C120: "110" | D120: 6
A121: 111 | B121: 2.6 | C121: "111" | D121: 7
A124: VAUX[i] connection configuration | B124: to VDD_STS | C124: to VAUX LDO | D124: Auto, float if off | E124: Auto, grounded if off
B125: "00" | C125: "01" | D125: "10" | E125: "11"
B126: 0 | C126: 1 | D126: 2 | E126: 3
A128: reg_ldo_cfg.v_aux_ldo[2:0] | B128: v_aux_ldo [V] | C128: reg_aux_cfg.v_ulp_ldo[2:0] | D128: reg_ldo_cfg.v_aux_ldo[2:0]
A129: 0 | B129: 1.2 | C129: "000" | D129: 0
A130: 1 | B130: 1.55 | C130: "001" | D130: =D129+1 -> 1
A131: 10 | B131: 1.65 | C131: "010" | D131: =D130+1 -> 2
A132: 11 | B132: 1.8 | C132: "011" | D132: 3
A133: 100 | B133: 2 | C133: "100" | D133: 4
A134: 101 | B134: 2.2 | C134: "101" | D134: 5
A135: 110 | B135: 2.4 | C135: "110" | D135: 6
A136: 111 | B136: 2.6 | C136: "111" | D136: 7
A138: VAUX_GND[i] connection configuration | B138: whatever STS | C138: Auto connect
B139: '0' | C139: '1'
B140: 0 | C140: 1
A142: USB current | B142: 0 | C142: 5 | D142: 10 | E142: 20
B143: "00" | C143: "01" | D143: "10" | E143: "11"
B144: 0 | C144: 1 | D144: 2 | E144: 3
A147: Serial interface settings | B147: Standard | C147: Hi-speed
A148: SPI config | B148: 4 wires | C148: 3 wires
B149: '0' | C149: '1'
B150: 0 | C150: 1
A152: Data base | B152: hex | C152: dec | D152: bin
A154: vcs_hi | B154: 1.3
B156: usb_ldo_frc_dis | C156: dis_vaux_gnd2_hrv_low | D156: dis_vaux_gnd1_hrv_low | E156: dis_vaux_gnd0_hrv_low | F156: dis_vaux2_hrv_low | G156: dis_vaux1_hrv_low | H156: dis_vaux0_hrv_low | I156: dis_vsup_hrv_low
A157: 0 | B157: USB LDO on | C157: VAUX_GND2 on in HRV_LOW | D157: VAUX_GND1 on in HRV_LOW | E157: VAUX_GND0 on in HRV_LOW | F157: VAUX2 on in HRV_LOW | G157: VAUX1 on in HRV_LOW | H157: VAUX0 on in HRV_LOW | I157: VSUP on in HRV_LOW
A158: 1 | B158: USB LDO off | C158: VAUX_GND2 off in HRV_LOW | D158: VAUX_GND1 off in HRV_LOW | E158: VAUX_GND0 off in HRV_LOW | F158: VAUX2 off in HRV_LOW | G158: VAUX1 off in HRV_LOW | H158: VAUX0 off in HRV_LOW | I158: VSUP off in HRV_LOW
B161: sdi_slopectrl | C161: wake_up_deb_en | F161: usb_frc_hrv_low_hiz | G161: usb_frc_bat_low_hiz
A162: 0 | B162: I2C std speed | C162: wake-up debouncer off | F162: HRV_LOW hi-z if USB off | G162: BAT_LOW hi-z if USB off
A163: 1 | B163: I2C hi-speed | C163: wake-up debouncer on | F163: HRV_LOW hi-z if USB on | G163: BAT_LOW hi-z if USB on
B165: wake_up_edge_cfg
A166: 00 | B166: wake-up disabled
A167: 01 | B167: wake-up on falling edge
A168: 10 | B168: wake-up on rising edge
A169: 11 | B169: wake-up on both edges
B171: usb_crt_src_sel
A172: 00 | B172: USB crt source 0 mA
A173: 01 | B173: USB crt source 5 mA
A174: 10 | B174: USB crt source 10 mA
A175: 11 | B175: USB crt source 20 mA
A177: 1 | B177: SPI 3 wires
A178: 0 | B178: SPI 4 wires
B180: frc_prim_dcdc_dis | C180: vaux_gnd2_en | D180: vaux_gnd1_en | E180: vaux_gnd0_en | F180: vaux2_en | G180: vaux1_en | H180: vaux0_en | I180: sleep_vsup
A181: 0 | B181: DCDC on at start-up | C181: VAUX_GND2 off at start-up | D181: VAUX_GND1 off at start-up | E181: VAUX_GND0 off at start-up | F181: VAUX2 off at start-up | G181: VAUX1 off at start-up | H181: VAUX0 off at start-up | I181: VSUP on at start-up
A182: 1 | B182: DCDC off at start-up | C182: VAUX_GND2 on at start-up | D182: VAUX_GND1 on at start-up | E182: VAUX_GND0 on at start-up | F182: VAUX2 on at start-up | G182: VAUX1 on at start-up | H182: VAUX0 on at start-up | I182: VSUP sleep at start-up
A185: 1 | B185: HRV check by Ishort-cut
A186: 0 | B186: HRV check by Vopen-voltage
B189: prim_cell_connect | C189: prim_cell | D189: no_bat_protect
A190: 0 | B190: STS/LTS disconnet at start-up | C190: rechargeable battery | D190: battery protection on
A191: 1 | B191: STS/LTS connect at start-up | C191: non-rechargeable battery | D191: battery protection off
B194: vsup_tied_low | C194: frc_ulp_ldo
A195: 0 | B195: VSUP float when off | C195: VSUP LDO auto
A196: 1 | B196: VSUP to GND when off | C196: VSUP LDO forced

Sheet messages (hidden)
A1: Exception messages
A2: ERRORS:
A3: =("ERROR: TEG resistivity cannot be higher than "&constants!D18&" Ohm when v_bat_max_hi > 3V") -> ERROR: TEG resistivity cannot be higher than 3350 Ohm when v_bat_max_hi > 3V
A4: =("ERROR: TEG resistivity cannot be higher than "&constants!C18&" Ohm when v_bat_max_hi is in the range 2V-3V") -> ERROR: TEG resistivity cannot be higher than 5000 Ohm when v_bat_max_hi is in the range 2V-3V
A5: =("ERROR: TEG resistivity cannot be higher than "&constants!B18&" Ohm when v_bat_max_hi < 2V") -> ERROR: TEG resistivity cannot be higher than 5000 Ohm when v_bat_max_hi < 2V
A6: ERROR: TEG resistivity shall not be higher than 5000 Ohm
A7: ="ERROR: Maximum HRV open voltage higher than "&constants!D22&" V" -> ERROR: Maximum HRV open voltage higher than 1.8 V
A8: ERROR: Vpp_min is too low for v_bat_max_hi range
A9: ERROR: Chrv is out of range 4.7uF - 10uF
A10: ERROR: Effective Ihrv_lim is lower than absolute minimum allowed
A11: ERROR: t_hrv_meas longer than maximum configurable value
A12: ="ERROR: Effective t_hrv_meas shorter than "&settings!B30&" ms" -> ERROR: Effective t_hrv_meas shorter than 3 ms
A13: ERROR: t_hrv_period too short compare to t_hrv_meas
A14: ="ERROR: max battery voltage is set higher than "&constants!$D$67&"V" -> ERROR: max battery voltage is set higher than 4.2V
A15: ERROR: v_apl_max_hi is set lower or too close to v_bat_min_lo
A16: ="ERROR: v_apl_max_hi is set higher than "&constants!$D$67&"V" -> ERROR: v_apl_max_hi is set higher than 4.2V
A17: ="ERROR: min battery voltage is lower than "&constants!B68&"V" -> ERROR: min battery voltage is lower than 1.47V
A18: ERROR: min & max battery voltages are too close
A19: ERROR: v_bat_max_hi is set lower or too close to v_bat_min_lo
A20: ="ERROR: Csup too low, shall be at least "&constants!B71&"uF when ULP LDO is used" -> ERROR: Csup too low, shall be at least 1uF when ULP LDO is used
A21: ="ERROR: Caux0 too low, shall be at least "&constants!B72&"uF when VAUX LDO is used" -> ERROR: Caux0 too low, shall be at least 1uF when VAUX LDO is used
A22: ="ERROR: Caux1 too low, shall be at least "&constants!B73&"uF when VAUX LDO is used" -> ERROR: Caux1 too low, shall be at least 1uF when VAUX LDO is used
A23: ="ERROR: Caux2 too low, shall be at least "&constants!B74&"uF when VAUX LDO is used" -> ERROR: Caux2 too low, shall be at least 1uF when VAUX LDO is used
A24: ERROR: Csts shall be at least 10uF
A25: ERROR: Csts is lower than 10uF
A26: ERROR: Tsts shall not be bigger than 256ms
A27: ="ERROR: Effective Tsts_period shall be higher or equal to "&CEILING(settings!B61,1)&" ms" -> ERROR: Effective Tsts_period shall be higher or equal to 1 ms
A28: ERROR: v_bat_min_hi_dis is higher or too close to v_apl_max_hi: increase Csts or increase VLDloss
A29: ERROR: v_apl_max_lo is lower or too close to v_bat_min_hi_dis or v_bat_min_hi_con: increase Csts or increase VLDloss
A30: ERROR: v_bat_min_hi_con is higher or too close to v_apl_max_hi: v_apl_max_hi is extremely low
A31: ERROR: Not enough margin between v_apl_max_lo and v_apl_max_hi: increase Csts or decrease Tsts_period
A32: ERROR: Not enough margin between v_apl_max_lo and v_bat_min_hi_dis: voltage peaks on STS too high: decrease Tlts_charge_min, Increase Csts or increase VLDloss
A33: ERROR: v_apl_max_lo is lower or too close to v_bat_min_hi_con: v_apl_max_lo is extremely low
A34: ERROR: Not enough margin between v_bat_max_lo and v_bat_min_hi_dis: voltage peaks on STS too high: decrease Tlts_charge_min, Increase Csts or increase VLDloss
A35: ERROR: Not enough margin between v_bat_max_hi and v_apl_max_hi: reduce maximum application voltage or set set v_apl_max_hi = v_bat_max_hi
A36: ERROR: Not enough margin between v_bat_max_lo and v_apl_max_hi: reduce maximum application voltage or set set v_apl_max_hi = v_bat_max_hi
A37: ERROR: v_bat_max_lo is lower or too close to v_bat_min_hi_con: v_bat_max_lo is extremely low
A38: ERROR: t_sleep_vsup is higher than the maximum delay of 4h 39min 37s 215ms
A39: ERROR: t_sleep_vsup must be higher than 0s
A40: ERROR: I2C address out of range (>7F)
A41: ERROR: shall not be enabled at start-up is unused
A42: ERROR
A43: FATAL ERRORS:
A44: FATAL ERROR: v_bat_max_hi shall be higher than v_bat_max_lo
A45: FATAL ERROR: v_apl_max_hi shall be higher than v_apl_max_lo
A46: FATAL ERROR: v_bat_min_hi shall be higher than v_bat_min_lo
A47: FATAL ERROR: v_bat_min_hi shall be lower than v_apl_max_lo
A48: FATAL ERROR: v_bat_min_hi shall be lower than v_bat_max_lo
A49: FATAL ERROR: wake_up_edge_cfg[1:0] cannot be set to "00"
A50: WARNINGS:
A51: WARNING: MPPT ratio for a TEG is usually 50%
A52: WARNING: MPPT ratio for a solar cell is usually close to 80%
A53: WARNING: Open voltage measurement method should be used to supervise a TEG
A54: WARNING: Short-cut measurement method should be used to supervise a Solar cell
A55: WARNING: t_hrv_period short compare to t_hrv_meas; high efficiency loss in HRV check and sampling
A56: WARNING: LTS/STS shall not be always connected to each other with a non-rechargeable battery.
A57: WARNING: no under voltage protection on LTS has been set
A58: WARNING: "Rechargeable battery = No" AND "STS always connected to LTS = Yes" set together.
A59: WARNING: VSUP IS DISABLED IN HRV LOW MODE. IT IS STRONGLY RECOMMANDED TO AVOID THAT.
A60: WARNING: ULP LDO voltage level is lower than v_bat_max_lo; the ULP LDO could act as a follower, not as a regulator
A61: WARNING: VAUX[0] and VSUP could be at different voltage domain
A62: WARNING: VAUX[1] and VSUP could be at different voltage domain
A63: WARNING: VAUX[2] and VSUP could be at different voltage domain
A64: WARNING: VAUX LDO voltage level is lower than v_bat_max_lo; the VAUX LDO could act as a follower, not as a regulator
A65: WARNING: Some registers have been overwritten in the register map
A66: WARNING: WAKE-UP SHALL BE ENABLED WHEN VSUP IS IN SLEEP CONDITION AT START-UP
A67: WARNING
A68: NOTES:
A69: Note: the power consumption of the HRV supervisory & sampling in HRV LOW mode is:
A70: Note: the power consumption of the VLD use to measure LTS is:
A71: Note: the power consumption of the VLD use to measure LTS in HRV LOW mode is:
A72: START-UP
A73: MAINTAIN STS
A74: CONNECT APPLI
A75: OPERATING
A76: CONNECT LTS/STS
A78: All OK
A79: OK
A80: OK (Non applicable)
A81: N.A. short-cut method used

Sheet txt source (hidden)
A1: ='register map'!B3 -> 0x40 | B1: ='register map'!G3 -> 0x04
A2: ='register map'!B4 -> 0x41 | B2: ='register map'!G4 -> 0x03
A3: ='register map'!B5 -> 0x42 | B3: ='register map'!G5 -> 0x01
A4: ='register map'!B6 -> 0x43 | B4: ='register map'!G6 -> 0x02
A5: ='register map'!B7 -> 0x44 | B5: ='register map'!G7 -> 0x43
A6: ='register map'!B8 -> 0x45 | B6: ='register map'!G8 -> 0x00
A7: ='register map'!B9 -> 0x46 | B7: ='register map'!G9 -> 0x00
A8: ='register map'!B10 -> 0x47 | B8: ='register map'!G10 -> 0x30
A9: ='register map'!B11 -> 0x48 | B9: ='register map'!G11 -> 0x2D
A10: ='register map'!B12 -> 0x49 | B10: ='register map'!G12 -> 0x26
A11: ='register map'!B13 -> 0x4A | B11: ='register map'!G13 -> 0x26
A12: ='register map'!B14 -> 0x4B | B12: ='register map'!G14 -> 0x25
A13: ='register map'!B15 -> 0x4C | B13: ='register map'!G15 -> 0x3F
A14: ='register map'!B16 -> 0x4D | B14: ='register map'!G16 -> 0x3E
A15: ='register map'!B17 -> 0x4E | B15: ='register map'!G17 -> 0xFF
A16: ='register map'!B18 -> 0x4F | B16: ='register map'!G18 -> 0x00
A17: ='register map'!B19 -> 0x50 | B17: ='register map'!G19 -> 0x15
A18: ='register map'!B20 -> 0x51 | B18: ='register map'!G20 -> 0x00
A19: ='register map'!B21 -> 0x52 | B19: ='register map'!G21 -> 0x00
A20: ='register map'!B22 -> 0x53 | B20: ='register map'!G22 -> 0x50
A21: ='register map'!B23 -> 0x54 | B21: ='register map'!G23 -> 0xE8
A22: ='register map'!B24 -> 0x55 | B22: ='register map'!G24 -> 0x03
A23: ='register map'!B25 -> 0x56 | B23: ='register map'!G25 -> 0x00
A24: ='register map'!B26 -> 0x57 | B24: ='register map'!G26 -> 0x02
A25: ='register map'!B27 -> 0x58 | B25: ='register map'!G27 -> 0x77
A26: ='register map'!B28 -> 0x59 | B26: ='register map'!G28 -> 0x01
A27: ='register map'!B29 -> 0x5A | B27: ='register map'!G29 -> 0xFF
A28: ='register map'!B30 -> 0x5B | B28: ='register map'!G30 -> 0xFF
A29: ='register map'!B31 -> 0x5C | B29: ='register map'!G31 -> 0xFF
A30: ='register map'!B32 -> 0x5D | B30: ='register map'!G32 -> 0xFF
A31: ='register map'!B33 -> 0x5E | B31: ='register map'!G33 -> 0xFF
A32: ='register map'!B34 -> 0x5F | B32: ='register map'!G34 -> 0xFF
A33: ='register map'!B35 -> 0x60 | B33: ='register map'!G35 -> 0xFF
A34: ='register map'!B36 -> 0x61 | B34: ='register map'!G36 -> 0xFF
A35: ='register map'!B37 -> 0x62 | B35: ='register map'!G37 -> 0xFF
A36: ='register map'!B38 -> 0x63 | B36: ='register map'!G38 -> 0xFF
A37: ='register map'!B39 -> 0x64 | B37: ='register map'!G39 -> 0xFF
A38: ='register map'!B40 -> 0x65 | B38: ='register map'!G40 -> 0xFF
A39: ='register map'!B41 -> 0x66 | B39: ='register map'!G41 -> 0xFF
A40: ='register map'!B42 -> 0x67 | B40: ='register map'!G42 -> 0xFF
A41: ='register map'!B43 -> 0x68 | B41: ='register map'!G43 -> 0xFF
A42: ='register map'!B44 -> 0x69 | B42: ='register map'!G44 -> 0xFF
A43: ='register map'!B45 -> 0x6A | B43: ='register map'!G45 -> 0xFF
A44: ='register map'!B46 -> 0x6B | B44: ='register map'!G46 -> 0xFF
A45: ='register map'!B47 -> 0x6C | B45: ='register map'!G47 -> 0xFF
A46: ='register map'!B48 -> 0x6D | B46: ='register map'!G48 -> 0xFF
A47: ='register map'!B49 -> 0x6E | B47: ='register map'!G49 -> 0xFF
A48: ='register map'!B50 -> 0x6F | B48: ='register map'!G50 -> 0xFF
A49: ='register map'!B51 -> 0x70 | B49: ='register map'!G51 -> 0xFF
A50: ='register map'!B52 -> 0x71 | B50: ='register map'!G52 -> 0xFF
A51: ='register map'!B53 -> 0x72 | B51: ='register map'!G53 -> 0xFF
A52: ='register map'!B54 -> 0x73 | B52: ='register map'!G54 -> 0xFF
A53: ='register map'!B55 -> 0x74 | B53: ='register map'!G55 -> 0xFF

Sheet chart calc (hidden)
A1: EM8500 chart illustration calculation
A2: Description | B2: The timing diagram is divided in 3 phases:
B3: -1. start-up phase (ULV DCDC or connection to LTS depending if STS/LTS can be disconnected)
B4: -2. STS maintaining if STS and LTS are disconnected otherwise operating mode
B5: -3. operating mode, LTS and STS connected
A7: Rechargeable battery | B7: =settings!B37 -> Yes
A8: STS always connected to LTS | B8: =settings!B46 -> No | C8: STS/LTS unconnected | J8: STS/LTS connected
A9: VLDlsb | B9: =constants!C64 -> 0.073 | D9: =IF(B12=-1,B11,B13) -> 3.358 | E9: 1.25 | K9: =B10 -> 3.577 | L9: 2
A10: ="v_bat_max_hi ("&TEXT(B10,"0.00")&")" -> v_bat_max_hi (3.58) | B10: =(settings!H15+1)*'chart calc'!B9 -> 3.577 | D10: =B18 -> 1.3 | E10: 1 | K10: =F76 -> 3.1025 | L10: 1
A11: ="v_bat_max_lo ("&TEXT(B11,"0.00")&")" -> v_bat_max_lo (3.36) | B11: =(settings!H76+1)*B9 -> 3.358 | C11: SLOPE1 | D11: =SLOPE(D9:D10,E9:E10) -> 8.232 | J11: SLOPE1 | K11: =SLOPE(K9:K10,L9:L10) -> 0.4745
A12: ="v_apl_max_hi ("&TEXT(B12,"0.00")&")" -> v_apl_max_hi (-1.00) | B12: =IF(settings!H43>settings!H42,-1,(settings!H43+1)*B9) -> -1 | C12: INTERCEPT1 | D12: =INTERCEPT(D9:D10,E9:E10) -> -6.932 | J12: INTERCEPT1 | K12: =INTERCEPT(K9:K10,L9:L10) -> 2.628
A13: ="v_apl_max_lo ("&TEXT(B13,"0.00")&")" -> v_apl_max_lo (-1.00) | B13: =IF(settings!H43>settings!H42,-1,(settings!H73+1)*B9) -> -1 | D13: =B16 -> 2.847 | E13: 1.5 | G13: =(B16+G14)/2 -> 1.7485 | H13: 1.5 | K13: =B11 -> 3.358 | L13: 2.5
A14: ="v_bat_min_hi_dis ("&TEXT(B14,"0.00")&")" -> v_bat_min_hi_dis (2.85) | B14: =(settings!H66+1)*B9 -> 2.847 | D14: =D9 -> 3.358 | E14: 1.25 | G14: =D201 -> 0.65 | H14: 1.25 | K14: =K9 -> 3.577 | L14: 2
A15: ="v_bat_min_hi_con ("&TEXT(B15,"0.00")&")" -> v_bat_min_hi_con (2.85) | B15: =(settings!H67+1)*B9 -> 2.847 | C15: SLOPE2 | D15: =SLOPE(D13:D14,E13:E14) -> -2.044 | G15: =SLOPE(G13:G14,H13:H14) -> 4.394 | J15: SLOPE2 | K15: =SLOPE(K13:K14,L13:L14) -> -0.438
A16: ="v_bat_min_hi ("&TEXT(B16,"0.00")&")" -> v_bat_min_hi (2.85) | B16: =IF(B8="No",B14,B15) -> 2.847 | C16: INTERCEPT2 | D16: =INTERCEPT(D13:D14,E13:E14) -> 5.913 | G16: =INTERCEPT(G13:G14,H13:H14) -> -4.8425 | J16: INTERCEPT2 | K16: =INTERCEPT(K13:K14,L13:L14) -> 4.453
A17: ="v_bat_min_lo ("&TEXT(B17,"0.00")&")" -> v_bat_min_lo (2.77) | B17: =(settings!H17+1)*B9 -> 2.774 | D17: =D14 -> 3.358 | E17: 1.75 | K17: =K14 -> 3.577 | L17: 3
A18: ="Vcs_hi ("&TEXT(B18,"0.00")&")" -> Vcs_hi (1.30) | B18: =constants!B154 -> 1.3 | D18: =D13 -> 2.847 | E18: 1.5 | K18: =K13 -> 3.358 | L18: 2.5
C19: SLOPE3 | D19: =SLOPE(D17:D18,E17:E18) -> 2.044 | J19: SLOPE3 | K19: =SLOPE(K17:K18,L17:L18) -> 0.438
A20: ULP LDO | B20: =settings!B93 -> 2.6 | C20: INTERCEPT3 | D20: =INTERCEPT(D17:D18,E17:E18) -> -0.219 | J20: INTERCEPT3 | K20: =INTERCEPT(K17:K18,L17:L18) -> 2.263
A21: VAUX LDO | B21: =settings!B104 -> 2.6 | D21: =D18 -> 2.847 | E21: 2 | G21: =D21 -> 2.847 | H21: 2
A22: Force ULP LDO | B22: =settings!B92 -> Yes | D22: =D17 -> 3.358 | E22: 1.75 | G22: =G13 -> 1.7485 | H22: 1.75
C23: SLOPE4 | D23: =SLOPE(D21:D22,E21:E22) -> -2.044 | G23: =SLOPE(G21:G22,H21:H22) -> 4.394
C24: INTERCEPT4 | D24: =INTERCEPT(D21:D22,E21:E22) -> 6.935 | G24: =INTERCEPT(G21:G22,H21:H22) -> -5.941
D27: =B10 -> 3.577 | E27: 2.25
A28: v_bat_max_hi (2.88) | D28: =D21 -> 2.847 | E28: 2
A29: v_bat_max_lo | C29: SLOPE4 | D29: =SLOPE(D27:D28,E27:E28) -> 2.92 | I29: 0.3
A30: v_apl_max_hi | C30: INTERCEPT4 | D30: =INTERCEPT(D27:D28,E27:E28) -> -2.993 | G30: =messages!A72 -> START-UP | H30: 0.5 | I30: =$B$10+I29 -> 3.877 | J30: =7 -> 7
A31: v_apl_max_lo | D31: =B11 -> 3.358 | E31: 2.5 | G31: =IF(B8=constants!C60,messages!A73,messages!A74) -> MAINTAIN STS | H31: 1.5 | I31: =I30 -> 3.877 | J31: =7 -> 7
A32: v_bat_min_hi_dis | D32: =D27 -> 3.577 | E32: 2.25 | G32: =IF(B7=constants!B60,messages!A75,messages!A76) -> OPERATING | H32: 2.5 | I32: =I31 -> 3.877 | J32: =7 -> 7
A33: v_bat_min_hi_con | C33: SLOPE5 | D33: =SLOPE(D31:D32,E31:E32) -> -0.876
A34: v_bat_min_hi | C34: INTERCEPT5 | D34: =INTERCEPT(D31:D32,E31:E32) -> 5.548
A35: v_bat_min_lo | D35: =D32 -> 3.577 | E35: 2.75
A36: Vcs_hi
G39: =IF(B13=-1,B11,B13) -> 3.358 | H39: 1.25
D40: =D31 -> 3.358 | E40: 2.5 | G40: =G175 -> 2.9885 | H40: 1
C41: SLOPE5 | D41: =SLOPE(D35:D40,E35:E40) -> 0.876 | G41: SLOPE LTS | H41: =SLOPE(G39:G40,H39:H40) -> 1.478
C42: INTERCEPT5 | D42: =INTERCEPT(D35:D40,E35:E40) -> 1.168 | G42: INTERCEPT LTS | H42: =INTERCEPT(G39:G40,H39:H40) -> 1.5105
D43: =D40 -> 3.358 | E43: 3
D44: =D35 -> 3.577 | E44: 2.75 | G44: =B16 -> 2.847 | H44: 1.5
C45: SLOPE5 | D45: =SLOPE(D43:D44,E43:E44) -> -0.876 | G45: =G39 -> 3.358 | H45: =H39 -> 1.25
C46: INTERCEPT5 | D46: =INTERCEPT(D43:D44,E43:E44) -> 5.986 | G46: SLOPE LTS | H46: =SLOPE(G44:G45,H44:H45) -> -2.044
G47: INTERCEPT LTS | H47: =INTERCEPT(G44:G45,H44:H45) -> 5.913
G49: =G45 -> 3.358 | H49: 1.75
G50: =G44 -> 2.847 | H50: =H44 -> 1.5
G51: SLOPE LTS | H51: =SLOPE(G49:G50,H49:H50) -> 2.044
G52: INTERCEPT LTS | H52: =INTERCEPT(G49:G50,H49:H50) -> -0.219
G54: =H275-H74 -> 2.9885 | H54: 2
G55: =G49 -> 3.358 | H55: =H49 -> 1.75
G56: SLOPE LTS | H56: =SLOPE(G54:G55,H54:H55) -> -1.478
G57: INTERCEPT LTS | H57: =INTERCEPT(G54:G55,H54:H55) -> 5.9445
G61: =G62-H72 -> 2.9035 | H61: 3
G62: =H176 -> 3.0035 | H62: 2
G63: SLOPE LTS | H63: =SLOPE(G61:G62,H61:H62) -> -0.1
G64: INTERCEPT LTS | H64: =INTERCEPT(G61:G62,H61:H62) -> 3.2035
G66: =G67-H72 -> 3.0025 | H66: 1
G67: =H76 -> 3.1025 | H67: 0
G68: SLOPE LTS | H68: =SLOPE(G66:G67,H66:H67) -> -0.1
G69: INTERCEPT LTS | H69: =INTERCEPT(G66:G67,H66:H67) -> 3.1025
S71: =settings!$H$101 -> 1 | T71: =settings!$H$102 -> 1 | U71: =settings!$H$103 -> 1
H72: 0.1 | J72: 0 | K72: 0 | L72: 0.01 | O72: 0.01 | P72: 0.02 | S72: =IF(settings!$B$95=constants!$C$60,0,1) -> 1 | T72: =IF(settings!$B$96=constants!$C$60,0,1) -> 1 | U72: =IF(settings!$B$97=constants!$C$60,0,1) -> 1 | V72: 0 | W72: 0 | X72: 0 | Y72: 0.03 | Z72: 0.035 | AA72: 0.04
C73: STS/LTS unconnected | E73: STS/LTS connected | G73: Primary cell | I73: EFFECTIVE | L73: VSUP to STS | M73: VSUP to LDO2 | N73: VSUP to LDO1 | O73: VSUP intermadiate | P73: EFFECTIVE | Q73: VAUX to LDO1 | R73: VAUX to LDO | S73: VAUX SELECTION | V73: VAUX SELECTION WITHOUT OFFSET | Y73: EFFECTIVE
C74: 0.3 | D74: 0.015 | E74: 0.01 | F74: 0.015 | G74: 0.01 | H74: 0.015 | L74: 1 | M74: 1 | N74: 1 | O74: 0.9 | P74: 1 | Q74: 1 | R74: 1 | S74: 1 | T74: 1 | U74: 1 | V74: 0.9 | W74: 0.9 | X74: 0.9 | Y74: 0.9 | Z74: 0.9 | AA74: 0.9
A75: phase | B75: t | C75: VDD_STS | D75: VDD_LTS | E75: VDD_STS | F75: VDD_LTS | G75: VDD_STS | H75: VDD_LTS | I75: VDD_STS | J75: VDD_LTS | K75: HYST STS VS BAT_MIN | L75: VSUP | M75: VSUP | N75: VSUP | O75: VSUP | P75: VSUP | Q75: VAUX | R75: VAUX | S75: VAUX0 | T75: VAUX1 | U75: VAUX2 | V75: VAUX0 | W75: VAUX1 | X75: VAUX2 | Y75: VAUX0 | Z75: VAUX1 | AA75: VAUX2
A76: =IF(B76<=100,1,IF(B76<=200,2,3)) -> 1 | B76: 0 | C76: =$B$18/(1-EXP(-1/C$74))*(1-EXP(-$B76/C$74)) -> 0 | D76: =$B$18/2 -> 0.65 | E76: =($F$76-$F$74)/(1-EXP(-1/E$74))*(1-EXP(-$B76/E$74)) -> 0 | F76: =IF(B12=-1,(B11+B16)/2,(B11+B16)/2) -> 3.1025 | G76: =(H76-$H$74)/(1-EXP(-1/G$74))*(1-EXP(-$B76/G$74)) -> 0 | H76: =IF(B12=-1,(B11+B16)/2,(B11+B16)/2) -> 3.1025 | I76: =IF($B$7=constants!$C$60,G76,IF($B$8=constants!$C$60,C76,E76)) -> 0 | J76: =IF($B$7=constants!$C$60,H76,IF($B$8=constants!$C$60,D76,F76)) -> 0.65 | K76: 0 | L76: 0 | M76: 0 | N76: 0 | O76: 0 | P76: =IF(O76=0,0,O76-$P$72) -> 0 | Q76: 0 | R76: 0 | S76: =S$72*IF(S$71=0,$L76,IF(S$71=1,$R76,IF($B$12=-1,$L76,IF($I76>$B$12,$R76,$L76)))) -> 0 | T76: =T$72*IF(T$71=0,$L76,IF(T$71=1,$R76,IF($B$12=-1,$L76,IF($I76>$B$12,$R76,$L76)))) -> 0 | U76: =U$72*IF(U$71=0,$L76,IF(U$71=1,$R76,IF($B$12=-1,$L76,IF($I76>$B$12,$R76,$L76)))) -> 0 | V76: 0 | W76: 0 | X76: 0 | Y76: =IF(V76=0,0,V76-Y$72) -> 0 | Z76: =IF(W76=0,0,W76-Z$72) -> 0 | AA76: =IF(X76=0,0,X76-AA$72) -> 0
A77: =IF(B77<=100,1,IF(B77<=200,2,3)) -> 1 | B77: =B76+0.01 -> 0.01 | C77: =$B$18/(1-EXP(-1/$C$74))*(1-EXP(-B77/$C$74)) -> 0.04419570672 | D77: =D76 -> 0.65 | E77: 1.951672225 | F77: =F76 -> 3.1025 | G77: 1.951040105 | H77: =$H$68*B77+$H$69 -> 3.1015 | I77: =IF($B$7=constants!$C$60,G77,IF($B$8=constants!$C$60,C77,E77)) -> 0.04419570672 | J77: =IF($B$7=constants!$C$60,H77,IF($B$8=constants!$C$60,D77,F77)) -> 0.65 | K77: =IF(AND(I77>$B$16,K76=0),1,IF(AND(I77<$B$17,K76=1),0,K76)) -> 0 | L77: 0 | M77: 0 | N77: =IF(M77>I77,L77,M77) -> 0 | O77: =IF(OR($B$22=constants!$B$60,AND(I77>$B$12,$B$12<>-1)),O76+(N77-O76)*$O$74,O76+(L77-O76)*$O$74) -> 0 | P77: =IF(O77=0,0,O77-$P$72) -> 0 | Q77: 0 | R77: =IF(Q77>I77,I77,Q77) -> 0 | S77: =S$72*IF(S$71=0,$L77,IF(S$71=1,$R77,IF($B$12=-1,$L77,IF($I77>$B$12,$R77,$L77)))) -> 0 | T77: 0 | U77: 0 | V77: =V76+(S77-V$72-V76)*V$74 -> 0 | W77: =W76+(T77-W$72-W76)*W$74 -> 0 | X77: =X76+(U77-X$72-X76)*X$74 -> 0 | Y77: =IF(V77=0,0,V77-Y$72) -> 0 | Z77: =IF(W77=0,0,W77-Z$72) -> 0 | AA77: =IF(X77=0,0,X77-AA$72) -> 0
A78: 1 | B78: =B77+0.01 -> 0.02 | C78: 0.08694250583 | D78: =D77 -> 0.65 | E78: 2.669652313 | F78: =F77 -> 3.1025 | G78: 2.667922984 | H78: 3.1005 | I78: =IF($B$7=constants!$C$60,G78,IF($B$8=constants!$C$60,C78,E78)) -> 0.08694250583 | J78: =IF($B$7=constants!$C$60,H78,IF($B$8=constants!$C$60,D78,F78)) -> 0.65 | K78: =IF(AND(I78>$B$16,K77=0),1,IF(AND(I78<$B$17,K77=1),0,K77)) -> 0 | L78: 0 | M78: 0 | N78: 0 | O78: =IF(OR($B$22=constants!$B$60,AND(I78>$B$12,$B$12<>-1)),O77+(N78-O77)*$O$74,O77+(L78-O77)*$O$74) -> 0 | P78: 0 | Q78: 0 | R78: =IF(Q78>I78,I78,Q78) -> 0 | S78: 0 | T78: 0 | U78: 0 | V78: =V77+(S78-V$72-V77)*V$74 -> 0 | W78: =W77+(T78-W$72-W77)*W$74 -> 0 | X78: =X77+(U78-X$72-X77)*X$74 -> 0 | Y78: 0 | Z78: 0 | AA78: 0
A79: 1 | B79: 0.03 | C79: 0.1282878982 | D79: 0.65 | E79: 2.933782426 | F79: 3.1025 | G79: 2.930931788 | H79: 3.0995 | I79: =IF($B$7=constants!$C$60,G79,IF($B$8=constants!$C$60,C79,E79)) -> 0.1282878982 | J79: =IF($B$7=constants!$C$60,H79,IF($B$8=constants!$C$60,D79,F79)) -> 0.65 | K79: 0 | L79: 0 | M79: 0 | N79: 0 | O79: =IF(OR($B$22=constants!$B$60,AND(I79>$B$12,$B$12<>-1)),O78+(N79-O78)*$O$74,O78+(L79-O78)*$O$74) -> 0 | P79: 0 | Q79: 0 | R79: 0 | S79: 0 | T79: 0 | U79: 0 | V79: 0 | W79: 0 | X79: 0 | Y79: 0 | Z79: 0 | AA79: 0
A80: 1 | B80: 0.04 | C80: 0.1682778273 | D80: 0.65 | E80: 3.030950465 | F80: 3.1025 | G80: 3.027023727 | H80: 3.0985 | I80: =IF($B$7=constants!$C$60,G80,IF($B$8=constants!$C$60,C80,E80)) -> 0.1682778273 | J80: =IF($B$7=constants!$C$60,H80,IF($B$8=constants!$C$60,D80,F80)) -> 0.65 | K80: 0 | L80: 0 | M80: 0 | N80: 0 | O80: =IF(OR($B$22=constants!$B$60,AND(I80>$B$12,$B$12<>-1)),O79+(N80-O79)*$O$74,O79+(L80-O79)*$O$74) -> 0 | P80: 0 | Q80: 0 | R80: 0 | S80: 0 | T80: 0 | U80: 0 | V80: 0 | W80: 0 | X80: 0 | Y80: 0 | Z80: 0 | AA80: 0
A81: 1 | B81: 0.05 | C81: 0.2069567307 | D81: 0.65 | E81: 3.066696589 | F81: 3.1025 | G81: 3.061730278 | H81: 3.0975 | I81: =IF($B$7=constants!$C$60,G81,IF($B$8=constants!$C$60,C81,E81)) -> 0.2069567307 | J81: =IF($B$7=constants!$C$60,H81,IF($B$8=constants!$C$60,D81,F81)) -> 0.65 | K81: 0 | L81: 0 | M81: 0 | N81: 0 | O81: =IF(OR($B$22=constants!$B$60,AND(I81>$B$12,$B$12<>-1)),O80+(N81-O80)*$O$74,O80+(L81-O80)*$O$74) -> 0 | P81: 0 | Q81: 0 | R81: 0 | S81: 0 | T81: 0 | U81: 0 | V81: 0 | W81: 0 | X81: 0 | Y81: 0 | Z81: 0 | AA81: 0
A82: 1 | B82: 0.06 | C82: 0.2443675887 | D82: 0.65 | E82: 3.079846853 | F82: 3.1025 | G82: 3.073861725 | H82: 3.0965 | I82: =IF($B$7=constants!$C$60,G82,IF($B$8=constants!$C$60,C82,E82)) -> 0.2443675887 | J82: =IF($B$7=constants!$C$60,H82,IF($B$8=constants!$C$60,D82,F82)) -> 0.65 | K82: 0 | L82: 0 | M82: 0 | N82: 0 | O82: =IF(OR($B$22=constants!$B$60,AND(I82>$B$12,$B$12<>-1)),O81+(N82-O81)*$O$74,O81+(L82-O81)*$O$74) -> 0 | P82: 0 | Q82: 0 | R82: 0 | S82: 0 | T82: 0 | U82: 0 | V82: 0 | W82: 0 | X82: 0 | Y82: 0 | Z82: 0 | AA82: 0
A83: 1 | B83: 0.07 | C83: 0.280551973 | D83: 0.65 | E83: 3.084684564 | F83: 3.1025 | G83: 3.077690948 | H83: 3.0955 | I83: =IF($B$7=constants!$C$60,G83,IF($B$8=constants!$C$60,C83,E83)) -> 0.280551973 | J83: =IF($B$7=constants!$C$60,H83,IF($B$8=constants!$C$60,D83,F83)) -> 0.65 | K83: 0 | L83: 0 | M83: 0 | N83: 0 | O83: =IF(OR($B$22=constants!$B$60,AND(I83>$B$12,$B$12<>-1)),O82+(N83-O82)*$O$74,O82+(L83-O82)*$O$74) -> 0 | P83: 0 | Q83: 0 | R83: 0 | S83: 0 | T83: 0 | U83: 0 | V83: 0 | W83: 0 | X83: 0 | Y83: 0 | Z83: 0 | AA83: 0
A84: 1 | B84: 0.08 | C84: 0.315550092 | D84: 0.65 | E84: 3.086464259 | F84: 3.1025 | G84: 3.078466943 | H84: 3.0945 | I84: =IF($B$7=constants!$C$60,G84,IF($B$8=constants!$C$60,C84,E84)) -> 0.315550092 | J84: =IF($B$7=constants!$C$60,H84,IF($B$8=constants!$C$60,D84,F84)) -> 0.65 | K84: 0 | L84: 0 | M84: 0 | N84: 0 | O84: =IF(OR($B$22=constants!$B$60,AND(I84>$B$12,$B$12<>-1)),O83+(N84-O83)*$O$74,O83+(L84-O83)*$O$74) -> 0 | P84: 0 | Q84: 0 | R84: 0 | S84: 0 | T84: 0 | U84: 0 | V84: 0 | W84: 0 | X84: 0 | Y84: 0 | Z84: 0 | AA84: 0
A85: 1 | B85: 0.09 | C85: 0.3494008362 | D85: 0.65 | E85: 3.087118972 | F85: 3.1025 | G85: 3.078120083 | H85: 3.0935 | I85: =IF($B$7=constants!$C$60,G85,IF($B$8=constants!$C$60,C85,E85)) -> 0.3494008362 | J85: =IF($B$7=constants!$C$60,H85,IF($B$8=constants!$C$60,D85,F85)) -> 0.65 | K85: 0 | L85: 0 | M85: 0 | N85: 0 | O85: =IF(OR($B$22=constants!$B$60,AND(I85>$B$12,$B$12<>-1)),O84+(N85-O84)*$O$74,O84+(L85-O84)*$O$74) -> 0 | P85: 0 | Q85: 0 | R85: 0 | S85: 0 | T85: 0 | U85: 0 | V85: 0 | W85: 0 | X85: 0 | Y85: 0 | Z85: 0 | AA85: 0
A86: 1 | B86: 0.1 | C86: 0.382141821 | D86: 0.65 | E86: 3.087359828 | F86: 3.1025 | G86: 3.077360282 | H86: 3.0925 | I86: =IF($B$7=constants!$C$60,G86,IF($B$8=constants!$C$60,C86,E86)) -> 0.382141821 | J86: =IF($B$7=constants!$C$60,H86,IF($B$8=constants!$C$60,D86,F86)) -> 0.65 | K86: 0 | L86: 0 | M86: 0 | N86: 0 | O86: =IF(OR($B$22=constants!$B$60,AND(I86>$B$12,$B$12<>-1)),O85+(N86-O85)*$O$74,O85+(L86-O85)*$O$74) -> 0 | P86: 0 | Q86: 0 | R86: 0 | S86: 0 | T86: 0 | U86: 0 | V86: 0 | W86: 0 | X86: 0 | Y86: 0 | Z86: 0 | AA86: 0
A87: 1 | B87: 0.11 | C87: 0.4138094287 | D87: 0.65 | E87: 3.087448433 | F87: 3.1025 | G87: 3.076448617 | H87: 3.0915 | I87: =IF($B$7=constants!$C$60,G87,IF($B$8=constants!$C$60,C87,E87)) -> 0.4138094287 | J87: =IF($B$7=constants!$C$60,H87,IF($B$8=constants!$C$60,D87,F87)) -> 0.65 | K87: 0 | L87: 0 | M87: 0 | N87: 0 | O87: =IF(OR($B$22=constants!$B$60,AND(I87>$B$12,$B$12<>-1)),O86+(N87-O86)*$O$74,O86+(L87-O86)*$O$74) -> 0 | P87: 0 | Q87: 0 | R87: 0 | S87: 0 | T87: 0 | U87: 0 | V87: 0 | W87: 0 | X87: 0 | Y87: 0 | Z87: 0 | AA87: 0
A88: 1 | B88: 0.12 | C88: 0.4444388487 | D88: 0.65 | E88: 3.08748103 | F88: 3.1025 | G88: 3.075481103 | H88: 3.0905 | I88: =IF($B$7=constants!$C$60,G88,IF($B$8=constants!$C$60,C88,E88)) -> 0.4444388487 | J88: =IF($B$7=constants!$C$60,H88,IF($B$8=constants!$C$60,D88,F88)) -> 0.65 | K88: 0 | L88: 0 | M88: 0 | N88: 0 | O88: =IF(OR($B$22=constants!$B$60,AND(I88>$B$12,$B$12<>-1)),O87+(N88-O87)*$O$74,O87+(L88-O87)*$O$74) -> 0 | P88: 0 | Q88: 0 | R88: 0 | S88: 0 | T88: 0 | U88: 0 | V88: 0 | W88: 0 | X88: 0 | Y88: 0 | Z88: 0 | AA88: 0
A89: 1 | B89: 0.13 | C89: 0.4740641168 | D89: 0.65 | E89: 3.087493021 | F89: 3.1025 | G89: 3.074493051 | H89: 3.0895 | I89: =IF($B$7=constants!$C$60,G89,IF($B$8=constants!$C$60,C89,E89)) -> 0.4740641168 | J89: =IF($B$7=constants!$C$60,H89,IF($B$8=constants!$C$60,D89,F89)) -> 0.65 | K89: 0 | L89: 0 | M89: 0 | N89: 0 | O89: =IF(OR($B$22=constants!$B$60,AND(I89>$B$12,$B$12<>-1)),O88+(N89-O88)*$O$74,O88+(L89-O88)*$O$74) -> 0 | P89: 0 | Q89: 0 | R89: 0 | S89: 0 | T89: 0 | U89: 0 | V89: 0 | W89: 0 | X89: 0 | Y89: 0 | Z89: 0 | AA89: 0
A90: 1 | B90: 0.14 | C90: 0.5027181532 | D90: 0.65 | E90: 3.087497433 | F90: 3.1025 | G90: 3.073497444 | H90: 3.0885 | I90: =IF($B$7=constants!$C$60,G90,IF($B$8=constants!$C$60,C90,E90)) -> 0.5027181532 | J90: =IF($B$7=constants!$C$60,H90,IF($B$8=constants!$C$60,D90,F90)) -> 0.65 | K90: 0 | L90: 0 | M90: 0 | N90: 0 | O90: =IF(OR($B$22=constants!$B$60,AND(I90>$B$12,$B$12<>-1)),O89+(N90-O89)*$O$74,O89+(L90-O89)*$O$74) -> 0 | P90: 0 | Q90: 0 | R90: 0 | S90: 0 | T90: 0 | U90: 0 | V90: 0 | W90: 0 | X90: 0 | Y90: 0 | Z90: 0 | AA90: 0
A91: 1 | B91: 0.15 | C91: 0.5304327985 | D91: 0.65 | E91: 3.087499056 | F91: 3.1025 | G91: 3.07249906 | H91: 3.0875 | I91: =IF($B$7=constants!$C$60,G91,IF($B$8=constants!$C$60,C91,E91)) -> 0.5304327985 | J91: =IF($B$7=constants!$C$60,H91,IF($B$8=constants!$C$60,D91,F91)) -> 0.65 | K91: 0 | L91: 0 | M91: 0 | N91: 0 | O91: =IF(OR($B$22=constants!$B$60,AND(I91>$B$12,$B$12<>-1)),O90+(N91-O90)*$O$74,O90+(L91-O90)*$O$74) -> 0 | P91: 0 | Q91: 0 | R91: 0 | S91: 0 | T91: 0 | U91: 0 | V91: 0 | W91: 0 | X91: 0 | Y91: 0 | Z91: 0 | AA91: 0
A92: 1 | B92: 0.16 | C92: 0.5572388497 | D92: 0.65 | E92: 3.087499653 | F92: 3.1025 | G92: 3.071499654 | H92: 3.0865 | I92: =IF($B$7=constants!$C$60,G92,IF($B$8=constants!$C$60,C92,E92)) -> 0.5572388497 | J92: =IF($B$7=constants!$C$60,H92,IF($B$8=constants!$C$60,D92,F92)) -> 0.65 | K92: 0 | L92: 0 | M92: 0 | N92: 0 | O92: =IF(OR($B$22=constants!$B$60,AND(I92>$B$12,$B$12<>-1)),O91+(N92-O91)*$O$74,O91+(L92-O91)*$O$74) -> 0 | P92: 0 | Q92: 0 | R92: 0 | S92: 0 | T92: 0 | U92: 0 | V92: 0 | W92: 0 | X92: 0 | Y92: 0 | Z92: 0 | AA92: 0
A93: 1 | B93: 0.17 | C93: 0.5831660939 | D93: 0.65 | E93: 3.087499872 | F93: 3.1025 | G93: 3.070499873 | H93: 3.0855 | I93: =IF($B$7=constants!$C$60,G93,IF($B$8=constants!$C$60,C93,E93)) -> 0.5831660939 | J93: =IF($B$7=constants!$C$60,H93,IF($B$8=constants!$C$60,D93,F93)) -> 0.65 | K93: 0 | L93: 0 | M93: 0 | N93: 0 | O93: =IF(OR($B$22=constants!$B$60,AND(I93>$B$12,$B$12<>-1)),O92+(N93-O92)*$O$74,O92+(L93-O92)*$O$74) -> 0 | P93: 0 | Q93: 0 | R93: 0 | S93: 0 | T93: 0 | U93: 0 | V93: 0 | W93: 0 | X93: 0 | Y93: 0 | Z93: 0 | AA93: 0
A94: 1 | B94: 0.18 | C94: 0.608243342 | D94: 0.65 | E94: 3.087499953 | F94: 3.1025 | G94: 3.069499953 | H94: 3.0845 | I94: =IF($B$7=constants!$C$60,G94,IF($B$8=constants!$C$60,C94,E94)) -> 0.608243342 | J94: =IF($B$7=constants!$C$60,H94,IF($B$8=constants!$C$60,D94,F94)) -> 0.65 | K94: 0 | L94: 0 | M94: 0 | N94: 0 | O94: =IF(OR($B$22=constants!$B$60,AND(I94>$B$12,$B$12<>-1)),O93+(N94-O93)*$O$74,O93+(L94-O93)*$O$74) -> 0 | P94: 0 | Q94: 0 | R94: 0 | S94: 0 | T94: 0 | U94: 0 | V94: 0 | W94: 0 | X94: 0 | Y94: 0 | Z94: 0 | AA94: 0
A95: 1 | B95: 0.19 | C95: 0.6324984601 | D95: 0.65 | E95: 3.087499983 | F95: 3.1025 | G95: 3.068499983 | H95: 3.0835 | I95: =IF($B$7=constants!$C$60,G95,IF($B$8=constants!$C$60,C95,E95)) -> 0.6324984601 | J95: =IF($B$7=constants!$C$60,H95,IF($B$8=constants!$C$60,D95,F95)) -> 0.65 | K95: 0 | L95: 0 | M95: 0 | N95: 0 | O95: =IF(OR($B$22=constants!$B$60,AND(I95>$B$12,$B$12<>-1)),O94+(N95-O94)*$O$74,O94+(L95-O94)*$O$74) -> 0 | P95: 0 | Q95: 0 | R95: 0 | S95: 0 | T95: 0 | U95: 0 | V95: 0 | W95: 0 | X95: 0 | Y95: 0 | Z95: 0 | AA95: 0
A96: 1 | B96: 0.2 | C96: 0.6559584009 | D96: 0.65 | E96: 3.087499994 | F96: 3.1025 | G96: 3.067499994 | H96: 3.0825 | I96: =IF($B$7=constants!$C$60,G96,IF($B$8=constants!$C$60,C96,E96)) -> 0.6559584009 | J96: =IF($B$7=constants!$C$60,H96,IF($B$8=constants!$C$60,D96,F96)) -> 0.65 | K96: 0 | L96: 0 | M96: 0 | N96: 0 | O96: =IF(OR($B$22=constants!$B$60,AND(I96>$B$12,$B$12<>-1)),O95+(N96-O95)*$O$74,O95+(L96-O95)*$O$74) -> 0 | P96: 0 | Q96: 0 | R96: 0 | S96: 0 | T96: 0 | U96: 0 | V96: 0 | W96: 0 | X96: 0 | Y96: 0 | Z96: 0 | AA96: 0
A97: 1 | B97: 0.21 | C97: 0.6786492333 | D97: 0.65 | E97: 3.087499998 | F97: 3.1025 | G97: 3.066499998 | H97: 3.0815 | I97: =IF($B$7=constants!$C$60,G97,IF($B$8=constants!$C$60,C97,E97)) -> 0.6786492333 | J97: =IF($B$7=constants!$C$60,H97,IF($B$8=constants!$C$60,D97,F97)) -> 0.65 | K97: 0 | L97: 0 | M97: 0 | N97: 0 | O97: =IF(OR($B$22=constants!$B$60,AND(I97>$B$12,$B$12<>-1)),O96+(N97-O96)*$O$74,O96+(L97-O96)*$O$74) -> 0 | P97: 0 | Q97: 0 | R97: 0 | S97: 0 | T97: 0 | U97: 0 | V97: 0 | W97: 0 | X97: 0 | Y97: 0 | Z97: 0 | AA97: 0
A98: 1 | B98: 0.22 | C98: 0.7005961718 | D98: 0.65 | E98: 3.087499999 | F98: 3.1025 | G98: 3.065499999 | H98: 3.0805 | I98: =IF($B$7=constants!$C$60,G98,IF($B$8=constants!$C$60,C98,E98)) -> 0.7005961718 | J98: =IF($B$7=constants!$C$60,H98,IF($B$8=constants!$C$60,D98,F98)) -> 0.65 | K98: 0 | L98: 0 | M98: 0 | N98: 0 | O98: =IF(OR($B$22=constants!$B$60,AND(I98>$B$12,$B$12<>-1)),O97+(N98-O97)*$O$74,O97+(L98-O97)*$O$74) -> 0 | P98: 0 | Q98: 0 | R98: 0 | S98: 0 | T98: 0 | U98: 0 | V98: 0 | W98: 0 | X98: 0 | Y98: 0 | Z98: 0 | AA98: 0
A99: 1 | B99: 0.23 | C99: 0.721823604 | D99: 0.65 | E99: 3.0875 | F99: 3.1025 | G99: 3.0645 | H99: 3.0795 | I99: =IF($B$7=constants!$C$60,G99,IF($B$8=constants!$C$60,C99,E99)) -> 0.721823604 | J99: =IF($B$7=constants!$C$60,H99,IF($B$8=constants!$C$60,D99,F99)) -> 0.65 | K99: 0 | L99: 0 | M99: 0 | N99: 0 | O99: =IF(OR($B$22=constants!$B$60,AND(I99>$B$12,$B$12<>-1)),O98+(N99-O98)*$O$74,O98+(L99-O98)*$O$74) -> 0 | P99: 0 | Q99: 0 | R99: 0 | S99: 0 | T99: 0 | U99: 0 | V99: 0 | W99: 0 | X99: 0 | Y99: 0 | Z99: 0 | AA99: 0
A100: 1 | B100: 0.24 | C100: 0.7423551182 | D100: 0.65 | E100: 3.0875 | F100: 3.1025 | G100: 3.0635 | H100: 3.0785 | I100: =IF($B$7=constants!$C$60,G100,IF($B$8=constants!$C$60,C100,E100)) -> 0.7423551182 | J100: =IF($B$7=constants!$C$60,H100,IF($B$8=constants!$C$60,D100,F100)) -> 0.65 | K100: 0 | L100: 0 | M100: 0 | N100: 0 | O100: =IF(OR($B$22=constants!$B$60,AND(I100>$B$12,$B$12<>-1)),O99+(N100-O99)*$O$74,O99+(L100-O99)*$O$74) -> 0 | P100: 0 | Q100: 0 | R100: 0 | S100: 0 | T100: 0 | U100: 0 | V100: 0 | W100: 0 | X100: 0 | Y100: 0 | Z100: 0 | AA100: 0
A101: 1 | B101: 0.25 | C101: 0.7622135293 | D101: 0.65 | E101: 3.0875 | F101: 3.1025 | G101: 3.0625 | H101: 3.0775 | I101: =IF($B$7=constants!$C$60,G101,IF($B$8=constants!$C$60,C101,E101)) -> 0.7622135293 | J101: =IF($B$7=constants!$C$60,H101,IF($B$8=constants!$C$60,D101,F101)) -> 0.65 | K101: 0 | L101: 0 | M101: 0 | N101: 0 | O101: =IF(OR($B$22=constants!$B$60,AND(I101>$B$12,$B$12<>-1)),O100+(N101-O100)*$O$74,O100+(L101-O100)*$O$74) -> 0 | P101: 0 | Q101: 0 | R101: 0 | S101: 0 | T101: 0 | U101: 0 | V101: 0 | W101: 0 | X101: 0 | Y101: 0 | Z101: 0 | AA101: 0
A102: 1 | B102: 0.26 | C102: 0.7814209043 | D102: 0.65 | E102: 3.0875 | F102: 3.1025 | G102: 3.0615 | H102: 3.0765 | I102: =IF($B$7=constants!$C$60,G102,IF($B$8=constants!$C$60,C102,E102)) -> 0.7814209043 | J102: =IF($B$7=constants!$C$60,H102,IF($B$8=constants!$C$60,D102,F102)) -> 0.65 | K102: 0 | L102: 0 | M102: 0 | N102: 0 | O102: =IF(OR($B$22=constants!$B$60,AND(I102>$B$12,$B$12<>-1)),O101+(N102-O101)*$O$74,O101+(L102-O101)*$O$74) -> 0 | P102: 0 | Q102: 0 | R102: 0 | S102: 0 | T102: 0 | U102: 0 | V102: 0 | W102: 0 | X102: 0 | Y102: 0 | Z102: 0 | AA102: 0
A103: 1 | B103: 0.27 | C103: 0.7999985866 | D103: 0.65 | E103: 3.0875 | F103: 3.1025 | G103: 3.0605 | H103: 3.0755 | I103: =IF($B$7=constants!$C$60,G103,IF($B$8=constants!$C$60,C103,E103)) -> 0.7999985866 | J103: =IF($B$7=constants!$C$60,H103,IF($B$8=constants!$C$60,D103,F103)) -> 0.65 | K103: 0 | L103: 0 | M103: 0 | N103: 0 | O103: =IF(OR($B$22=constants!$B$60,AND(I103>$B$12,$B$12<>-1)),O102+(N103-O102)*$O$74,O102+(L103-O102)*$O$74) -> 0 | P103: 0 | Q103: 0 | R103: 0 | S103: 0 | T103: 0 | U103: 0 | V103: 0 | W103: 0 | X103: 0 | Y103: 0 | Z103: 0 | AA103: 0
A104: 1 | B104: 0.28 | C104: 0.81796722 | D104: 0.65 | E104: 3.0875 | F104: 3.1025 | G104: 3.0595 | H104: 3.0745 | I104: =IF($B$7=constants!$C$60,G104,IF($B$8=constants!$C$60,C104,E104)) -> 0.81796722 | J104: =IF($B$7=constants!$C$60,H104,IF($B$8=constants!$C$60,D104,F104)) -> 0.65 | K104: 0 | L104: 0 | M104: 0 | N104: 0 | O104: =IF(OR($B$22=constants!$B$60,AND(I104>$B$12,$B$12<>-1)),O103+(N104-O103)*$O$74,O103+(L104-O103)*$O$74) -> 0 | P104: 0 | Q104: 0 | R104: 0 | S104: 0 | T104: 0 | U104: 0 | V104: 0 | W104: 0 | X104: 0 | Y104: 0 | Z104: 0 | AA104: 0
A105: 1 | B105: 0.29 | C105: 0.8353467716 | D105: 0.65 | E105: 3.0875 | F105: 3.1025 | G105: 3.0585 | H105: 3.0735 | I105: =IF($B$7=constants!$C$60,G105,IF($B$8=constants!$C$60,C105,E105)) -> 0.8353467716 | J105: =IF($B$7=constants!$C$60,H105,IF($B$8=constants!$C$60,D105,F105)) -> 0.65 | K105: 0 | L105: 0 | M105: 0 | N105: 0 | O105: =IF(OR($B$22=constants!$B$60,AND(I105>$B$12,$B$12<>-1)),O104+(N105-O104)*$O$74,O104+(L105-O104)*$O$74) -> 0 | P105: 0 | Q105: 0 | R105: 0 | S105: 0 | T105: 0 | U105: 0 | V105: 0 | W105: 0 | X105: 0 | Y105: 0 | Z105: 0 | AA105: 0
A106: 1 | B106: 0.3 | C106: 0.8521565537 | D106: 0.65 | E106: 3.0875 | F106: 3.1025 | G106: 3.0575 | H106: 3.0725 | I106: =IF($B$7=constants!$C$60,G106,IF($B$8=constants!$C$60,C106,E106)) -> 0.8521565537 | J106: =IF($B$7=constants!$C$60,H106,IF($B$8=constants!$C$60,D106,F106)) -> 0.65 | K106: 0 | L106: 0 | M106: 0 | N106: 0 | O106: =IF(OR($B$22=constants!$B$60,AND(I106>$B$12,$B$12<>-1)),O105+(N106-O105)*$O$74,O105+(L106-O105)*$O$74) -> 0 | P106: 0 | Q106: 0 | R106: 0 | S106: 0 | T106: 0 | U106: 0 | V106: 0 | W106: 0 | X106: 0 | Y106: 0 | Z106: 0 | AA106: 0
A107: 1 | B107: 0.31 | C107: 0.8684152456 | D107: 0.65 | E107: 3.0875 | F107: 3.1025 | G107: 3.0565 | H107: 3.0715 | I107: =IF($B$7=constants!$C$60,G107,IF($B$8=constants!$C$60,C107,E107)) -> 0.8684152456 | J107: =IF($B$7=constants!$C$60,H107,IF($B$8=constants!$C$60,D107,F107)) -> 0.65 | K107: 0 | L107: 0 | M107: 0 | N107: 0 | O107: =IF(OR($B$22=constants!$B$60,AND(I107>$B$12,$B$12<>-1)),O106+(N107-O106)*$O$74,O106+(L107-O106)*$O$74) -> 0 | P107: 0 | Q107: 0 | R107: 0 | S107: 0 | T107: 0 | U107: 0 | V107: 0 | W107: 0 | X107: 0 | Y107: 0 | Z107: 0 | AA107: 0
A108: 1 | B108: 0.32 | C108: 0.8841409142 | D108: 0.65 | E108: =($F$76-$F$74)/(1-EXP(-1/E$74))*(1-EXP(-$B108/E$74)) -> 3.0875 | F108: 3.1025 | G108: =(H108-$H$74)/(1-EXP(-1/G$74))*(1-EXP(-$B108/G$74)) -> 3.0555 | H108: 3.0705 | I108: =IF($B$7=constants!$C$60,G108,IF($B$8=constants!$C$60,C108,E108)) -> 0.8841409142 | J108: =IF($B$7=constants!$C$60,H108,IF($B$8=constants!$C$60,D108,F108)) -> 0.65 | K108: 0 | L108: 0 | M108: 0 | N108: 0 | O108: =IF(OR($B$22=constants!$B$60,AND(I108>$B$12,$B$12<>-1)),O107+(N108-O107)*$O$74,O107+(L108-O107)*$O$74) -> 0 | P108: 0 | Q108: 0 | R108: 0 | S108: 0 | T108: 0 | U108: 0 | V108: 0 | W108: 0 | X108: 0 | Y108: 0 | Z108: 0 | AA108: 0
A109: 1 | B109: 0.33 | C109: =$B$18/(1-EXP(-1/$C$74))*(1-EXP(-B109/$C$74)) -> 0.899351034 | D109: 0.65 | E109: 3.0875 | F109: 3.1025 | G109: 3.0545 | H109: =$H$68*B109+$H$69 -> 3.0695 | I109: =IF($B$7=constants!$C$60,G109,IF($B$8=constants!$C$60,C109,E109)) -> 0.899351034 | J109: =IF($B$7=constants!$C$60,H109,IF($B$8=constants!$C$60,D109,F109)) -> 0.65 | K109: 0 | L109: 0 | M109: 0 | N109: 0 | O109: =IF(OR($B$22=constants!$B$60,AND(I109>$B$12,$B$12<>-1)),O108+(N109-O108)*$O$74,O108+(L109-O108)*$O$74) -> 0 | P109: 0 | Q109: 0 | R109: 0 | S109: 0 | T109: 0 | U109: 0 | V109: 0 | W109: 0 | X109: 0 | Y109: 0 | Z109: 0 | AA109: 0
A110: 1 | B110: 0.34 | C110: 0.9140625068 | D110: 0.65 | E110: 3.0875 | F110: 3.1025 | G110: 3.0535 | H110: 3.0685 | I110: =IF($B$7=constants!$C$60,G110,IF($B$8=constants!$C$60,C110,E110)) -> 0.9140625068 | J110: =IF($B$7=constants!$C$60,H110,IF($B$8=constants!$C$60,D110,F110)) -> 0.65 | K110: 0 | L110: 0 | M110: 0 | N110: 0 | O110: =IF(OR($B$22=constants!$B$60,AND(I110>$B$12,$B$12<>-1)),O109+(N110-O109)*$O$74,O109+(L110-O109)*$O$74) -> 0 | P110: 0 | Q110: 0 | R110: 0 | S110: 0 | T110: 0 | U110: 0 | V110: 0 | W110: 0 | X110: 0 | Y110: 0 | Z110: 0 | AA110: 0
A111: 1 | B111: 0.35 | C111: 0.9282916801 | D111: 0.65 | E111: 3.0875 | F111: 3.1025 | G111: 3.0525 | H111: 3.0675 | I111: =IF($B$7=constants!$C$60,G111,IF($B$8=constants!$C$60,C111,E111)) -> 0.9282916801 | J111: =IF($B$7=constants!$C$60,H111,IF($B$8=constants!$C$60,D111,F111)) -> 0.65 | K111: 0 | L111: 0 | M111: 0 | N111: 0 | O111: =IF(OR($B$22=constants!$B$60,AND(I111>$B$12,$B$12<>-1)),O110+(N111-O110)*$O$74,O110+(L111-O110)*$O$74) -> 0 | P111: 0 | Q111: 0 | R111: 0 | S111: 0 | T111: 0 | U111: 0 | V111: 0 | W111: 0 | X111: 0 | Y111: 0 | Z111: 0 | AA111: 0
A112: 1 | B112: 0.36 | C112: 0.9420543657 | D112: 0.65 | E112: 3.0875 | F112: 3.1025 | G112: 3.0515 | H112: 3.0665 | I112: =IF($B$7=constants!$C$60,G112,IF($B$8=constants!$C$60,C112,E112)) -> 0.9420543657 | J112: =IF($B$7=constants!$C$60,H112,IF($B$8=constants!$C$60,D112,F112)) -> 0.65 | K112: 0 | L112: 0 | M112: 0 | N112: 0 | O112: =IF(OR($B$22=constants!$B$60,AND(I112>$B$12,$B$12<>-1)),O111+(N112-O111)*$O$74,O111+(L112-O111)*$O$74) -> 0 | P112: 0 | Q112: 0 | R112: 0 | S112: 0 | T112: 0 | U112: 0 | V112: 0 | W112: 0 | X112: 0 | Y112: 0 | Z112: 0 | AA112: 0
A113: 1 | B113: 0.37 | C113: 0.9553658567 | D113: 0.65 | E113: 3.0875 | F113: 3.1025 | G113: 3.0505 | H113: 3.0655 | I113: =IF($B$7=constants!$C$60,G113,IF($B$8=constants!$C$60,C113,E113)) -> 0.9553658567 | J113: =IF($B$7=constants!$C$60,H113,IF($B$8=constants!$C$60,D113,F113)) -> 0.65 | K113: 0 | L113: 0 | M113: 0 | N113: 0 | O113: =IF(OR($B$22=constants!$B$60,AND(I113>$B$12,$B$12<>-1)),O112+(N113-O112)*$O$74,O112+(L113-O112)*$O$74) -> 0 | P113: 0 | Q113: 0 | R113: 0 | S113: 0 | T113: 0 | U113: 0 | V113: 0 | W113: 0 | X113: 0 | Y113: 0 | Z113: 0 | AA113: 0
A114: 1 | B114: 0.38 | C114: 0.9682409452 | D114: 0.65 | E114: 3.0875 | F114: 3.1025 | G114: 3.0495 | H114: 3.0645 | I114: =IF($B$7=constants!$C$60,G114,IF($B$8=constants!$C$60,C114,E114)) -> 0.9682409452 | J114: =IF($B$7=constants!$C$60,H114,IF($B$8=constants!$C$60,D114,F114)) -> 0.65 | K114: 0 | L114: 0 | M114: 0 | N114: 0 | O114: =IF(OR($B$22=constants!$B$60,AND(I114>$B$12,$B$12<>-1)),O113+(N114-O113)*$O$74,O113+(L114-O113)*$O$74) -> 0 | P114: 0 | Q114: 0 | R114: 0 | S114: 0 | T114: 0 | U114: 0 | V114: 0 | W114: 0 | X114: 0 | Y114: 0 | Z114: 0 | AA114: 0
A115: 1 | B115: 0.39 | C115: 0.9806939381 | D115: 0.65 | E115: 3.0875 | F115: 3.1025 | G115: 3.0485 | H115: 3.0635 | I115: =IF($B$7=constants!$C$60,G115,IF($B$8=constants!$C$60,C115,E115)) -> 0.9806939381 | J115: =IF($B$7=constants!$C$60,H115,IF($B$8=constants!$C$60,D115,F115)) -> 0.65 | K115: 0 | L115: 0 | M115: 0 | N115: 0 | O115: =IF(OR($B$22=constants!$B$60,AND(I115>$B$12,$B$12<>-1)),O114+(N115-O114)*$O$74,O114+(L115-O114)*$O$74) -> 0 | P115: 0 | Q115: 0 | R115: 0 | S115: 0 | T115: 0 | U115: 0 | V115: 0 | W115: 0 | X115: 0 | Y115: 0 | Z115: 0 | AA115: 0
A116: 1 | B116: 0.4 | C116: 0.9927386733 | D116: 0.65 | E116: 3.0875 | F116: 3.1025 | G116: 3.0475 | H116: 3.0625 | I116: =IF($B$7=constants!$C$60,G116,IF($B$8=constants!$C$60,C116,E116)) -> 0.9927386733 | J116: =IF($B$7=constants!$C$60,H116,IF($B$8=constants!$C$60,D116,F116)) -> 0.65 | K116: 0 | L116: 0 | M116: 0 | N116: 0 | O116: =IF(OR($B$22=constants!$B$60,AND(I116>$B$12,$B$12<>-1)),O115+(N116-O115)*$O$74,O115+(L116-O115)*$O$74) -> 0 | P116: 0 | Q116: 0 | R116: 0 | S116: 0 | T116: 0 | U116: 0 | V116: 0 | W116: 0 | X116: 0 | Y116: 0 | Z116: 0 | AA116: 0
A117: 1 | B117: 0.41 | C117: 1.004388535 | D117: 0.65 | E117: 3.0875 | F117: 3.1025 | G117: 3.0465 | H117: 3.0615 | I117: =IF($B$7=constants!$C$60,G117,IF($B$8=constants!$C$60,C117,E117)) -> 1.004388535 | J117: =IF($B$7=constants!$C$60,H117,IF($B$8=constants!$C$60,D117,F117)) -> 0.65 | K117: 0 | L117: 0 | M117: 0 | N117: 0 | O117: =IF(OR($B$22=constants!$B$60,AND(I117>$B$12,$B$12<>-1)),O116+(N117-O116)*$O$74,O116+(L117-O116)*$O$74) -> 0 | P117: 0 | Q117: 0 | R117: 0 | S117: 0 | T117: 0 | U117: 0 | V117: 0 | W117: 0 | X117: 0 | Y117: 0 | Z117: 0 | AA117: 0
A118: 1 | B118: 0.42 | C118: 1.015656469 | D118: 0.65 | E118: 3.0875 | F118: =F117 -> 3.1025 | G118: 3.0455 | H118: 3.0605 | I118: =IF($B$7=constants!$C$60,G118,IF($B$8=constants!$C$60,C118,E118)) -> 1.015656469 | J118: =IF($B$7=constants!$C$60,H118,IF($B$8=constants!$C$60,D118,F118)) -> 0.65 | K118: 0 | L118: 0 | M118: 0 | N118: 0 | O118: =IF(OR($B$22=constants!$B$60,AND(I118>$B$12,$B$12<>-1)),O117+(N118-O117)*$O$74,O117+(L118-O117)*$O$74) -> 0 | P118: 0 | Q118: 0 | R118: 0 | S118: 0 | T118: 0 | U118: 0 | V118: 0 | W118: 0 | X118: 0 | Y118: 0 | Z118: 0 | AA118: 0
A119: 1 | B119: 0.43 | C119: 1.026554996 | D119: 0.65 | E119: 3.0875 | F119: 3.1025 | G119: 3.0445 | H119: 3.0595 | I119: =IF($B$7=constants!$C$60,G119,IF($B$8=constants!$C$60,C119,E119)) -> 1.026554996 | J119: =IF($B$7=constants!$C$60,H119,IF($B$8=constants!$C$60,D119,F119)) -> 0.65 | K119: 0 | L119: 0 | M119: 0 | N119: 0 | O119: =IF(OR($B$22=constants!$B$60,AND(I119>$B$12,$B$12<>-1)),O118+(N119-O118)*$O$74,O118+(L119-O118)*$O$74) -> 0 | P119: 0 | Q119: 0 | R119: 0 | S119: 0 | T119: 0 | U119: 0 | V119: 0 | W119: 0 | X119: 0 | Y119: 0 | Z119: 0 | AA119: 0
A120: 1 | B120: 0.44 | C120: 1.037096227 | D120: 0.65 | E120: 3.0875 | F120: 3.1025 | G120: 3.0435 | H120: 3.0585 | I120: =IF($B$7=constants!$C$60,G120,IF($B$8=constants!$C$60,C120,E120)) -> 1.037096227 | J120: =IF($B$7=constants!$C$60,H120,IF($B$8=constants!$C$60,D120,F120)) -> 0.65 | K120: 0 | L120: 0 | M120: 0 | N120: 0 | O120: =IF(OR($B$22=constants!$B$60,AND(I120>$B$12,$B$12<>-1)),O119+(N120-O119)*$O$74,O119+(L120-O119)*$O$74) -> 0 | P120: 0 | Q120: 0 | R120: 0 | S120: 0 | T120: 0 | U120: 0 | V120: 0 | W120: 0 | X120: 0 | Y120: 0 | Z120: 0 | AA120: 0
A121: 1 | B121: 0.45 | C121: 1.047291875 | D121: 0.65 | E121: 3.0875 | F121: 3.1025 | G121: 3.0425 | H121: 3.0575 | I121: =IF($B$7=constants!$C$60,G121,IF($B$8=constants!$C$60,C121,E121)) -> 1.047291875 | J121: =IF($B$7=constants!$C$60,H121,IF($B$8=constants!$C$60,D121,F121)) -> 0.65 | K121: 0 | L121: 0 | M121: 0 | N121: 0 | O121: =IF(OR($B$22=constants!$B$60,AND(I121>$B$12,$B$12<>-1)),O120+(N121-O120)*$O$74,O120+(L121-O120)*$O$74) -> 0 | P121: 0 | Q121: 0 | R121: 0 | S121: 0 | T121: 0 | U121: 0 | V121: 0 | W121: 0 | X121: 0 | Y121: 0 | Z121: 0 | AA121: 0
A122: 1 | B122: 0.46 | C122: 1.05715327 | D122: 0.65 | E122: 3.0875 | F122: 3.1025 | G122: 3.0415 | H122: 3.0565 | I122: =IF($B$7=constants!$C$60,G122,IF($B$8=constants!$C$60,C122,E122)) -> 1.05715327 | J122: =IF($B$7=constants!$C$60,H122,IF($B$8=constants!$C$60,D122,F122)) -> 0.65 | K122: 0 | L122: 0 | M122: 0 | N122: 0 | O122: =IF(OR($B$22=constants!$B$60,AND(I122>$B$12,$B$12<>-1)),O121+(N122-O121)*$O$74,O121+(L122-O121)*$O$74) -> 0 | P122: 0 | Q122: 0 | R122: 0 | S122: 0 | T122: 0 | U122: 0 | V122: 0 | W122: 0 | X122: 0 | Y122: 0 | Z122: 0 | AA122: 0
A123: 1 | B123: 0.47 | C123: 1.06669137 | D123: 0.65 | E123: 3.0875 | F123: 3.1025 | G123: 3.0405 | H123: 3.0555 | I123: =IF($B$7=constants!$C$60,G123,IF($B$8=constants!$C$60,C123,E123)) -> 1.06669137 | J123: =IF($B$7=constants!$C$60,H123,IF($B$8=constants!$C$60,D123,F123)) -> 0.65 | K123: 0 | L123: 0 | M123: 0 | N123: 0 | O123: =IF(OR($B$22=constants!$B$60,AND(I123>$B$12,$B$12<>-1)),O122+(N123-O122)*$O$74,O122+(L123-O122)*$O$74) -> 0 | P123: 0 | Q123: 0 | R123: 0 | S123: 0 | T123: 0 | U123: 0 | V123: 0 | W123: 0 | X123: 0 | Y123: 0 | Z123: 0 | AA123: 0
A124: 1 | B124: 0.48 | C124: 1.075916774 | D124: 0.65 | E124: 3.0875 | F124: 3.1025 | G124: 3.0395 | H124: 3.0545 | I124: =IF($B$7=constants!$C$60,G124,IF($B$8=constants!$C$60,C124,E124)) -> 1.075916774 | J124: =IF($B$7=constants!$C$60,H124,IF($B$8=constants!$C$60,D124,F124)) -> 0.65 | K124: 0 | L124: 0 | M124: 0 | N124: 0 | O124: =IF(OR($B$22=constants!$B$60,AND(I124>$B$12,$B$12<>-1)),O123+(N124-O123)*$O$74,O123+(L124-O123)*$O$74) -> 0 | P124: 0 | Q124: 0 | R124: 0 | S124: 0 | T124: 0 | U124: 0 | V124: 0 | W124: 0 | X124: 0 | Y124: 0 | Z124: 0 | AA124: 0
A125: 1 | B125: 0.49 | C125: 1.084839734 | D125: 0.65 | E125: 3.0875 | F125: 3.1025 | G125: 3.0385 | H125: 3.0535 | I125: =IF($B$7=constants!$C$60,G125,IF($B$8=constants!$C$60,C125,E125)) -> 1.084839734 | J125: =IF($B$7=constants!$C$60,H125,IF($B$8=constants!$C$60,D125,F125)) -> 0.65 | K125: 0 | L125: 0 | M125: 0 | N125: 0 | O125: =IF(OR($B$22=constants!$B$60,AND(I125>$B$12,$B$12<>-1)),O124+(N125-O124)*$O$74,O124+(L125-O124)*$O$74) -> 0 | P125: 0 | Q125: 0 | R125: 0 | S125: 0 | T125: 0 | U125: 0 | V125: 0 | W125: 0 | X125: 0 | Y125: 0 | Z125: 0 | AA125: 0
A126: 1 | B126: 0.5 | C126: 1.093470164 | D126: 0.65 | E126: 3.0875 | F126: 3.1025 | G126: 3.0375 | H126: 3.0525 | I126: =IF($B$7=constants!$C$60,G126,IF($B$8=constants!$C$60,C126,E126)) -> 1.093470164 | J126: =IF($B$7=constants!$C$60,H126,IF($B$8=constants!$C$60,D126,F126)) -> 0.65 | K126: 0 | L126: 0 | M126: 0 | N126: 0 | O126: =IF(OR($B$22=constants!$B$60,AND(I126>$B$12,$B$12<>-1)),O125+(N126-O125)*$O$74,O125+(L126-O125)*$O$74) -> 0 | P126: 0 | Q126: 0 | R126: 0 | S126: 0 | T126: 0 | U126: 0 | V126: 0 | W126: 0 | X126: 0 | Y126: 0 | Z126: 0 | AA126: 0
A127: 1 | B127: 0.51 | C127: 1.101817654 | D127: 0.65 | E127: 3.0875 | F127: 3.1025 | G127: 3.0365 | H127: 3.0515 | I127: =IF($B$7=constants!$C$60,G127,IF($B$8=constants!$C$60,C127,E127)) -> 1.101817654 | J127: =IF($B$7=constants!$C$60,H127,IF($B$8=constants!$C$60,D127,F127)) -> 0.65 | K127: 0 | L127: 0 | M127: 0 | N127: 0 | O127: =IF(OR($B$22=constants!$B$60,AND(I127>$B$12,$B$12<>-1)),O126+(N127-O126)*$O$74,O126+(L127-O126)*$O$74) -> 0 | P127: 0 | Q127: 0 | R127: 0 | S127: 0 | T127: 0 | U127: 0 | V127: 0 | W127: 0 | X127: 0 | Y127: 0 | Z127: 0 | AA127: 0
A128: 1 | B128: 0.52 | C128: 1.109891482 | D128: 0.65 | E128: 3.0875 | F128: 3.1025 | G128: 3.0355 | H128: 3.0505 | I128: =IF($B$7=constants!$C$60,G128,IF($B$8=constants!$C$60,C128,E128)) -> 1.109891482 | J128: =IF($B$7=constants!$C$60,H128,IF($B$8=constants!$C$60,D128,F128)) -> 0.65 | K128: 0 | L128: 0 | M128: 0 | N128: 0 | O128: =IF(OR($B$22=constants!$B$60,AND(I128>$B$12,$B$12<>-1)),O127+(N128-O127)*$O$74,O127+(L128-O127)*$O$74) -> 0 | P128: 0 | Q128: 0 | R128: 0 | S128: 0 | T128: 0 | U128: 0 | V128: 0 | W128: 0 | X128: 0 | Y128: 0 | Z128: 0 | AA128: 0
A129: 1 | B129: 0.53 | C129: 1.117700618 | D129: 0.65 | E129: 3.0875 | F129: 3.1025 | G129: 3.0345 | H129: 3.0495 | I129: =IF($B$7=constants!$C$60,G129,IF($B$8=constants!$C$60,C129,E129)) -> 1.117700618 | J129: =IF($B$7=constants!$C$60,H129,IF($B$8=constants!$C$60,D129,F129)) -> 0.65 | K129: 0 | L129: 0 | M129: 0 | N129: 0 | O129: =IF(OR($B$22=constants!$B$60,AND(I129>$B$12,$B$12<>-1)),O128+(N129-O128)*$O$74,O128+(L129-O128)*$O$74) -> 0 | P129: 0 | Q129: 0 | R129: 0 | S129: 0 | T129: 0 | U129: 0 | V129: 0 | W129: 0 | X129: 0 | Y129: 0 | Z129: 0 | AA129: 0
A130: 1 | B130: 0.54 | C130: 1.12525374 | D130: 0.65 | E130: 3.0875 | F130: 3.1025 | G130: 3.0335 | H130: 3.0485 | I130: =IF($B$7=constants!$C$60,G130,IF($B$8=constants!$C$60,C130,E130)) -> 1.12525374 | J130: =IF($B$7=constants!$C$60,H130,IF($B$8=constants!$C$60,D130,F130)) -> 0.65 | K130: 0 | L130: 0 | M130: 0 | N130: 0 | O130: =IF(OR($B$22=constants!$B$60,AND(I130>$B$12,$B$12<>-1)),O129+(N130-O129)*$O$74,O129+(L130-O129)*$O$74) -> 0 | P130: 0 | Q130: 0 | R130: 0 | S130: 0 | T130: 0 | U130: 0 | V130: 0 | W130: 0 | X130: 0 | Y130: 0 | Z130: 0 | AA130: 0
A131: 1 | B131: 0.55 | C131: 1.132559241 | D131: 0.65 | E131: 3.0875 | F131: 3.1025 | G131: 3.0325 | H131: 3.0475 | I131: =IF($B$7=constants!$C$60,G131,IF($B$8=constants!$C$60,C131,E131)) -> 1.132559241 | J131: =IF($B$7=constants!$C$60,H131,IF($B$8=constants!$C$60,D131,F131)) -> 0.65 | K131: 0 | L131: 0 | M131: 0 | N131: 0 | O131: =IF(OR($B$22=constants!$B$60,AND(I131>$B$12,$B$12<>-1)),O130+(N131-O130)*$O$74,O130+(L131-O130)*$O$74) -> 0 | P131: 0 | Q131: 0 | R131: 0 | S131: 0 | T131: 0 | U131: 0 | V131: 0 | W131: 0 | X131: 0 | Y131: 0 | Z131: 0 | AA131: 0
A132: 1 | B132: 0.56 | C132: 1.139625239 | D132: 0.65 | E132: 3.0875 | F132: 3.1025 | G132: 3.0315 | H132: 3.0465 | I132: =IF($B$7=constants!$C$60,G132,IF($B$8=constants!$C$60,C132,E132)) -> 1.139625239 | J132: =IF($B$7=constants!$C$60,H132,IF($B$8=constants!$C$60,D132,F132)) -> 0.65 | K132: 0 | L132: 0 | M132: 0 | N132: 0 | O132: =IF(OR($B$22=constants!$B$60,AND(I132>$B$12,$B$12<>-1)),O131+(N132-O131)*$O$74,O131+(L132-O131)*$O$74) -> 0 | P132: 0 | Q132: 0 | R132: 0 | S132: 0 | T132: 0 | U132: 0 | V132: 0 | W132: 0 | X132: 0 | Y132: 0 | Z132: 0 | AA132: 0
A133: 1 | B133: 0.57 | C133: 1.146459587 | D133: 0.65 | E133: 3.0875 | F133: 3.1025 | G133: 3.0305 | H133: 3.0455 | I133: =IF($B$7=constants!$C$60,G133,IF($B$8=constants!$C$60,C133,E133)) -> 1.146459587 | J133: =IF($B$7=constants!$C$60,H133,IF($B$8=constants!$C$60,D133,F133)) -> 0.65 | K133: 0 | L133: 0 | M133: 0 | N133: 0 | O133: =IF(OR($B$22=constants!$B$60,AND(I133>$B$12,$B$12<>-1)),O132+(N133-O132)*$O$74,O132+(L133-O132)*$O$74) -> 0 | P133: 0 | Q133: 0 | R133: 0 | S133: 0 | T133: 0 | U133: 0 | V133: 0 | W133: 0 | X133: 0 | Y133: 0 | Z133: 0 | AA133: 0
A134: 1 | B134: 0.58 | C134: 1.153069878 | D134: 0.65 | E134: 3.0875 | F134: 3.1025 | G134: 3.0295 | H134: 3.0445 | I134: =IF($B$7=constants!$C$60,G134,IF($B$8=constants!$C$60,C134,E134)) -> 1.153069878 | J134: =IF($B$7=constants!$C$60,H134,IF($B$8=constants!$C$60,D134,F134)) -> 0.65 | K134: 0 | L134: 0 | M134: 0 | N134: 0 | O134: =IF(OR($B$22=constants!$B$60,AND(I134>$B$12,$B$12<>-1)),O133+(N134-O133)*$O$74,O133+(L134-O133)*$O$74) -> 0 | P134: 0 | Q134: 0 | R134: 0 | S134: 0 | T134: 0 | U134: 0 | V134: 0 | W134: 0 | X134: 0 | Y134: 0 | Z134: 0 | AA134: 0
A135: 1 | B135: 0.59 | C135: 1.159463457 | D135: 0.65 | E135: 3.0875 | F135: 3.1025 | G135: 3.0285 | H135: 3.0435 | I135: =IF($B$7=constants!$C$60,G135,IF($B$8=constants!$C$60,C135,E135)) -> 1.159463457 | J135: =IF($B$7=constants!$C$60,H135,IF($B$8=constants!$C$60,D135,F135)) -> 0.65 | K135: 0 | L135: 0 | M135: 0 | N135: 0 | O135: =IF(OR($B$22=constants!$B$60,AND(I135>$B$12,$B$12<>-1)),O134+(N135-O134)*$O$74,O134+(L135-O134)*$O$74) -> 0 | P135: 0 | Q135: 0 | R135: 0 | S135: 0 | T135: 0 | U135: 0 | V135: 0 | W135: 0 | X135: 0 | Y135: 0 | Z135: 0 | AA135: 0
A136: 1 | B136: 0.6 | C136: 1.16564743 | D136: 0.65 | E136: 3.0875 | F136: 3.1025 | G136: 3.0275 | H136: 3.0425 | I136: =IF($B$7=constants!$C$60,G136,IF($B$8=constants!$C$60,C136,E136)) -> 1.16564743 | J136: =IF($B$7=constants!$C$60,H136,IF($B$8=constants!$C$60,D136,F136)) -> 0.65 | K136: 0 | L136: 0 | M136: 0 | N136: 0 | O136: =IF(OR($B$22=constants!$B$60,AND(I136>$B$12,$B$12<>-1)),O135+(N136-O135)*$O$74,O135+(L136-O135)*$O$74) -> 0 | P136: 0 | Q136: 0 | R136: 0 | S136: 0 | T136: 0 | U136: 0 | V136: 0 | W136: 0 | X136: 0 | Y136: 0 | Z136: 0 | AA136: 0
A137: 1 | B137: 0.61 | C137: 1.171628669 | D137: 0.65 | E137: 3.0875 | F137: 3.1025 | G137: 3.0265 | H137: 3.0415 | I137: =IF($B$7=constants!$C$60,G137,IF($B$8=constants!$C$60,C137,E137)) -> 1.171628669 | J137: =IF($B$7=constants!$C$60,H137,IF($B$8=constants!$C$60,D137,F137)) -> 0.65 | K137: 0 | L137: 0 | M137: 0 | N137: 0 | O137: =IF(OR($B$22=constants!$B$60,AND(I137>$B$12,$B$12<>-1)),O136+(N137-O136)*$O$74,O136+(L137-O136)*$O$74) -> 0 | P137: 0 | Q137: 0 | R137: 0 | S137: 0 | T137: 0 | U137: 0 | V137: 0 | W137: 0 | X137: 0 | Y137: 0 | Z137: 0 | AA137: 0
A138: 1 | B138: 0.62 | C138: 1.177413819 | D138: 0.65 | E138: 3.0875 | F138: 3.1025 | G138: 3.0255 | H138: 3.0405 | I138: =IF($B$7=constants!$C$60,G138,IF($B$8=constants!$C$60,C138,E138)) -> 1.177413819 | J138: =IF($B$7=constants!$C$60,H138,IF($B$8=constants!$C$60,D138,F138)) -> 0.65 | K138: 0 | L138: 0 | M138: 0 | N138: 0 | O138: =IF(OR($B$22=constants!$B$60,AND(I138>$B$12,$B$12<>-1)),O137+(N138-O137)*$O$74,O137+(L138-O137)*$O$74) -> 0 | P138: 0 | Q138: 0 | R138: 0 | S138: 0 | T138: 0 | U138: 0 | V138: 0 | W138: 0 | X138: 0 | Y138: 0 | Z138: 0 | AA138: 0
A139: 1 | B139: 0.63 | C139: 1.18300931 | D139: 0.65 | E139: 3.0875 | F139: 3.1025 | G139: 3.0245 | H139: 3.0395 | I139: =IF($B$7=constants!$C$60,G139,IF($B$8=constants!$C$60,C139,E139)) -> 1.18300931 | J139: =IF($B$7=constants!$C$60,H139,IF($B$8=constants!$C$60,D139,F139)) -> 0.65 | K139: 0 | L139: 0 | M139: 0 | N139: 0 | O139: =IF(OR($B$22=constants!$B$60,AND(I139>$B$12,$B$12<>-1)),O138+(N139-O138)*$O$74,O138+(L139-O138)*$O$74) -> 0 | P139: 0 | Q139: 0 | R139: 0 | S139: 0 | T139: 0 | U139: 0 | V139: 0 | W139: 0 | X139: 0 | Y139: 0 | Z139: 0 | AA139: 0
A140: 1 | B140: 0.64 | C140: 1.188421358 | D140: 0.65 | E140: =($F$76-$F$74)/(1-EXP(-1/E$74))*(1-EXP(-$B140/E$74)) -> 3.0875 | F140: 3.1025 | G140: =(H140-$H$74)/(1-EXP(-1/G$74))*(1-EXP(-$B140/G$74)) -> 3.0235 | H140: 3.0385 | I140: =IF($B$7=constants!$C$60,G140,IF($B$8=constants!$C$60,C140,E140)) -> 1.188421358 | J140: =IF($B$7=constants!$C$60,H140,IF($B$8=constants!$C$60,D140,F140)) -> 0.65 | K140: 0 | L140: 0 | M140: 0 | N140: 0 | O140: =IF(OR($B$22=constants!$B$60,AND(I140>$B$12,$B$12<>-1)),O139+(N140-O139)*$O$74,O139+(L140-O139)*$O$74) -> 0 | P140: 0 | Q140: 0 | R140: 0 | S140: 0 | T140: 0 | U140: 0 | V140: 0 | W140: 0 | X140: 0 | Y140: 0 | Z140: 0 | AA140: 0
A141: =IF(B141<=100,1,IF(B141<=200,2,3)) -> 1 | B141: 0.65 | C141: =$B$18/(1-EXP(-1/$C$74))*(1-EXP(-B141/$C$74)) -> 1.193655978 | D141: 0.65 | E141: 3.0875 | F141: 3.1025 | G141: 3.0225 | H141: =$H$68*B141+$H$69 -> 3.0375 | I141: =IF($B$7=constants!$C$60,G141,IF($B$8=constants!$C$60,C141,E141)) -> 1.193655978 | J141: =IF($B$7=constants!$C$60,H141,IF($B$8=constants!$C$60,D141,F141)) -> 0.65 | K141: 0 | L141: 0 | M141: 0 | N141: =IF(M141>I141,L141,M141) -> 0 | O141: =IF(OR($B$22=constants!$B$60,AND(I141>$B$12,$B$12<>-1)),O140+(N141-O140)*$O$74,O140+(L141-O140)*$O$74) -> 0 | P141: =IF(O141=0,0,O141-$P$72) -> 0 | Q141: 0 | R141: 0 | S141: =S$72*IF(S$71=0,$L141,IF(S$71=1,$R141,IF($B$12=-1,$L141,IF($I141>$B$12,$R141,$L141)))) -> 0 | T141: 0 | U141: 0 | V141: 0 | W141: 0 | X141: 0 | Y141: =IF(V141=0,0,V141-Y$72) -> 0 | Z141: =IF(W141=0,0,W141-Z$72) -> 0 | AA141: =IF(X141=0,0,X141-AA$72) -> 0
A142: 1 | B142: =B141+0.01 -> 0.66 | C142: 1.198718987 | D142: =D141 -> 0.65 | E142: 3.0875 | F142: 3.1025 | G142: 3.0215 | H142: 3.0365 | I142: =IF($B$7=constants!$C$60,G142,IF($B$8=constants!$C$60,C142,E142)) -> 1.198718987 | J142: =IF($B$7=constants!$C$60,H142,IF($B$8=constants!$C$60,D142,F142)) -> 0.65 | K142: =IF(AND(I142>$B$16,K141=0),1,IF(AND(I142<$B$17,K141=1),0,K141)) -> 0 | L142: 0 | M142: 0 | N142: 0 | O142: =IF(OR($B$22=constants!$B$60,AND(I142>$B$12,$B$12<>-1)),O141+(N142-O141)*$O$74,O141+(L142-O141)*$O$74) -> 0 | P142: 0 | Q142: 0 | R142: =IF(Q142>I142,I142,Q142) -> 0 | S142: 0 | T142: 0 | U142: 0 | V142: =V141+(S142-V$72-V141)*V$74 -> 0 | W142: =W141+(T142-W$72-W141)*W$74 -> 0 | X142: =X141+(U142-X$72-X141)*X$74 -> 0 | Y142: 0 | Z142: 0 | AA142: 0
A143: 1 | B143: 0.67 | C143: 1.203616011 | D143: 0.65 | E143: 3.0875 | F143: 3.1025 | G143: 3.0205 | H143: 3.0355 | I143: =IF($B$7=constants!$C$60,G143,IF($B$8=constants!$C$60,C143,E143)) -> 1.203616011 | J143: =IF($B$7=constants!$C$60,H143,IF($B$8=constants!$C$60,D143,F143)) -> 0.65 | K143: 0 | L143: 0 | M143: 0 | N143: 0 | O143: =IF(OR($B$22=constants!$B$60,AND(I143>$B$12,$B$12<>-1)),O142+(N143-O142)*$O$74,O142+(L143-O142)*$O$74) -> 0 | P143: 0 | Q143: 0 | R143: 0 | S143: 0 | T143: 0 | U143: 0 | V143: 0 | W143: 0 | X143: 0 | Y143: 0 | Z143: 0 | AA143: 0
A144: 1 | B144: 0.68 | C144: 1.208352492 | D144: 0.65 | E144: 3.0875 | F144: 3.1025 | G144: 3.0195 | H144: 3.0345 | I144: =IF($B$7=constants!$C$60,G144,IF($B$8=constants!$C$60,C144,E144)) -> 1.208352492 | J144: =IF($B$7=constants!$C$60,H144,IF($B$8=constants!$C$60,D144,F144)) -> 0.65 | K144: 0 | L144: 0 | M144: 0 | N144: 0 | O144: =IF(OR($B$22=constants!$B$60,AND(I144>$B$12,$B$12<>-1)),O143+(N144-O143)*$O$74,O143+(L144-O143)*$O$74) -> 0 | P144: 0 | Q144: 0 | R144: 0 | S144: 0 | T144: 0 | U144: 0 | V144: 0 | W144: 0 | X144: 0 | Y144: 0 | Z144: 0 | AA144: 0
A145: 1 | B145: 0.69 | C145: 1.212933692 | D145: 0.65 | E145: 3.0875 | F145: 3.1025 | G145: 3.0185 | H145: 3.0335 | I145: =IF($B$7=constants!$C$60,G145,IF($B$8=constants!$C$60,C145,E145)) -> 1.212933692 | J145: =IF($B$7=constants!$C$60,H145,IF($B$8=constants!$C$60,D145,F145)) -> 0.65 | K145: 0 | L145: 0 | M145: 0 | N145: 0 | O145: =IF(OR($B$22=constants!$B$60,AND(I145>$B$12,$B$12<>-1)),O144+(N145-O144)*$O$74,O144+(L145-O144)*$O$74) -> 0 | P145: 0 | Q145: 0 | R145: 0 | S145: 0 | T145: 0 | U145: 0 | V145: 0 | W145: 0 | X145: 0 | Y145: 0 | Z145: 0 | AA145: 0
A146: 1 | B146: 0.7 | C146: 1.217364702 | D146: 0.65 | E146: 3.0875 | F146: 3.1025 | G146: 3.0175 | H146: 3.0325 | I146: =IF($B$7=constants!$C$60,G146,IF($B$8=constants!$C$60,C146,E146)) -> 1.217364702 | J146: =IF($B$7=constants!$C$60,H146,IF($B$8=constants!$C$60,D146,F146)) -> 0.65 | K146: 0 | L146: 0 | M146: 0 | N146: 0 | O146: =IF(OR($B$22=constants!$B$60,AND(I146>$B$12,$B$12<>-1)),O145+(N146-O145)*$O$74,O145+(L146-O145)*$O$74) -> 0 | P146: 0 | Q146: 0 | R146: 0 | S146: 0 | T146: 0 | U146: 0 | V146: 0 | W146: 0 | X146: 0 | Y146: 0 | Z146: 0 | AA146: 0
A147: 1 | B147: 0.71 | C147: 1.221650447 | D147: 0.65 | E147: 3.0875 | F147: 3.1025 | G147: 3.0165 | H147: 3.0315 | I147: =IF($B$7=constants!$C$60,G147,IF($B$8=constants!$C$60,C147,E147)) -> 1.221650447 | J147: =IF($B$7=constants!$C$60,H147,IF($B$8=constants!$C$60,D147,F147)) -> 0.65 | K147: 0 | L147: 0 | M147: 0 | N147: 0 | O147: =IF(OR($B$22=constants!$B$60,AND(I147>$B$12,$B$12<>-1)),O146+(N147-O146)*$O$74,O146+(L147-O146)*$O$74) -> 0 | P147: 0 | Q147: 0 | R147: 0 | S147: 0 | T147: 0 | U147: 0 | V147: 0 | W147: 0 | X147: 0 | Y147: 0 | Z147: 0 | AA147: 0
A148: 1 | B148: 0.72 | C148: 1.225795688 | D148: 0.65 | E148: 3.0875 | F148: 3.1025 | G148: 3.0155 | H148: 3.0305 | I148: =IF($B$7=constants!$C$60,G148,IF($B$8=constants!$C$60,C148,E148)) -> 1.225795688 | J148: =IF($B$7=constants!$C$60,H148,IF($B$8=constants!$C$60,D148,F148)) -> 0.65 | K148: 0 | L148: 0 | M148: 0 | N148: 0 | O148: =IF(OR($B$22=constants!$B$60,AND(I148>$B$12,$B$12<>-1)),O147+(N148-O147)*$O$74,O147+(L148-O147)*$O$74) -> 0 | P148: 0 | Q148: 0 | R148: 0 | S148: 0 | T148: 0 | U148: 0 | V148: 0 | W148: 0 | X148: 0 | Y148: 0 | Z148: 0 | AA148: 0
A149: 1 | B149: 0.73 | C149: 1.229805032 | D149: 0.65 | E149: 3.0875 | F149: 3.1025 | G149: 3.0145 | H149: 3.0295 | I149: =IF($B$7=constants!$C$60,G149,IF($B$8=constants!$C$60,C149,E149)) -> 1.229805032 | J149: =IF($B$7=constants!$C$60,H149,IF($B$8=constants!$C$60,D149,F149)) -> 0.65 | K149: 0 | L149: 0 | M149: 0 | N149: 0 | O149: =IF(OR($B$22=constants!$B$60,AND(I149>$B$12,$B$12<>-1)),O148+(N149-O148)*$O$74,O148+(L149-O148)*$O$74) -> 0 | P149: 0 | Q149: 0 | R149: 0 | S149: 0 | T149: 0 | U149: 0 | V149: 0 | W149: 0 | X149: 0 | Y149: 0 | Z149: 0 | AA149: 0
A150: 1 | B150: 0.74 | C150: 1.233682934 | D150: 0.65 | E150: 3.0875 | F150: 3.1025 | G150: 3.0135 | H150: 3.0285 | I150: =IF($B$7=constants!$C$60,G150,IF($B$8=constants!$C$60,C150,E150)) -> 1.233682934 | J150: =IF($B$7=constants!$C$60,H150,IF($B$8=constants!$C$60,D150,F150)) -> 0.65 | K150: 0 | L150: 0 | M150: 0 | N150: 0 | O150: =IF(OR($B$22=constants!$B$60,AND(I150>$B$12,$B$12<>-1)),O149+(N150-O149)*$O$74,O149+(L150-O149)*$O$74) -> 0 | P150: 0 | Q150: 0 | R150: 0 | S150: 0 | T150: 0 | U150: 0 | V150: 0 | W150: 0 | X150: 0 | Y150: 0 | Z150: 0 | AA150: 0
A151: 1 | B151: 0.75 | C151: 1.237433703 | D151: 0.65 | E151: 3.0875 | F151: 3.1025 | G151: 3.0125 | H151: 3.0275 | I151: =IF($B$7=constants!$C$60,G151,IF($B$8=constants!$C$60,C151,E151)) -> 1.237433703 | J151: =IF($B$7=constants!$C$60,H151,IF($B$8=constants!$C$60,D151,F151)) -> 0.65 | K151: 0 | L151: 0 | M151: 0 | N151: 0 | O151: =IF(OR($B$22=constants!$B$60,AND(I151>$B$12,$B$12<>-1)),O150+(N151-O150)*$O$74,O150+(L151-O150)*$O$74) -> 0 | P151: 0 | Q151: 0 | R151: 0 | S151: 0 | T151: 0 | U151: 0 | V151: 0 | W151: 0 | X151: 0 | Y151: 0 | Z151: 0 | AA151: 0
A152: 1 | B152: 0.76 | C152: 1.241061508 | D152: 0.65 | E152: 3.0875 | F152: 3.1025 | G152: 3.0115 | H152: 3.0265 | I152: =IF($B$7=constants!$C$60,G152,IF($B$8=constants!$C$60,C152,E152)) -> 1.241061508 | J152: =IF($B$7=constants!$C$60,H152,IF($B$8=constants!$C$60,D152,F152)) -> 0.65 | K152: 0 | L152: 0 | M152: 0 | N152: 0 | O152: =IF(OR($B$22=constants!$B$60,AND(I152>$B$12,$B$12<>-1)),O151+(N152-O151)*$O$74,O151+(L152-O151)*$O$74) -> 0 | P152: 0 | Q152: 0 | R152: 0 | S152: 0 | T152: 0 | U152: 0 | V152: 0 | W152: 0 | X152: 0 | Y152: 0 | Z152: 0 | AA152: 0
A153: 1 | B153: 0.77 | C153: 1.244570379 | D153: 0.65 | E153: 3.0875 | F153: 3.1025 | G153: 3.0105 | H153: 3.0255 | I153: =IF($B$7=constants!$C$60,G153,IF($B$8=constants!$C$60,C153,E153)) -> 1.244570379 | J153: =IF($B$7=constants!$C$60,H153,IF($B$8=constants!$C$60,D153,F153)) -> 0.65 | K153: 0 | L153: 0 | M153: 0 | N153: 0 | O153: =IF(OR($B$22=constants!$B$60,AND(I153>$B$12,$B$12<>-1)),O152+(N153-O152)*$O$74,O152+(L153-O152)*$O$74) -> 0 | P153: 0 | Q153: 0 | R153: 0 | S153: 0 | T153: 0 | U153: 0 | V153: 0 | W153: 0 | X153: 0 | Y153: 0 | Z153: 0 | AA153: 0
A154: 1 | B154: 0.78 | C154: 1.247964215 | D154: 0.65 | E154: 3.0875 | F154: 3.1025 | G154: 3.0095 | H154: 3.0245 | I154: =IF($B$7=constants!$C$60,G154,IF($B$8=constants!$C$60,C154,E154)) -> 1.247964215 | J154: =IF($B$7=constants!$C$60,H154,IF($B$8=constants!$C$60,D154,F154)) -> 0.65 | K154: 0 | L154: 0 | M154: 0 | N154: 0 | O154: =IF(OR($B$22=constants!$B$60,AND(I154>$B$12,$B$12<>-1)),O153+(N154-O153)*$O$74,O153+(L154-O153)*$O$74) -> 0 | P154: 0 | Q154: 0 | R154: 0 | S154: 0 | T154: 0 | U154: 0 | V154: 0 | W154: 0 | X154: 0 | Y154: 0 | Z154: 0 | AA154: 0
A155: 1 | B155: 0.79 | C155: 1.251246789 | D155: 0.65 | E155: 3.0875 | F155: 3.1025 | G155: 3.0085 | H155: 3.0235 | I155: =IF($B$7=constants!$C$60,G155,IF($B$8=constants!$C$60,C155,E155)) -> 1.251246789 | J155: =IF($B$7=constants!$C$60,H155,IF($B$8=constants!$C$60,D155,F155)) -> 0.65 | K155: 0 | L155: 0 | M155: 0 | N155: 0 | O155: =IF(OR($B$22=constants!$B$60,AND(I155>$B$12,$B$12<>-1)),O154+(N155-O154)*$O$74,O154+(L155-O154)*$O$74) -> 0 | P155: 0 | Q155: 0 | R155: 0 | S155: 0 | T155: 0 | U155: 0 | V155: 0 | W155: 0 | X155: 0 | Y155: 0 | Z155: 0 | AA155: 0
A156: 1 | B156: 0.8 | C156: 1.254421746 | D156: 0.65 | E156: 3.0875 | F156: 3.1025 | G156: 3.0075 | H156: 3.0225 | I156: =IF($B$7=constants!$C$60,G156,IF($B$8=constants!$C$60,C156,E156)) -> 1.254421746 | J156: =IF($B$7=constants!$C$60,H156,IF($B$8=constants!$C$60,D156,F156)) -> 0.65 | K156: 0 | L156: 0 | M156: 0 | N156: 0 | O156: =IF(OR($B$22=constants!$B$60,AND(I156>$B$12,$B$12<>-1)),O155+(N156-O155)*$O$74,O155+(L156-O155)*$O$74) -> 0 | P156: 0 | Q156: 0 | R156: 0 | S156: 0 | T156: 0 | U156: 0 | V156: 0 | W156: 0 | X156: 0 | Y156: 0 | Z156: 0 | AA156: 0
A157: 1 | B157: 0.81 | C157: 1.257492617 | D157: 0.65 | E157: 3.0875 | F157: 3.1025 | G157: 3.0065 | H157: 3.0215 | I157: =IF($B$7=constants!$C$60,G157,IF($B$8=constants!$C$60,C157,E157)) -> 1.257492617 | J157: =IF($B$7=constants!$C$60,H157,IF($B$8=constants!$C$60,D157,F157)) -> 0.65 | K157: 0 | L157: 0 | M157: 0 | N157: 0 | O157: =IF(OR($B$22=constants!$B$60,AND(I157>$B$12,$B$12<>-1)),O156+(N157-O156)*$O$74,O156+(L157-O156)*$O$74) -> 0 | P157: 0 | Q157: 0 | R157: 0 | S157: 0 | T157: 0 | U157: 0 | V157: 0 | W157: 0 | X157: 0 | Y157: 0 | Z157: 0 | AA157: 0
A158: 1 | B158: 0.82 | C158: 1.260462812 | D158: 0.65 | E158: 3.0875 | F158: 3.1025 | G158: 3.0055 | H158: 3.0205 | I158: =IF($B$7=constants!$C$60,G158,IF($B$8=constants!$C$60,C158,E158)) -> 1.260462812 | J158: =IF($B$7=constants!$C$60,H158,IF($B$8=constants!$C$60,D158,F158)) -> 0.65 | K158: 0 | L158: 0 | M158: 0 | N158: 0 | O158: =IF(OR($B$22=constants!$B$60,AND(I158>$B$12,$B$12<>-1)),O157+(N158-O157)*$O$74,O157+(L158-O157)*$O$74) -> 0 | P158: 0 | Q158: 0 | R158: 0 | S158: 0 | T158: 0 | U158: 0 | V158: 0 | W158: 0 | X158: 0 | Y158: 0 | Z158: 0 | AA158: 0
A159: 1 | B159: 0.83 | C159: 1.263335632 | D159: 0.65 | E159: 3.0875 | F159: 3.1025 | G159: 3.0045 | H159: 3.0195 | I159: =IF($B$7=constants!$C$60,G159,IF($B$8=constants!$C$60,C159,E159)) -> 1.263335632 | J159: =IF($B$7=constants!$C$60,H159,IF($B$8=constants!$C$60,D159,F159)) -> 0.65 | K159: 0 | L159: 0 | M159: 0 | N159: 0 | O159: =IF(OR($B$22=constants!$B$60,AND(I159>$B$12,$B$12<>-1)),O158+(N159-O158)*$O$74,O158+(L159-O158)*$O$74) -> 0 | P159: 0 | Q159: 0 | R159: 0 | S159: 0 | T159: 0 | U159: 0 | V159: 0 | W159: 0 | X159: 0 | Y159: 0 | Z159: 0 | AA159: 0
A160: 1 | B160: 0.84 | C160: 1.266114271 | D160: 0.65 | E160: 3.0875 | F160: 3.1025 | G160: 3.0035 | H160: 3.0185 | I160: =IF($B$7=constants!$C$60,G160,IF($B$8=constants!$C$60,C160,E160)) -> 1.266114271 | J160: =IF($B$7=constants!$C$60,H160,IF($B$8=constants!$C$60,D160,F160)) -> 0.65 | K160: 0 | L160: 0 | M160: 0 | N160: 0 | O160: =IF(OR($B$22=constants!$B$60,AND(I160>$B$12,$B$12<>-1)),O159+(N160-O159)*$O$74,O159+(L160-O159)*$O$74) -> 0 | P160: 0 | Q160: 0 | R160: 0 | S160: 0 | T160: 0 | U160: 0 | V160: 0 | W160: 0 | X160: 0 | Y160: 0 | Z160: 0 | AA160: 0
A161: 1 | B161: 0.85 | C161: 1.268801814 | D161: 0.65 | E161: 3.0875 | F161: 3.1025 | G161: 3.0025 | H161: 3.0175 | I161: =IF($B$7=constants!$C$60,G161,IF($B$8=constants!$C$60,C161,E161)) -> 1.268801814 | J161: =IF($B$7=constants!$C$60,H161,IF($B$8=constants!$C$60,D161,F161)) -> 0.65 | K161: 0 | L161: 0 | M161: 0 | N161: 0 | O161: =IF(OR($B$22=constants!$B$60,AND(I161>$B$12,$B$12<>-1)),O160+(N161-O160)*$O$74,O160+(L161-O160)*$O$74) -> 0 | P161: 0 | Q161: 0 | R161: 0 | S161: 0 | T161: 0 | U161: 0 | V161: 0 | W161: 0 | X161: 0 | Y161: 0 | Z161: 0 | AA161: 0
A162: 1 | B162: 0.86 | C162: 1.27140125 | D162: 0.65 | E162: 3.0875 | F162: 3.1025 | G162: 3.0015 | H162: 3.0165 | I162: =IF($B$7=constants!$C$60,G162,IF($B$8=constants!$C$60,C162,E162)) -> 1.27140125 | J162: =IF($B$7=constants!$C$60,H162,IF($B$8=constants!$C$60,D162,F162)) -> 0.65 | K162: 0 | L162: 0 | M162: 0 | N162: 0 | O162: =IF(OR($B$22=constants!$B$60,AND(I162>$B$12,$B$12<>-1)),O161+(N162-O161)*$O$74,O161+(L162-O161)*$O$74) -> 0 | P162: 0 | Q162: 0 | R162: 0 | S162: 0 | T162: 0 | U162: 0 | V162: 0 | W162: 0 | X162: 0 | Y162: 0 | Z162: 0 | AA162: 0
A163: 1 | B163: 0.87 | C163: 1.273915466 | D163: 0.65 | E163: 3.0875 | F163: 3.1025 | G163: 3.0005 | H163: 3.0155 | I163: =IF($B$7=constants!$C$60,G163,IF($B$8=constants!$C$60,C163,E163)) -> 1.273915466 | J163: =IF($B$7=constants!$C$60,H163,IF($B$8=constants!$C$60,D163,F163)) -> 0.65 | K163: 0 | L163: 0 | M163: 0 | N163: 0 | O163: =IF(OR($B$22=constants!$B$60,AND(I163>$B$12,$B$12<>-1)),O162+(N163-O162)*$O$74,O162+(L163-O162)*$O$74) -> 0 | P163: 0 | Q163: 0 | R163: 0 | S163: 0 | T163: 0 | U163: 0 | V163: 0 | W163: 0 | X163: 0 | Y163: 0 | Z163: 0 | AA163: 0
A164: 1 | B164: 0.88 | C164: 1.276347256 | D164: 0.65 | E164: 3.0875 | F164: 3.1025 | G164: 2.9995 | H164: 3.0145 | I164: =IF($B$7=constants!$C$60,G164,IF($B$8=constants!$C$60,C164,E164)) -> 1.276347256 | J164: =IF($B$7=constants!$C$60,H164,IF($B$8=constants!$C$60,D164,F164)) -> 0.65 | K164: 0 | L164: 0 | M164: 0 | N164: 0 | O164: =IF(OR($B$22=constants!$B$60,AND(I164>$B$12,$B$12<>-1)),O163+(N164-O163)*$O$74,O163+(L164-O163)*$O$74) -> 0 | P164: 0 | Q164: 0 | R164: 0 | S164: 0 | T164: 0 | U164: 0 | V164: 0 | W164: 0 | X164: 0 | Y164: 0 | Z164: 0 | AA164: 0
A165: 1 | B165: 0.89 | C165: 1.278699322 | D165: 0.65 | E165: 3.0875 | F165: 3.1025 | G165: 2.9985 | H165: 3.0135 | I165: =IF($B$7=constants!$C$60,G165,IF($B$8=constants!$C$60,C165,E165)) -> 1.278699322 | J165: =IF($B$7=constants!$C$60,H165,IF($B$8=constants!$C$60,D165,F165)) -> 0.65 | K165: 0 | L165: 0 | M165: 0 | N165: 0 | O165: =IF(OR($B$22=constants!$B$60,AND(I165>$B$12,$B$12<>-1)),O164+(N165-O164)*$O$74,O164+(L165-O164)*$O$74) -> 0 | P165: 0 | Q165: 0 | R165: 0 | S165: 0 | T165: 0 | U165: 0 | V165: 0 | W165: 0 | X165: 0 | Y165: 0 | Z165: 0 | AA165: 0
A166: 1 | B166: 0.9 | C166: 1.280974279 | D166: 0.65 | E166: 3.0875 | F166: 3.1025 | G166: 2.9975 | H166: 3.0125 | I166: =IF($B$7=constants!$C$60,G166,IF($B$8=constants!$C$60,C166,E166)) -> 1.280974279 | J166: =IF($B$7=constants!$C$60,H166,IF($B$8=constants!$C$60,D166,F166)) -> 0.65 | K166: 0 | L166: 0 | M166: 0 | N166: 0 | O166: =IF(OR($B$22=constants!$B$60,AND(I166>$B$12,$B$12<>-1)),O165+(N166-O165)*$O$74,O165+(L166-O165)*$O$74) -> 0 | P166: 0 | Q166: 0 | R166: 0 | S166: 0 | T166: 0 | U166: 0 | V166: 0 | W166: 0 | X166: 0 | Y166: 0 | Z166: 0 | AA166: 0
A167: 1 | B167: 0.91 | C167: 1.283174654 | D167: 0.65 | E167: 3.0875 | F167: 3.1025 | G167: 2.9965 | H167: 3.0115 | I167: =IF($B$7=constants!$C$60,G167,IF($B$8=constants!$C$60,C167,E167)) -> 1.283174654 | J167: =IF($B$7=constants!$C$60,H167,IF($B$8=constants!$C$60,D167,F167)) -> 0.65 | K167: 0 | L167: 0 | M167: 0 | N167: 0 | O167: =IF(OR($B$22=constants!$B$60,AND(I167>$B$12,$B$12<>-1)),O166+(N167-O166)*$O$74,O166+(L167-O166)*$O$74) -> 0 | P167: 0 | Q167: 0 | R167: 0 | S167: 0 | T167: 0 | U167: 0 | V167: 0 | W167: 0 | X167: 0 | Y167: 0 | Z167: 0 | AA167: 0
A168: 1 | B168: 0.92 | C168: 1.285302892 | D168: 0.65 | E168: 3.0875 | F168: 3.1025 | G168: 2.9955 | H168: 3.0105 | I168: =IF($B$7=constants!$C$60,G168,IF($B$8=constants!$C$60,C168,E168)) -> 1.285302892 | J168: =IF($B$7=constants!$C$60,H168,IF($B$8=constants!$C$60,D168,F168)) -> 0.65 | K168: 0 | L168: 0 | M168: 0 | N168: 0 | O168: =IF(OR($B$22=constants!$B$60,AND(I168>$B$12,$B$12<>-1)),O167+(N168-O167)*$O$74,O167+(L168-O167)*$O$74) -> 0 | P168: 0 | Q168: 0 | R168: 0 | S168: 0 | T168: 0 | U168: 0 | V168: 0 | W168: 0 | X168: 0 | Y168: 0 | Z168: 0 | AA168: 0
A169: 1 | B169: 0.93 | C169: 1.287361357 | D169: 0.65 | E169: 3.0875 | F169: 3.1025 | G169: 2.9945 | H169: 3.0095 | I169: =IF($B$7=constants!$C$60,G169,IF($B$8=constants!$C$60,C169,E169)) -> 1.287361357 | J169: =IF($B$7=constants!$C$60,H169,IF($B$8=constants!$C$60,D169,F169)) -> 0.65 | K169: 0 | L169: 0 | M169: 0 | N169: 0 | O169: =IF(OR($B$22=constants!$B$60,AND(I169>$B$12,$B$12<>-1)),O168+(N169-O168)*$O$74,O168+(L169-O168)*$O$74) -> 0 | P169: 0 | Q169: 0 | R169: 0 | S169: 0 | T169: 0 | U169: 0 | V169: 0 | W169: 0 | X169: 0 | Y169: 0 | Z169: 0 | AA169: 0
A170: 1 | B170: 0.94 | C170: 1.289352339 | D170: 0.65 | E170: 3.0875 | F170: 3.1025 | G170: 2.9935 | H170: 3.0085 | I170: =IF($B$7=constants!$C$60,G170,IF($B$8=constants!$C$60,C170,E170)) -> 1.289352339 | J170: =IF($B$7=constants!$C$60,H170,IF($B$8=constants!$C$60,D170,F170)) -> 0.65 | K170: 0 | L170: 0 | M170: 0 | N170: 0 | O170: =IF(OR($B$22=constants!$B$60,AND(I170>$B$12,$B$12<>-1)),O169+(N170-O169)*$O$74,O169+(L170-O169)*$O$74) -> 0 | P170: 0 | Q170: 0 | R170: 0 | S170: 0 | T170: 0 | U170: 0 | V170: 0 | W170: 0 | X170: 0 | Y170: 0 | Z170: 0 | AA170: 0
A171: 1 | B171: 0.95 | C171: 1.291278048 | D171: 0.65 | E171: 3.0875 | F171: 3.1025 | G171: 2.9925 | H171: 3.0075 | I171: =IF($B$7=constants!$C$60,G171,IF($B$8=constants!$C$60,C171,E171)) -> 1.291278048 | J171: =IF($B$7=constants!$C$60,H171,IF($B$8=constants!$C$60,D171,F171)) -> 0.65 | K171: 0 | L171: 0 | M171: 0 | N171: 0 | O171: =IF(OR($B$22=constants!$B$60,AND(I171>$B$12,$B$12<>-1)),O170+(N171-O170)*$O$74,O170+(L171-O170)*$O$74) -> 0 | P171: 0 | Q171: 0 | R171: 0 | S171: 0 | T171: 0 | U171: 0 | V171: 0 | W171: 0 | X171: 0 | Y171: 0 | Z171: 0 | AA171: 0
A172: 1 | B172: 0.96 | C172: 1.293140625 | D172: 0.65 | E172: 3.0875 | F172: 3.1025 | G172: =(H172-$H$74)/(1-EXP(-1/G$74))*(1-EXP(-$B172/G$74)) -> 2.9915 | H172: 3.0065 | I172: =IF($B$7=constants!$C$60,G172,IF($B$8=constants!$C$60,C172,E172)) -> 1.293140625 | J172: =IF($B$7=constants!$C$60,H172,IF($B$8=constants!$C$60,D172,F172)) -> 0.65 | K172: 0 | L172: 0 | M172: 0 | N172: 0 | O172: =IF(OR($B$22=constants!$B$60,AND(I172>$B$12,$B$12<>-1)),O171+(N172-O171)*$O$74,O171+(L172-O171)*$O$74) -> 0 | P172: 0 | Q172: 0 | R172: 0 | S172: 0 | T172: 0 | U172: 0 | V172: 0 | W172: 0 | X172: 0 | Y172: 0 | Z172: 0 | AA172: 0
A173: 1 | B173: 0.97 | C173: =$B$18/(1-EXP(-1/$C$74))*(1-EXP(-B173/$C$74)) -> 1.294942139 | D173: 0.65 | E173: 3.0875 | F173: 3.1025 | G173: 2.9905 | H173: 3.0055 | I173: =IF($B$7=constants!$C$60,G173,IF($B$8=constants!$C$60,C173,E173)) -> 1.294942139 | J173: =IF($B$7=constants!$C$60,H173,IF($B$8=constants!$C$60,D173,F173)) -> 0.65 | K173: 0 | L173: 0 | M173: 0 | N173: 0 | O173: =IF(OR($B$22=constants!$B$60,AND(I173>$B$12,$B$12<>-1)),O172+(N173-O172)*$O$74,O172+(L173-O172)*$O$74) -> 0 | P173: 0 | Q173: 0 | R173: 0 | S173: 0 | T173: 0 | U173: 0 | V173: 0 | W173: 0 | X173: 0 | Y173: 0 | Z173: 0 | AA173: 0
A174: 1 | B174: 0.98 | C174: 1.296684593 | D174: 0.65 | E174: 3.0875 | F174: 3.1025 | G174: 2.9895 | H174: 3.0045 | I174: =IF($B$7=constants!$C$60,G174,IF($B$8=constants!$C$60,C174,E174)) -> 1.296684593 | J174: =IF($B$7=constants!$C$60,H174,IF($B$8=constants!$C$60,D174,F174)) -> 0.65 | K174: 0 | L174: 0 | M174: 0 | N174: 0 | O174: =IF(OR($B$22=constants!$B$60,AND(I174>$B$12,$B$12<>-1)),O173+(N174-O173)*$O$74,O173+(L174-O173)*$O$74) -> 0 | P174: 0 | Q174: 0 | R174: 0 | S174: 0 | T174: 0 | U174: 0 | V174: 0 | W174: 0 | X174: 0 | Y174: 0 | Z174: 0 | AA174: 0
A175: 1 | B175: 0.99 | C175: 1.298369922 | D175: 0.65 | E175: 3.0875 | F175: 3.1025 | G175: 2.9885 | H175: 3.0035 | I175: =IF($B$7=constants!$C$60,G175,IF($B$8=constants!$C$60,C175,E175)) -> 1.298369922 | J175: =IF($B$7=constants!$C$60,H175,IF($B$8=constants!$C$60,D175,F175)) -> 0.65 | K175: 0 | L175: 0 | M175: 0 | N175: 0 | O175: =IF(OR($B$22=constants!$B$60,AND(I175>$B$12,$B$12<>-1)),O174+(N175-O174)*$O$74,O174+(L175-O174)*$O$74) -> 0 | P175: 0 | Q175: 0 | R175: 0 | S175: 0 | T175: 0 | U175: 0 | V175: 0 | W175: 0 | X175: 0 | Y175: 0 | Z175: 0 | AA175: 0
A176: 1 | B176: 1 | C176: =$D$11*B176+$D$12 -> 1.3 | D176: 0.65 | E176: 3.0875 | F176: 3.1025 | G176: =B176*$H$41+$H$42 -> 2.9885 | H176: =H175 -> 3.0035 | I176: =IF($B$7=constants!$C$60,G176,IF($B$8=constants!$C$60,C176,E176)) -> 1.3 | J176: =IF($B$7=constants!$C$60,H176,IF($B$8=constants!$C$60,D176,F176)) -> 0.65 | K176: 0 | L176: =IF($K176=0,IF($I176>$B$16,L175+($I176-L175)*L$74-J$72,L175-L175/L$74),IF($I176>$B$17,L175+($I176-L175)*L$74-J$72,L175-L175/L$74)) -> 0 | M176: =IF($K176=0,IF($I176>$B$16,M175+($B$20-M175)*M$74-K$72,M175-M175/M$74),IF($I176>$B$17,M175+($B$20-M175)*M$74-K$72,M175-M175/M$74)) -> 0 | N176: 0 | O176: =IF(OR($B$22=constants!$B$60,AND(I176>$B$12,$B$12<>-1)),O175+(N176-O175)*$O$74,O175+(L176-O175)*$O$74) -> 0 | P176: 0 | Q176: =IF($K176=0,IF($I176>$B$16,R175+($B$21-R175)*R$74-R$72,R175-R175/R$74),IF($I176>$B$17,R175+($B$21-R175)*R$74-R$72,R175-R175/R$74)) -> 0 | R176: 0 | S176: 0 | T176: 0 | U176: 0 | V176: 0 | W176: 0 | X176: 0 | Y176: 0 | Z176: 0 | AA176: 0
A177: 1 | B177: 1.01 | C177: =$D$11*$B177+$D$12 -> 1.38232 | D177: 0.65 | E177: =$K$11*$B177+$K$12 -> 3.107245 | F177: =E177+$F$74 -> 3.122245 | G177: =B177*$H$41+$H$42 -> 3.00328 | H177: =H176 -> 3.0035 | I177: =IF($B$7=constants!$C$60,G177,IF($B$8=constants!$C$60,C177,E177)) -> 1.38232 | J177: =IF($B$7=constants!$C$60,H177,IF($B$8=constants!$C$60,D177,F177)) -> 0.65 | K177: 0 | L177: 0 | M177: =IF($K177=0,IF($I177>$B$16,M176+($B$20-M176)*M$74-K$72,M176-M176/M$74),IF($I177>$B$17,M176+($B$20-M176)*M$74-K$72,M176-M176/M$74)) -> 0 | N177: 0 | O177: =IF(OR($B$22=constants!$B$60,AND(I177>$B$12,$B$12<>-1)),O176+(N177-O176)*$O$74,O176+(L177-O176)*$O$74) -> 0 | P177: 0 | Q177: 0 | R177: 0 | S177: 0 | T177: 0 | U177: 0 | V177: 0 | W177: 0 | X177: 0 | Y177: 0 | Z177: 0 | AA177: 0
A178: 1 | B178: 1.02 | C178: =$D$11*B178+$D$12 -> 1.46464 | D178: 0.65 | E178: =$K$11*$B178+$K$12 -> 3.11199 | F178: 3.12699 | G178: 3.01806 | H178: 3.0035 | I178: =IF($B$7=constants!$C$60,G178,IF($B$8=constants!$C$60,C178,E178)) -> 1.46464 | J178: =IF($B$7=constants!$C$60,H178,IF($B$8=constants!$C$60,D178,F178)) -> 0.65 | K178: 0 | L178: 0 | M178: =IF($K178=0,IF($I178>$B$16,M177+($B$20-M177)*M$74-K$72,M177-M177/M$74),IF($I178>$B$17,M177+($B$20-M177)*M$74-K$72,M177-M177/M$74)) -> 0 | N178: 0 | O178: =IF(OR($B$22=constants!$B$60,AND(I178>$B$12,$B$12<>-1)),O177+(N178-O177)*$O$74,O177+(L178-O177)*$O$74) -> 0 | P178: 0 | Q178: 0 | R178: 0 | S178: 0 | T178: 0 | U178: 0 | V178: 0 | W178: 0 | X178: 0 | Y178: 0 | Z178: 0 | AA178: 0
A179: 1 | B179: 1.03 | C179: 1.54696 | D179: 0.65 | E179: 3.116735 | F179: 3.131735 | G179: 3.03284 | H179: 3.0035 | I179: =IF($B$7=constants!$C$60,G179,IF($B$8=constants!$C$60,C179,E179)) -> 1.54696 | J179: =IF($B$7=constants!$C$60,H179,IF($B$8=constants!$C$60,D179,F179)) -> 0.65 | K179: 0 | L179: 0 | M179: 0 | N179: 0 | O179: =IF(OR($B$22=constants!$B$60,AND(I179>$B$12,$B$12<>-1)),O178+(N179-O178)*$O$74,O178+(L179-O178)*$O$74) -> 0 | P179: 0 | Q179: 0 | R179: 0 | S179: 0 | T179: 0 | U179: 0 | V179: 0 | W179: 0 | X179: 0 | Y179: 0 | Z179: 0 | AA179: 0
A180: 1 | B180: 1.04 | C180: 1.62928 | D180: 0.65 | E180: 3.12148 | F180: 3.13648 | G180: 3.04762 | H180: 3.0035 | I180: =IF($B$7=constants!$C$60,G180,IF($B$8=constants!$C$60,C180,E180)) -> 1.62928 | J180: =IF($B$7=constants!$C$60,H180,IF($B$8=constants!$C$60,D180,F180)) -> 0.65 | K180: 0 | L180: 0 | M180: 0 | N180: 0 | O180: =IF(OR($B$22=constants!$B$60,AND(I180>$B$12,$B$12<>-1)),O179+(N180-O179)*$O$74,O179+(L180-O179)*$O$74) -> 0 | P180: 0 | Q180: 0 | R180: 0 | S180: 0 | T180: 0 | U180: 0 | V180: 0 | W180: 0 | X180: 0 | Y180: 0 | Z180: 0 | AA180: 0
A181: 1 | B181: 1.05 | C181: 1.7116 | D181: 0.65 | E181: 3.126225 | F181: 3.141225 | G181: 3.0624 | H181: 3.0035 | I181: =IF($B$7=constants!$C$60,G181,IF($B$8=constants!$C$60,C181,E181)) -> 1.7116 | J181: =IF($B$7=constants!$C$60,H181,IF($B$8=constants!$C$60,D181,F181)) -> 0.65 | K181: 0 | L181: 0 | M181: 0 | N181: 0 | O181: =IF(OR($B$22=constants!$B$60,AND(I181>$B$12,$B$12<>-1)),O180+(N181-O180)*$O$74,O180+(L181-O180)*$O$74) -> 0 | P181: 0 | Q181: 0 | R181: 0 | S181: 0 | T181: 0 | U181: 0 | V181: 0 | W181: 0 | X181: 0 | Y181: 0 | Z181: 0 | AA181: 0
A182: 1 | B182: 1.06 | C182: 1.79392 | D182: 0.65 | E182: 3.13097 | F182: 3.14597 | G182: 3.07718 | H182: 3.0035 | I182: =IF($B$7=constants!$C$60,G182,IF($B$8=constants!$C$60,C182,E182)) -> 1.79392 | J182: =IF($B$7=constants!$C$60,H182,IF($B$8=constants!$C$60,D182,F182)) -> 0.65 | K182: 0 | L182: 0 | M182: 0 | N182: 0 | O182: =IF(OR($B$22=constants!$B$60,AND(I182>$B$12,$B$12<>-1)),O181+(N182-O181)*$O$74,O181+(L182-O181)*$O$74) -> 0 | P182: 0 | Q182: 0 | R182: 0 | S182: 0 | T182: 0 | U182: 0 | V182: 0 | W182: 0 | X182: 0 | Y182: 0 | Z182: 0 | AA182: 0
A183: 1 | B183: 1.07 | C183: 1.87624 | D183: 0.65 | E183: 3.135715 | F183: 3.150715 | G183: 3.09196 | H183: 3.0035 | I183: =IF($B$7=constants!$C$60,G183,IF($B$8=constants!$C$60,C183,E183)) -> 1.87624 | J183: =IF($B$7=constants!$C$60,H183,IF($B$8=constants!$C$60,D183,F183)) -> 0.65 | K183: 0 | L183: 0 | M183: 0 | N183: 0 | O183: =IF(OR($B$22=constants!$B$60,AND(I183>$B$12,$B$12<>-1)),O182+(N183-O182)*$O$74,O182+(L183-O182)*$O$74) -> 0 | P183: 0 | Q183: 0 | R183: 0 | S183: 0 | T183: 0 | U183: 0 | V183: 0 | W183: 0 | X183: 0 | Y183: 0 | Z183: 0 | AA183: 0
A184: 1 | B184: 1.08 | C184: 1.95856 | D184: 0.65 | E184: 3.14046 | F184: 3.15546 | G184: 3.10674 | H184: 3.0035 | I184: =IF($B$7=constants!$C$60,G184,IF($B$8=constants!$C$60,C184,E184)) -> 1.95856 | J184: =IF($B$7=constants!$C$60,H184,IF($B$8=constants!$C$60,D184,F184)) -> 0.65 | K184: 0 | L184: 0 | M184: 0 | N184: 0 | O184: =IF(OR($B$22=constants!$B$60,AND(I184>$B$12,$B$12<>-1)),O183+(N184-O183)*$O$74,O183+(L184-O183)*$O$74) -> 0 | P184: 0 | Q184: 0 | R184: 0 | S184: 0 | T184: 0 | U184: 0 | V184: 0 | W184: 0 | X184: 0 | Y184: 0 | Z184: 0 | AA184: 0
A185: 1 | B185: 1.09 | C185: 2.04088 | D185: 0.65 | E185: 3.145205 | F185: 3.160205 | G185: 3.12152 | H185: 3.0035 | I185: =IF($B$7=constants!$C$60,G185,IF($B$8=constants!$C$60,C185,E185)) -> 2.04088 | J185: =IF($B$7=constants!$C$60,H185,IF($B$8=constants!$C$60,D185,F185)) -> 0.65 | K185: 0 | L185: 0 | M185: 0 | N185: 0 | O185: =IF(OR($B$22=constants!$B$60,AND(I185>$B$12,$B$12<>-1)),O184+(N185-O184)*$O$74,O184+(L185-O184)*$O$74) -> 0 | P185: 0 | Q185: 0 | R185: 0 | S185: 0 | T185: 0 | U185: 0 | V185: 0 | W185: 0 | X185: 0 | Y185: 0 | Z185: 0 | AA185: 0
A186: 1 | B186: 1.1 | C186: 2.1232 | D186: 0.65 | E186: 3.14995 | F186: 3.16495 | G186: 3.1363 | H186: 3.0035 | I186: =IF($B$7=constants!$C$60,G186,IF($B$8=constants!$C$60,C186,E186)) -> 2.1232 | J186: =IF($B$7=constants!$C$60,H186,IF($B$8=constants!$C$60,D186,F186)) -> 0.65 | K186: 0 | L186: 0 | M186: 0 | N186: 0 | O186: =IF(OR($B$22=constants!$B$60,AND(I186>$B$12,$B$12<>-1)),O185+(N186-O185)*$O$74,O185+(L186-O185)*$O$74) -> 0 | P186: 0 | Q186: 0 | R186: 0 | S186: 0 | T186: 0 | U186: 0 | V186: 0 | W186: 0 | X186: 0 | Y186: 0 | Z186: 0 | AA186: 0
A187: 1 | B187: 1.11 | C187: 2.20552 | D187: 0.65 | E187: 3.154695 | F187: 3.169695 | G187: 3.15108 | H187: 3.0035 | I187: =IF($B$7=constants!$C$60,G187,IF($B$8=constants!$C$60,C187,E187)) -> 2.20552 | J187: =IF($B$7=constants!$C$60,H187,IF($B$8=constants!$C$60,D187,F187)) -> 0.65 | K187: 0 | L187: 0 | M187: 0 | N187: 0 | O187: =IF(OR($B$22=constants!$B$60,AND(I187>$B$12,$B$12<>-1)),O186+(N187-O186)*$O$74,O186+(L187-O186)*$O$74) -> 0 | P187: 0 | Q187: 0 | R187: 0 | S187: 0 | T187: 0 | U187: 0 | V187: 0 | W187: 0 | X187: 0 | Y187: 0 | Z187: 0 | AA187: 0
A188: 1 | B188: 1.12 | C188: 2.28784 | D188: 0.65 | E188: 3.15944 | F188: 3.17444 | G188: 3.16586 | H188: 3.0035 | I188: =IF($B$7=constants!$C$60,G188,IF($B$8=constants!$C$60,C188,E188)) -> 2.28784 | J188: =IF($B$7=constants!$C$60,H188,IF($B$8=constants!$C$60,D188,F188)) -> 0.65 | K188: 0 | L188: 0 | M188: 0 | N188: 0 | O188: =IF(OR($B$22=constants!$B$60,AND(I188>$B$12,$B$12<>-1)),O187+(N188-O187)*$O$74,O187+(L188-O187)*$O$74) -> 0 | P188: 0 | Q188: 0 | R188: 0 | S188: 0 | T188: 0 | U188: 0 | V188: 0 | W188: 0 | X188: 0 | Y188: 0 | Z188: 0 | AA188: 0
A189: 1 | B189: 1.13 | C189: 2.37016 | D189: 0.65 | E189: 3.164185 | F189: 3.179185 | G189: 3.18064 | H189: 3.0035 | I189: =IF($B$7=constants!$C$60,G189,IF($B$8=constants!$C$60,C189,E189)) -> 2.37016 | J189: =IF($B$7=constants!$C$60,H189,IF($B$8=constants!$C$60,D189,F189)) -> 0.65 | K189: 0 | L189: 0 | M189: 0 | N189: 0 | O189: =IF(OR($B$22=constants!$B$60,AND(I189>$B$12,$B$12<>-1)),O188+(N189-O188)*$O$74,O188+(L189-O188)*$O$74) -> 0 | P189: 0 | Q189: 0 | R189: 0 | S189: 0 | T189: 0 | U189: 0 | V189: 0 | W189: 0 | X189: 0 | Y189: 0 | Z189: 0 | AA189: 0
A190: 1 | B190: 1.14 | C190: 2.45248 | D190: 0.65 | E190: 3.16893 | F190: 3.18393 | G190: 3.19542 | H190: 3.0035 | I190: =IF($B$7=constants!$C$60,G190,IF($B$8=constants!$C$60,C190,E190)) -> 2.45248 | J190: =IF($B$7=constants!$C$60,H190,IF($B$8=constants!$C$60,D190,F190)) -> 0.65 | K190: 0 | L190: 0 | M190: 0 | N190: 0 | O190: =IF(OR($B$22=constants!$B$60,AND(I190>$B$12,$B$12<>-1)),O189+(N190-O189)*$O$74,O189+(L190-O189)*$O$74) -> 0 | P190: 0 | Q190: 0 | R190: 0 | S190: 0 | T190: 0 | U190: 0 | V190: 0 | W190: 0 | X190: 0 | Y190: 0 | Z190: 0 | AA190: 0
A191: 1 | B191: 1.15 | C191: 2.5348 | D191: 0.65 | E191: 3.173675 | F191: 3.188675 | G191: 3.2102 | H191: 3.0035 | I191: =IF($B$7=constants!$C$60,G191,IF($B$8=constants!$C$60,C191,E191)) -> 2.5348 | J191: =IF($B$7=constants!$C$60,H191,IF($B$8=constants!$C$60,D191,F191)) -> 0.65 | K191: 0 | L191: 0 | M191: 0 | N191: 0 | O191: =IF(OR($B$22=constants!$B$60,AND(I191>$B$12,$B$12<>-1)),O190+(N191-O190)*$O$74,O190+(L191-O190)*$O$74) -> 0 | P191: 0 | Q191: 0 | R191: 0 | S191: 0 | T191: 0 | U191: 0 | V191: 0 | W191: 0 | X191: 0 | Y191: 0 | Z191: 0 | AA191: 0
A192: 1 | B192: 1.16 | C192: 2.61712 | D192: 0.65 | E192: 3.17842 | F192: 3.19342 | G192: 3.22498 | H192: 3.0035 | I192: =IF($B$7=constants!$C$60,G192,IF($B$8=constants!$C$60,C192,E192)) -> 2.61712 | J192: =IF($B$7=constants!$C$60,H192,IF($B$8=constants!$C$60,D192,F192)) -> 0.65 | K192: 0 | L192: 0 | M192: 0 | N192: 0 | O192: =IF(OR($B$22=constants!$B$60,AND(I192>$B$12,$B$12<>-1)),O191+(N192-O191)*$O$74,O191+(L192-O191)*$O$74) -> 0 | P192: 0 | Q192: 0 | R192: 0 | S192: 0 | T192: 0 | U192: 0 | V192: 0 | W192: 0 | X192: 0 | Y192: 0 | Z192: 0 | AA192: 0
A193: 1 | B193: 1.17 | C193: 2.69944 | D193: 0.65 | E193: 3.183165 | F193: 3.198165 | G193: 3.23976 | H193: 3.0035 | I193: =IF($B$7=constants!$C$60,G193,IF($B$8=constants!$C$60,C193,E193)) -> 2.69944 | J193: =IF($B$7=constants!$C$60,H193,IF($B$8=constants!$C$60,D193,F193)) -> 0.65 | K193: 0 | L193: 0 | M193: 0 | N193: =IF(M193>I193,L193,M193) -> 0 | O193: =IF(OR($B$22=constants!$B$60,AND(I193>$B$12,$B$12<>-1)),O192+(N193-O192)*$O$74,O192+(L193-O192)*$O$74) -> 0 | P193: 0 | Q193: 0 | R193: 0 | S193: 0 | T193: 0 | U193: 0 | V193: 0 | W193: 0 | X193: 0 | Y193: 0 | Z193: 0 | AA193: 0
A194: 1 | B194: 1.18 | C194: 2.78176 | D194: 0.65 | E194: 3.18791 | F194: 3.20291 | G194: 3.25454 | H194: 3.0035 | I194: =IF($B$7=constants!$C$60,G194,IF($B$8=constants!$C$60,C194,E194)) -> 2.78176 | J194: =IF($B$7=constants!$C$60,H194,IF($B$8=constants!$C$60,D194,F194)) -> 0.65 | K194: 0 | L194: 0 | M194: 0 | N194: =IF(M194>I194,L194,M194) -> 0 | O194: =IF(OR($B$22=constants!$B$60,AND(I194>$B$12,$B$12<>-1)),O193+(N194-O193)*$O$74,O193+(L194-O193)*$O$74) -> 0 | P194: 0 | Q194: 0 | R194: 0 | S194: 0 | T194: 0 | U194: 0 | V194: 0 | W194: 0 | X194: 0 | Y194: 0 | Z194: 0 | AA194: 0
A195: 1 | B195: 1.19 | C195: 2.86408 | D195: 0.65 | E195: 3.192655 | F195: 3.207655 | G195: 3.26932 | H195: 3.0035 | I195: =IF($B$7=constants!$C$60,G195,IF($B$8=constants!$C$60,C195,E195)) -> 2.86408 | J195: =IF($B$7=constants!$C$60,H195,IF($B$8=constants!$C$60,D195,F195)) -> 0.65 | K195: 1 | L195: 2.86408 | M195: 2.6 | N195: 2.6 | O195: =IF(OR($B$22=constants!$B$60,AND(I195>$B$12,$B$12<>-1)),O194+(N195-O194)*$O$74,O194+(L195-O194)*$O$74) -> 2.34 | P195: 2.32 | Q195: 2.6 | R195: 2.6 | S195: 2.6 | T195: 2.6 | U195: 2.6 | V195: 2.34 | W195: 2.34 | X195: 2.34 | Y195: 2.31 | Z195: 2.305 | AA195: 2.3
A196: 1 | B196: 1.2 | C196: 2.9464 | D196: 0.65 | E196: 3.1974 | F196: 3.2124 | G196: 3.2841 | H196: 3.0035 | I196: =IF($B$7=constants!$C$60,G196,IF($B$8=constants!$C$60,C196,E196)) -> 2.9464 | J196: =IF($B$7=constants!$C$60,H196,IF($B$8=constants!$C$60,D196,F196)) -> 0.65 | K196: 1 | L196: 2.9464 | M196: 2.6 | N196: 2.6 | O196: =IF(OR($B$22=constants!$B$60,AND(I196>$B$12,$B$12<>-1)),O195+(N196-O195)*$O$74,O195+(L196-O195)*$O$74) -> 2.574 | P196: 2.554 | Q196: 2.6 | R196: 2.6 | S196: 2.6 | T196: 2.6 | U196: 2.6 | V196: 2.574 | W196: 2.574 | X196: 2.574 | Y196: 2.544 | Z196: 2.539 | AA196: 2.534
A197: 1 | B197: 1.21 | C197: 3.02872 | D197: 0.65 | E197: 3.202145 | F197: 3.217145 | G197: 3.29888 | H197: 3.0035 | I197: =IF($B$7=constants!$C$60,G197,IF($B$8=constants!$C$60,C197,E197)) -> 3.02872 | J197: =IF($B$7=constants!$C$60,H197,IF($B$8=constants!$C$60,D197,F197)) -> 0.65 | K197: 1 | L197: 3.02872 | M197: 2.6 | N197: 2.6 | O197: =IF(OR($B$22=constants!$B$60,AND(I197>$B$12,$B$12<>-1)),O196+(N197-O196)*$O$74,O196+(L197-O196)*$O$74) -> 2.5974 | P197: 2.5774 | Q197: 2.6 | R197: 2.6 | S197: 2.6 | T197: 2.6 | U197: 2.6 | V197: 2.5974 | W197: 2.5974 | X197: 2.5974 | Y197: 2.5674 | Z197: 2.5624 | AA197: 2.5574
A198: 1 | B198: 1.22 | C198: 3.11104 | D198: 0.65 | E198: 3.20689 | F198: 3.22189 | G198: 3.31366 | H198: 3.0035 | I198: =IF($B$7=constants!$C$60,G198,IF($B$8=constants!$C$60,C198,E198)) -> 3.11104 | J198: =IF($B$7=constants!$C$60,H198,IF($B$8=constants!$C$60,D198,F198)) -> 0.65 | K198: 1 | L198: 3.11104 | M198: 2.6 | N198: 2.6 | O198: =IF(OR($B$22=constants!$B$60,AND(I198>$B$12,$B$12<>-1)),O197+(N198-O197)*$O$74,O197+(L198-O197)*$O$74) -> 2.59974 | P198: 2.57974 | Q198: 2.6 | R198: 2.6 | S198: 2.6 | T198: 2.6 | U198: 2.6 | V198: 2.59974 | W198: 2.59974 | X198: 2.59974 | Y198: 2.56974 | Z198: 2.56474 | AA198: 2.55974
A199: 1 | B199: 1.23 | C199: 3.19336 | D199: 0.65 | E199: 3.211635 | F199: 3.226635 | G199: 3.32844 | H199: 3.0035 | I199: =IF($B$7=constants!$C$60,G199,IF($B$8=constants!$C$60,C199,E199)) -> 3.19336 | J199: =IF($B$7=constants!$C$60,H199,IF($B$8=constants!$C$60,D199,F199)) -> 0.65 | K199: 1 | L199: 3.19336 | M199: 2.6 | N199: 2.6 | O199: =IF(OR($B$22=constants!$B$60,AND(I199>$B$12,$B$12<>-1)),O198+(N199-O198)*$O$74,O198+(L199-O198)*$O$74) -> 2.599974 | P199: 2.579974 | Q199: 2.6 | R199: 2.6 | S199: 2.6 | T199: 2.6 | U199: 2.6 | V199: 2.599974 | W199: 2.599974 | X199: 2.599974 | Y199: 2.569974 | Z199: 2.564974 | AA199: 2.559974
A200: 1 | B200: 1.24 | C200: 3.27568 | D200: 0.65 | E200: 3.21638 | F200: 3.23138 | G200: 3.34322 | H200: 3.0035 | I200: =IF($B$7=constants!$C$60,G200,IF($B$8=constants!$C$60,C200,E200)) -> 3.27568 | J200: =IF($B$7=constants!$C$60,H200,IF($B$8=constants!$C$60,D200,F200)) -> 0.65 | K200: 1 | L200: 3.27568 | M200: 2.6 | N200: 2.6 | O200: =IF(OR($B$22=constants!$B$60,AND(I200>$B$12,$B$12<>-1)),O199+(N200-O199)*$O$74,O199+(L200-O199)*$O$74) -> 2.5999974 | P200: 2.5799974 | Q200: 2.6 | R200: 2.6 | S200: 2.6 | T200: 2.6 | U200: 2.6 | V200: 2.5999974 | W200: 2.5999974 | X200: 2.5999974 | Y200: 2.5699974 | Z200: 2.5649974 | AA200: 2.5599974
A201: 1 | B201: 1.25 | C201: =$D$15*B201+$D$16 -> 3.358 | D201: 0.65 | E201: 3.221125 | F201: 3.236125 | G201: =B201*$H$46+$H$47 -> 3.358 | H201: 3.0035 | I201: =IF($B$7=constants!$C$60,G201,IF($B$8=constants!$C$60,C201,E201)) -> 3.358 | J201: =IF($B$7=constants!$C$60,H201,IF($B$8=constants!$C$60,D201,F201)) -> 0.65 | K201: 1 | L201: 3.358 | M201: 2.6 | N201: 2.6 | O201: =IF(OR($B$22=constants!$B$60,AND(I201>$B$12,$B$12<>-1)),O200+(N201-O200)*$O$74,O200+(L201-O200)*$O$74) -> 2.59999974 | P201: 2.57999974 | Q201: 2.6 | R201: 2.6 | S201: 2.6 | T201: 2.6 | U201: 2.6 | V201: 2.59999974 | W201: 2.59999974 | X201: 2.59999974 | Y201: 2.56999974 | Z201: 2.56499974 | AA201: 2.55999974
A202: 1 | B202: 1.26 | C202: =$D$15*$B202+$D$16 -> 3.33756 | D202: =$G$15*$B202+$G$16 -> 0.69394 | E202: 3.22587 | F202: 3.24087 | G202: =B202*$H$46+$H$47 -> 3.33756 | H202: 3.0035 | I202: =IF($B$7=constants!$C$60,G202,IF($B$8=constants!$C$60,C202,E202)) -> 3.33756 | J202: =IF($B$7=constants!$C$60,H202,IF($B$8=constants!$C$60,D202,F202)) -> 0.69394 | K202: 1 | L202: 3.33756 | M202: 2.6 | N202: 2.6 | O202: =IF(OR($B$22=constants!$B$60,AND(I202>$B$12,$B$12<>-1)),O201+(N202-O201)*$O$74,O201+(L202-O201)*$O$74) -> 2.599999974 | P202: 2.579999974 | Q202: 2.6 | R202: 2.6 | S202: 2.6 | T202: 2.6 | U202: 2.6 | V202: 2.599999974 | W202: 2.599999974 | X202: 2.599999974 | Y202: 2.569999974 | Z202: 2.564999974 | AA202: 2.559999974
A203: 1 | B203: 1.27 | C203: =$D$15*B203+$D$16 -> 3.31712 | D203: =$G$15*$B203+$G$16 -> 0.73788 | E203: 3.230615 | F203: 3.245615 | G203: 3.31712 | H203: 3.0035 | I203: =IF($B$7=constants!$C$60,G203,IF($B$8=constants!$C$60,C203,E203)) -> 3.31712 | J203: =IF($B$7=constants!$C$60,H203,IF($B$8=constants!$C$60,D203,F203)) -> 0.73788 | K203: 1 | L203: 3.31712 | M203: 2.6 | N203: 2.6 | O203: =IF(OR($B$22=constants!$B$60,AND(I203>$B$12,$B$12<>-1)),O202+(N203-O202)*$O$74,O202+(L203-O202)*$O$74) -> 2.599999997 | P203: 2.579999997 | Q203: 2.6 | R203: 2.6 | S203: 2.6 | T203: 2.6 | U203: 2.6 | V203: 2.599999997 | W203: 2.599999997 | X203: 2.599999997 | Y203: 2.569999997 | Z203: 2.564999997 | AA203: 2.559999997
A204: 1 | B204: 1.28 | C204: 3.29668 | D204: 0.78182 | E204: 3.23536 | F204: 3.25036 | G204: 3.29668 | H204: 3.0035 | I204: =IF($B$7=constants!$C$60,G204,IF($B$8=constants!$C$60,C204,E204)) -> 3.29668 | J204: =IF($B$7=constants!$C$60,H204,IF($B$8=constants!$C$60,D204,F204)) -> 0.78182 | K204: 1 | L204: 3.29668 | M204: 2.6 | N204: 2.6 | O204: =IF(OR($B$22=constants!$B$60,AND(I204>$B$12,$B$12<>-1)),O203+(N204-O203)*$O$74,O203+(L204-O203)*$O$74) -> 2.6 | P204: 2.58 | Q204: 2.6 | R204: 2.6 | S204: 2.6 | T204: 2.6 | U204: 2.6 | V204: 2.6 | W204: 2.6 | X204: 2.6 | Y204: 2.57 | Z204: 2.565 | AA204: 2.56
A205: =IF(B205<=100,1,IF(B205<=200,2,3)) -> 1 | B205: 1.29 | C205: 3.27624 | D205: 0.82576 | E205: 3.240105 | F205: 3.255105 | G205: 3.27624 | H205: 3.0035 | I205: =IF($B$7=constants!$C$60,G205,IF($B$8=constants!$C$60,C205,E205)) -> 3.27624 | J205: =IF($B$7=constants!$C$60,H205,IF($B$8=constants!$C$60,D205,F205)) -> 0.82576 | K205: 1 | L205: 3.27624 | M205: 2.6 | N205: 2.6 | O205: =IF(OR($B$22=constants!$B$60,AND(I205>$B$12,$B$12<>-1)),O204+(N205-O204)*$O$74,O204+(L205-O204)*$O$74) -> 2.6 | P205: =IF(O205=0,0,O205-$P$72) -> 2.58 | Q205: 2.6 | R205: 2.6 | S205: =S$72*IF(S$71=0,$L205,IF(S$71=1,$R205,IF($B$12=-1,$L205,IF($I205>$B$12,$R205,$L205)))) -> 2.6 | T205: 2.6 | U205: 2.6 | V205: 2.6 | W205: 2.6 | X205: 2.6 | Y205: =IF(V205=0,0,V205-Y$72) -> 2.57 | Z205: =IF(W205=0,0,W205-Z$72) -> 2.565 | AA205: =IF(X205=0,0,X205-AA$72) -> 2.56
A206: 1 | B206: =B205+0.01 -> 1.3 | C206: 3.2558 | D206: 0.8697 | E206: 3.24485 | F206: 3.25985 | G206: 3.2558 | H206: 3.0035 | I206: =IF($B$7=constants!$C$60,G206,IF($B$8=constants!$C$60,C206,E206)) -> 3.2558 | J206: =IF($B$7=constants!$C$60,H206,IF($B$8=constants!$C$60,D206,F206)) -> 0.8697 | K206: =IF(AND(I206>$B$16,K205=0),1,IF(AND(I206<$B$17,K205=1),0,K205)) -> 1 | L206: 3.2558 | M206: 2.6 | N206: 2.6 | O206: =IF(OR($B$22=constants!$B$60,AND(I206>$B$12,$B$12<>-1)),O205+(N206-O205)*$O$74,O205+(L206-O205)*$O$74) -> 2.6 | P206: 2.58 | Q206: 2.6 | R206: =IF(Q206>I206,I206,Q206) -> 2.6 | S206: 2.6 | T206: 2.6 | U206: 2.6 | V206: =V205+(S206-V$72-V205)*V$74 -> 2.6 | W206: =W205+(T206-W$72-W205)*W$74 -> 2.6 | X206: =X205+(U206-X$72-X205)*X$74 -> 2.6 | Y206: 2.57 | Z206: 2.565 | AA206: 2.56
A207: 1 | B207: 1.31 | C207: 3.23536 | D207: 0.91364 | E207: 3.249595 | F207: 3.264595 | G207: 3.23536 | H207: 3.0035 | I207: =IF($B$7=constants!$C$60,G207,IF($B$8=constants!$C$60,C207,E207)) -> 3.23536 | J207: =IF($B$7=constants!$C$60,H207,IF($B$8=constants!$C$60,D207,F207)) -> 0.91364 | K207: 1 | L207: 3.23536 | M207: 2.6 | N207: 2.6 | O207: =IF(OR($B$22=constants!$B$60,AND(I207>$B$12,$B$12<>-1)),O206+(N207-O206)*$O$74,O206+(L207-O206)*$O$74) -> 2.6 | P207: 2.58 | Q207: 2.6 | R207: 2.6 | S207: 2.6 | T207: 2.6 | U207: 2.6 | V207: 2.6 | W207: 2.6 | X207: 2.6 | Y207: 2.57 | Z207: 2.565 | AA207: 2.56
A208: 1 | B208: 1.32 | C208: 3.21492 | D208: 0.95758 | E208: 3.25434 | F208: 3.26934 | G208: 3.21492 | H208: 3.0035 | I208: =IF($B$7=constants!$C$60,G208,IF($B$8=constants!$C$60,C208,E208)) -> 3.21492 | J208: =IF($B$7=constants!$C$60,H208,IF($B$8=constants!$C$60,D208,F208)) -> 0.95758 | K208: 1 | L208: 3.21492 | M208: 2.6 | N208: 2.6 | O208: =IF(OR($B$22=constants!$B$60,AND(I208>$B$12,$B$12<>-1)),O207+(N208-O207)*$O$74,O207+(L208-O207)*$O$74) -> 2.6 | P208: 2.58 | Q208: 2.6 | R208: 2.6 | S208: 2.6 | T208: 2.6 | U208: 2.6 | V208: 2.6 | W208: 2.6 | X208: 2.6 | Y208: 2.57 | Z208: 2.565 | AA208: 2.56
A209: 1 | B209: 1.33 | C209: 3.19448 | D209: 1.00152 | E209: 3.259085 | F209: =E209+$F$74 -> 3.274085 | G209: 3.19448 | H209: 3.0035 | I209: =IF($B$7=constants!$C$60,G209,IF($B$8=constants!$C$60,C209,E209)) -> 3.19448 | J209: =IF($B$7=constants!$C$60,H209,IF($B$8=constants!$C$60,D209,F209)) -> 1.00152 | K209: 1 | L209: 3.19448 | M209: 2.6 | N209: 2.6 | O209: =IF(OR($B$22=constants!$B$60,AND(I209>$B$12,$B$12<>-1)),O208+(N209-O208)*$O$74,O208+(L209-O208)*$O$74) -> 2.6 | P209: 2.58 | Q209: 2.6 | R209: 2.6 | S209: 2.6 | T209: 2.6 | U209: 2.6 | V209: 2.6 | W209: 2.6 | X209: 2.6 | Y209: 2.57 | Z209: 2.565 | AA209: 2.56
A210: 1 | B210: 1.34 | C210: 3.17404 | D210: 1.04546 | E210: 3.26383 | F210: 3.27883 | G210: 3.17404 | H210: 3.0035 | I210: =IF($B$7=constants!$C$60,G210,IF($B$8=constants!$C$60,C210,E210)) -> 3.17404 | J210: =IF($B$7=constants!$C$60,H210,IF($B$8=constants!$C$60,D210,F210)) -> 1.04546 | K210: 1 | L210: 3.17404 | M210: 2.6 | N210: 2.6 | O210: =IF(OR($B$22=constants!$B$60,AND(I210>$B$12,$B$12<>-1)),O209+(N210-O209)*$O$74,O209+(L210-O209)*$O$74) -> 2.6 | P210: 2.58 | Q210: 2.6 | R210: 2.6 | S210: 2.6 | T210: 2.6 | U210: 2.6 | V210: 2.6 | W210: 2.6 | X210: 2.6 | Y210: 2.57 | Z210: 2.565 | AA210: 2.56
A211: 1 | B211: 1.35 | C211: 3.1536 | D211: 1.0894 | E211: 3.268575 | F211: 3.283575 | G211: 3.1536 | H211: 3.0035 | I211: =IF($B$7=constants!$C$60,G211,IF($B$8=constants!$C$60,C211,E211)) -> 3.1536 | J211: =IF($B$7=constants!$C$60,H211,IF($B$8=constants!$C$60,D211,F211)) -> 1.0894 | K211: 1 | L211: 3.1536 | M211: 2.6 | N211: 2.6 | O211: =IF(OR($B$22=constants!$B$60,AND(I211>$B$12,$B$12<>-1)),O210+(N211-O210)*$O$74,O210+(L211-O210)*$O$74) -> 2.6 | P211: 2.58 | Q211: 2.6 | R211: 2.6 | S211: 2.6 | T211: 2.6 | U211: 2.6 | V211: 2.6 | W211: 2.6 | X211: 2.6 | Y211: 2.57 | Z211: 2.565 | AA211: 2.56
A212: 1 | B212: 1.36 | C212: 3.13316 | D212: 1.13334 | E212: 3.27332 | F212: 3.28832 | G212: 3.13316 | H212: 3.0035 | I212: =IF($B$7=constants!$C$60,G212,IF($B$8=constants!$C$60,C212,E212)) -> 3.13316 | J212: =IF($B$7=constants!$C$60,H212,IF($B$8=constants!$C$60,D212,F212)) -> 1.13334 | K212: 1 | L212: 3.13316 | M212: 2.6 | N212: 2.6 | O212: =IF(OR($B$22=constants!$B$60,AND(I212>$B$12,$B$12<>-1)),O211+(N212-O211)*$O$74,O211+(L212-O211)*$O$74) -> 2.6 | P212: 2.58 | Q212: 2.6 | R212: 2.6 | S212: 2.6 | T212: 2.6 | U212: 2.6 | V212: 2.6 | W212: 2.6 | X212: 2.6 | Y212: 2.57 | Z212: 2.565 | AA212: 2.56
... 164 more rows
